Workbook

Sheet Summary
B1: Tulsa Portfolio
B2: Financial Summary
G5: TTM
C6: =TEXT('TE_P&L'!D6,"0") -> 2022 | D6: ='TE_P&L'!E6 -> 2023 | E6: ='TE_P&L'!F6 -> 2024 | F6: ='TE_P&L'!G6 -> 2025 | G6: ='TE_P&L'!H6 -> 2026-01-31 | H6: In-Place(1)
B7: Trails End
B8: Avg Occupied Lots | C8: ='TE_P&L'!D$7 -> 60.66666667 | D8: ='TE_P&L'!E$7 -> 59.83333333 | E8: ='TE_P&L'!F$7 -> 62 | F8: ='TE_P&L'!G$7 -> 63.83333333 | G8: ='TE_P&L'!H$7 -> 64 | H8: ='TE_P&L'!I$7 -> 69
B9: % Occupancy | C9: =+C8/$C$54 -> 0.8544600939 | D9: 0.8427230047 | E9: 0.8732394366 | F9: 0.8990610329 | G9: 0.9014084507 | H9: 0.9718309859
B10: Avg Rents | C10: ='TE_P&L'!D$9 -> 411.5108929 | D10: ='TE_P&L'!E$9 -> 455.8417549 | E10: ='TE_P&L'!F$9 -> 472.5237231 | F10: ='TE_P&L'!G$9 -> 497.4114491 | G10: ='TE_P&L'!H$9 -> 504.0226823 | H10: ='TE_P&L'!I$9 -> 554.4927536
B12: Revenues | C12: ='TE_P&L'!D$23 -> 328668.38 | D12: ='TE_P&L'!E$23 -> 368311.25 | E12: ='TE_P&L'!F$23 -> 389677.79 | F12: ='TE_P&L'!G$23 -> 426664.85 | G12: ='TE_P&L'!H$23 -> 433830.94 | H12: ='TE_P&L'!I$23 -> 509934.5
B13: Opex | C13: =-'TE_P&L'!D$57 -> -177156.36 | D13: =-'TE_P&L'!E$57 -> -189219.33 | E13: =-'TE_P&L'!F$57 -> -234977.4616 | F13: =-'TE_P&L'!G$57 -> -190203.514 | G13: =-'TE_P&L'!H$57 -> -185514.7576 | H13: =-'TE_P&L'!I$57 -> -188490.56
B14: NOI | C14: =SUM(C12:C13) -> 151512.02 | D14: =SUM(D12:D13) -> 179091.92 | E14: 154700.3284 | F14: =SUM(F12:F13) -> 236461.336 | G14: 248316.1824 | H14: 321443.94
B16: Homes Revenues | C16: ='TE_P&L'!D70 -> 238826.03 | D16: ='TE_P&L'!E70 -> 320771.79 | E16: ='TE_P&L'!F70 -> 320880.68 | F16: ='TE_P&L'!G70 -> 353841.34 | G16: ='TE_P&L'!H70 -> 349229.29 | H16: ='TE_P&L'!I70 -> 363179.29
B17: Homes Expenses | C17: =-'TE_P&L'!D71 -> -104693.8 | D17: =-'TE_P&L'!E71 -> -118153.86 | E17: =-'TE_P&L'!F71 -> -122872.56 | F17: =-'TE_P&L'!G71 -> -106342.5236 | G17: =-'TE_P&L'!H71 -> -106586.9416 | H17: =-'TE_P&L'!I71 -> -107144.9416
B18: Home NOI | C18: =+'TE_P&L'!D72 -> 134132.23 | D18: =+'TE_P&L'!E72 -> 202617.93 | E18: =+'TE_P&L'!F72 -> 198008.12 | F18: =+'TE_P&L'!G72 -> 247498.8164 | G18: =+'TE_P&L'!H72 -> 242642.3484 | H18: =+'TE_P&L'!I72 -> 256034.3484
B20: Leisure Estates
B21: Avg Occupied Lots | C21: ='LE_P&L'!D$7 -> 36.58333333 | D21: ='LE_P&L'!E$7 -> 39.66666667 | E21: ='LE_P&L'!F$7 -> 39.33333333 | F21: ='LE_P&L'!G$7 -> 40.16666667 | G21: ='LE_P&L'!H$7 -> 40.25 | H21: ='LE_P&L'!I$7 -> 43
B22: % Occupancy | C22: =+C21/$D$54 -> 0.7952898551 | D22: 0.8623188406 | E22: 0.8550724638 | F22: 0.8731884058 | G22: 0.875 | H22: 0.9347826087
B23: Avg Rents | C23: ='LE_P&L'!D$9 -> 378.1539636 | D23: ='LE_P&L'!E$9 -> 418.7990336 | E23: ='LE_P&L'!F$9 -> 448.6203178 | F23: ='LE_P&L'!G$9 -> 482.2527801 | G23: ='LE_P&L'!H$9 -> 487.6491718 | H23: ='LE_P&L'!I$9 -> 546.0465116
B25: Revenues | C25: ='LE_P&L'!D$23 -> 179699.82 | D25: ='LE_P&L'!E$23 -> 233311.46 | E25: ='LE_P&L'!F$23 -> 249881.43 | F25: ='LE_P&L'!G$23 -> 273482.16 | G25: ='LE_P&L'!H$23 -> 277542.25 | H25: ='LE_P&L'!I$23 -> 326293.09
B26: Opex | C26: =-'LE_P&L'!D$57 -> -65006.39 | D26: =-'LE_P&L'!E$57 -> -78023.83 | E26: =-'LE_P&L'!F$57 -> -88397.4072 | F26: =-'LE_P&L'!G$57 -> -97600.4512 | G26: =-'LE_P&L'!H$57 -> -99594.5348 | H26: =-'LE_P&L'!I$57 -> -101471.5636
B27: NOI | C27: =SUM(C25:C26) -> 114693.43 | D27: =SUM(D25:D26) -> 155287.63 | E27: =SUM(E25:E26) -> 161484.0228 | F27: 175881.7088 | G27: =SUM(G25:G26) -> 177947.7152 | H27: =SUM(H25:H26) -> 224821.5264
B29: Homes Revenues | C29: ='LE_P&L'!D68 -> 79062.81 | D29: ='LE_P&L'!E68 -> 130652.15 | E29: ='LE_P&L'!F68 -> 145727.26 | F29: ='LE_P&L'!G68 -> 183873.52 | G29: ='LE_P&L'!H68 -> 180943.52 | H29: ='LE_P&L'!I68 -> 180686
B30: Homes Expenses | C30: =-'LE_P&L'!D69 -> -36492.33 | D30: =-'LE_P&L'!E69 -> -50669.22 | E30: =-'LE_P&L'!F69 -> -85954.27 | F30: =-'LE_P&L'!G69 -> -80733.8808 | G30: =-'LE_P&L'!H69 -> -81176.0408 | H30: =-'LE_P&L'!I69 -> -81005.94
B31: Home NOI | C31: =+'LE_P&L'!D70 -> 42570.48 | D31: =+'LE_P&L'!E70 -> 79982.93 | E31: =+'LE_P&L'!F70 -> 59772.99 | F31: =+'LE_P&L'!G70 -> 103139.6392 | G31: =+'LE_P&L'!H70 -> 99767.4792 | H31: =+'LE_P&L'!I70 -> 99680.06
B33: Combined
B34: Avg Occupied Lots | C34: ='Combined_P&L'!D$7 -> 97.25 | D34: ='Combined_P&L'!E$7 -> 99.5 | E34: ='Combined_P&L'!F$7 -> 101.3333333 | F34: ='Combined_P&L'!G$7 -> 104.0833333 | G34: ='Combined_P&L'!H$7 -> 104.25 | H34: ='Combined_P&L'!I$7 -> 112
B35: % Occupancy | C35: =+C34/$E$54 -> 0.8311965812 | D35: 0.8504273504 | E35: 0.8660968661 | F35: 0.8896011396 | G35: 0.891025641 | H35: 0.9572649573
B36: Avg Rents | C36: ='Combined_P&L'!D$8 -> 398.9627421 | D36: ='Combined_P&L'!E$8 -> 441.0743049 | E36: ='Combined_P&L'!F$8 -> 463.2454276 | F36: ='Combined_P&L'!G$8 -> 491.1633387 | G36: ='Combined_P&L'!H$8 -> 497.7010152 | H36: ='Combined_P&L'!I$8 -> 551.25
B38: Revenues | C38: ='Combined_P&L'!D$21 -> 508368.2 | D38: ='Combined_P&L'!E$21 -> 601622.71 | E38: ='Combined_P&L'!F$21 -> 639559.22 | F38: ='Combined_P&L'!G$21 -> 700147.01 | G38: ='Combined_P&L'!H$21 -> 711373.19 | H38: ='Combined_P&L'!I$21 -> 836227.59
B39: Opex | C39: =-'Combined_P&L'!D$55 -> -242162.75 | D39: =-'Combined_P&L'!E$55 -> -267243.16 | E39: =-'Combined_P&L'!F$55 -> -323374.8688 | F39: =-'Combined_P&L'!G$55 -> -287803.9652 | G39: =-'Combined_P&L'!H$55 -> -285109.2924 | H39: =-'Combined_P&L'!I$55 -> -289962.1236
B40: NOI | C40: =SUM(C38:C39) -> 266205.45 | D40: =SUM(D38:D39) -> 334379.55 | E40: =SUM(E38:E39) -> 316184.3512 | F40: 412343.0448 | G40: =SUM(G38:G39) -> 426263.8976 | H40: =SUM(H38:H39) -> 546265.4664
B42: Homes Revenues | C42: =SUM(C16,C29) -> 317888.84 | D42: =SUM(D16,D29) -> 451423.94 | E42: 466607.94 | F42: 537714.86 | G42: 530172.81 | H42: 543865.29
B43: Homes Expenses | C43: =SUM(C17,C30) -> -141186.13 | D43: -168823.08 | E43: -208826.83 | F43: -187076.4044 | G43: -187762.9824 | H43: -188150.8816
B44: Home NOI | C44: =+C18+C31 -> 176702.71 | D44: =+D18+D31 -> 282600.86 | E44: 257781.11 | F44: =+F18+F31 -> 350638.4556 | G44: 342409.8276 | H44: 355714.4084
B46: (1) In-Place reflects the current rent roll annualized for base rent and other fixed charges and TTM expenses and other revenues
B48: Rent Roll Summary | C48: Trails | D48: Leisure | E48: Combined
B49: Resident Occupied | C49: =TE_BSR!A98 -> 12 | D49: =LE_BSR!A73 -> 12 | E49: =SUM(C49:D49) -> 24
B50: POH - Occupied | C50: =TE_BSR!A99 -> 57 | D50: =LE_BSR!A74 -> 31 | E50: =SUM(C50:D50) -> 88
B51: POH - Vacant | C51: =TE_BSR!A100 -> 0 | D51: =LE_BSR!A75 -> 1 | E51: 1
B52: Vacant Sites | C52: =TE_BSR!A101 -> 1 | D52: =LE_BSR!A76 -> 1 | E52: =SUM(C52:D52) -> 2
B53: Offices | C53: =TE_BSR!A97 -> 1 | D53: =LE_BSR!A72 -> 1 | E53: 2
C54: =SUM(C49:C53) -> 71 | D54: 46 | E54: =SUM(E49:E53) -> 117
B56: POH Summary
B57: =TE_POH!C67 -> Park Owned - LTO | C57: =TE_POH!$B$67 -> 11 | D57: =LE_POH!$B$42 -> 3 | E57: =SUM(C57:D57) -> 14
B58: =TE_POH!C68 -> Park Owned - Rented | C58: =TE_POH!$B$68 -> 8 | D58: =LE_POH!$B$43 -> 8 | E58: =SUM(C58:D58) -> 16
B59: =TE_POH!C69 -> Park Owned - Vacant New | C59: =TE_POH!B69 -> 0 | D59: =LE_POH!B44 -> 1 | E59: 1
B60: =TE_POH!C70 -> Park Owned - Vacant Old | C60: =TE_POH!B70 -> 0 | D60: =LE_POH!B45 -> 0 | E60: 0
B61: =TE_POH!C71 -> Resident Occupied - LTO | C61: =TE_POH!$B$71 -> 35 | D61: =LE_POH!$B$46 -> 20 | E61: 55
C62: =SUM(C57:C61) -> 54 | D62: =SUM(D57:D61) -> 32 | E62: =SUM(E57:E61) -> 86
B63: Resident Occupied - Note | C63: =+TE_BSR!A86 -> 3 | D63: 0 | E63: =SUM(C63:D63) -> 3
C64: =SUM(C62:C63) -> 57 | D64: =SUM(D62:D63) -> 32 | E64: =SUM(E62:E63) -> 89
B66: Average Vintage | C66: =TE_POH!J72 -> 2018.685185 | D66: =LE_POH!J47 -> 2014.5625 | E66: =SUMPRODUCT(C62:D62,C66:D66)/E62 -> 2017.151163
B67: POH % - w/o Notes | C67: =+C62/C54 -> 0.7605633803 | D67: =+D62/D54 -> 0.6956521739 | E67: =+E62/E54 -> 0.735042735
B68: POH % - w/ Notes | C68: =+C64/C54 -> 0.8028169014 | D68: =+D64/D54 -> 0.6956521739 | E68: =+E64/E54 -> 0.7606837607
B70: 2025 Actuals
B71: Park Wages | C71: 47049.62 | D71: 19808.02 | E71: =SUM(C71:D71) -> 66857.64
B72: Home Wages | C72: 2882.16 | D72: 13233.41 | E72: =SUM(C72:D72) -> 16115.57
C73: =SUM(C71:C72) -> 49931.78 | D73: =SUM(D71:D72) -> 33041.43 | E73: =SUM(E71:E72) -> 82973.21
B75: 2026 Budget
B76: Park Wages | C76: 52554.76571 | D76: 20899.78559 | E76: =SUM(C76:D76) -> 73454.55131
B77: Home Wages | C77: 2828.8 | D77: 13471.80845 | E77: =SUM(C77:D77) -> 16300.60845
C78: =SUM(C76:C77) -> 55383.56571 | D78: =SUM(D76:D77) -> 34371.59404 | E78: =SUM(E76:E77) -> 89755.15976

Sheet Combined_P&L
B1: Trails End & Leisure Estates
B2: Historical Financials
H5: TTM
D6: 2022 | E6: 2023 | F6: 2024 | G6: 2025 | H6: 2026-01-31 | I6: In-Place(1)
B7: Average Occupied Lots | D7: ='TE_P&L'!D7+'LE_P&L'!D7 -> 97.25 | E7: ='TE_P&L'!E7+'LE_P&L'!E7 -> 99.5 | F7: ='TE_P&L'!F7+'LE_P&L'!F7 -> 101.3333333 | G7: ='TE_P&L'!G7+'LE_P&L'!H7 -> 104.0833333 | H7: ='TE_P&L'!H7+'LE_P&L'!H7 -> 104.25 | I7: ='TE_P&L'!I7+'LE_P&L'!I7 -> 112
B8: Average Rents | D8: =IFERROR(D11/D7/12,"") -> 398.9627421 | E8: 441.0743049 | F8: =IFERROR(F11/F7/12,"") -> 463.2454276 | G8: =IFERROR(G11/G7/12,"") -> 491.1633387 | H8: =IFERROR(H11/H7/12,"") -> 497.7010152 | I8: =IFERROR(I11/I7/12,"") -> 551.25
B10: Revenues
B11: MH Lot Rent | D11: ='TE_P&L'!D12+'LE_P&L'!D12 -> 465589.52 | E11: ='TE_P&L'!E12+'LE_P&L'!E12 -> 526642.72 | F11: ='TE_P&L'!F12+'LE_P&L'!F12 -> 563306.44 | G11: ='TE_P&L'!G12+'LE_P&L'!G12 -> 613463.01 | H11: ='TE_P&L'!H12+'LE_P&L'!H12 -> 622623.97 | I11: ='TE_P&L'!I12+'LE_P&L'!I12 -> 740880
B12: Shed Income | D12: ='TE_P&L'!D13+'LE_P&L'!D13 -> 27695.08 | E12: ='TE_P&L'!E13+'LE_P&L'!E13 -> 35441.23 | F12: ='TE_P&L'!F13+'LE_P&L'!F13 -> 39890.7 | G12: ='TE_P&L'!G13+'LE_P&L'!G13 -> 45458.91 | H12: ='TE_P&L'!H13+'LE_P&L'!H13 -> 46232.63 | I12: ='TE_P&L'!I13+'LE_P&L'!I13 -> 52800
B13: Utility Reimbursements: | D13: ='TE_P&L'!D14+'LE_P&L'!D14 -> 0 | E13: ='TE_P&L'!E14+'LE_P&L'!E14 -> 0 | F13: ='TE_P&L'!F14+'LE_P&L'!F14 -> 0 | G13: ='TE_P&L'!G14+'LE_P&L'!G14 -> 0 | H13: ='TE_P&L'!H14+'LE_P&L'!H14 -> 0 | I13: ='TE_P&L'!I14+'LE_P&L'!I14 -> 0
B14: Electric + | D14: ='TE_P&L'!D16+'LE_P&L'!D16 -> 0 | E14: ='TE_P&L'!E16+'LE_P&L'!E16 -> 0 | F14: ='TE_P&L'!F16+'LE_P&L'!F16 -> 0 | G14: ='TE_P&L'!G16+'LE_P&L'!G16 -> 0 | H14: ='TE_P&L'!H16+'LE_P&L'!H16 -> 0 | I14: ='TE_P&L'!I16+'LE_P&L'!I16 -> 0
B15: Water + | D15: ='TE_P&L'!D17+'LE_P&L'!D17 -> 0 | E15: ='TE_P&L'!E17+'LE_P&L'!E17 -> 15393.13 | F15: ='TE_P&L'!F17+'LE_P&L'!F17 -> 16805.9 | G15: ='TE_P&L'!G17+'LE_P&L'!G17 -> 17601.78 | H15: ='TE_P&L'!H17+'LE_P&L'!H17 -> 17768.65 | I15: ='TE_P&L'!I17+'LE_P&L'!I17 -> 17768.65
B16: Trash + | D16: ='TE_P&L'!D18+'LE_P&L'!D18 -> 0 | E16: ='TE_P&L'!E18+'LE_P&L'!E18 -> 144 | F16: ='TE_P&L'!F18+'LE_P&L'!F18 -> 313 | G16: ='TE_P&L'!G18+'LE_P&L'!G18 -> 422 | H16: ='TE_P&L'!H18+'LE_P&L'!H18 -> 437 | I16: ='TE_P&L'!I18+'LE_P&L'!I18 -> 468
B17: Fee Income | D17: ='TE_P&L'!D19+'LE_P&L'!D19 -> 13775.65 | E17: ='TE_P&L'!E19+'LE_P&L'!E19 -> 23810 | F17: ='TE_P&L'!F19+'LE_P&L'!F19 -> 28791.6 | G17: ='TE_P&L'!G19+'LE_P&L'!G19 -> 23677.56 | H17: ='TE_P&L'!H19+'LE_P&L'!H19 -> 25033.19 | I17: ='TE_P&L'!I19+'LE_P&L'!I19 -> 25033.19
B18: Application Fee Income | D18: ='TE_P&L'!D20+'LE_P&L'!D20 -> 2039.93 | E18: ='TE_P&L'!E20+'LE_P&L'!E20 -> 3186 | F18: ='TE_P&L'!F20+'LE_P&L'!F20 -> 3327 | G18: ='TE_P&L'!G20+'LE_P&L'!G20 -> 3955 | H18: ='TE_P&L'!H20+'LE_P&L'!H20 -> 3709 | I18: ='TE_P&L'!I20+'LE_P&L'!I20 -> 3709
B19: Miscellaneous Income | D19: ='TE_P&L'!D21+'LE_P&L'!D21 -> 1854 | E19: ='TE_P&L'!E21+'LE_P&L'!E21 -> 1937.02 | F19: ='TE_P&L'!F21+'LE_P&L'!F21 -> 0 | G19: ='TE_P&L'!G21+'LE_P&L'!G21 -> 0 | H19: ='TE_P&L'!H21+'LE_P&L'!H21 -> 0 | I19: ='TE_P&L'!I21+'LE_P&L'!I21 -> 0
B20: Bad Debt | D20: ='TE_P&L'!D22+'LE_P&L'!D22 -> -2585.98 | E20: ='TE_P&L'!E22+'LE_P&L'!E22 -> -4931.39 | F20: ='TE_P&L'!F22+'LE_P&L'!F22 -> -12875.42 | G20: ='TE_P&L'!G22+'LE_P&L'!G22 -> -4431.25 | H20: ='TE_P&L'!H22+'LE_P&L'!H22 -> -4431.25 | I20: ='TE_P&L'!I22+'LE_P&L'!I22 -> -4431.25
D21: =SUM(D11:D20) -> 508368.2 | E21: 601622.71 | F21: 639559.22 | G21: 700147.01 | H21: 711373.19 | I21: 836227.59
B22: Operating Expenses
B23: Advertising | D23: ='TE_P&L'!D25+'LE_P&L'!D25 -> 407.33 | E23: ='TE_P&L'!E25+'LE_P&L'!E25 -> 1644.44 | F23: ='TE_P&L'!F25+'LE_P&L'!F25 -> 1049.33 | G23: ='TE_P&L'!G25+'LE_P&L'!G25 -> 1208.94 | H23: ='TE_P&L'!H25+'LE_P&L'!H25 -> 1175.23 | I23: ='TE_P&L'!I25+'LE_P&L'!I25 -> 1175.23
B24: Auto | D24: ='TE_P&L'!D26+'LE_P&L'!D26 -> 3504.36 | E24: ='TE_P&L'!E26+'LE_P&L'!E26 -> 6627.57 | F24: ='TE_P&L'!F26+'LE_P&L'!F26 -> 2689.78 | G24: ='TE_P&L'!G26+'LE_P&L'!G26 -> 1090.75 | H24: ='TE_P&L'!H26+'LE_P&L'!H26 -> 1105.04 | I24: ='TE_P&L'!I26+'LE_P&L'!I26 -> 1105.04
B25: Bank Expense | D25: ='TE_P&L'!D27+'LE_P&L'!D27 -> 122.95 | E25: ='TE_P&L'!E27+'LE_P&L'!E27 -> 846.3 | F25: ='TE_P&L'!F27+'LE_P&L'!F27 -> 861 | G25: ='TE_P&L'!G27+'LE_P&L'!G27 -> 967.75 | H25: ='TE_P&L'!H27+'LE_P&L'!H27 -> 980.8 | I25: ='TE_P&L'!I27+'LE_P&L'!I27 -> 980.8
B26: Equipment and Site Supplies | D26: ='TE_P&L'!D28+'LE_P&L'!D28 -> 2721.72 | E26: ='TE_P&L'!E28+'LE_P&L'!E28 -> 1997.71 | F26: ='TE_P&L'!F28+'LE_P&L'!F28 -> 3579.12 | G26: ='TE_P&L'!G28+'LE_P&L'!G28 -> 3464.49 | H26: ='TE_P&L'!H28+'LE_P&L'!H28 -> 3451.58 | I26: ='TE_P&L'!I28+'LE_P&L'!I28 -> 3451.58
B27: Landscaping and Groundskeeping | D27: ='TE_P&L'!D29+'LE_P&L'!D29 -> 2669.96 | E27: ='TE_P&L'!E29+'LE_P&L'!E29 -> 6475.32 | F27: ='TE_P&L'!F29+'LE_P&L'!F29 -> 14003.35 | G27: ='TE_P&L'!G29+'LE_P&L'!G29 -> 15805.18 | H27: ='TE_P&L'!H29+'LE_P&L'!H29 -> 15632.46 | I27: ='TE_P&L'!I29+'LE_P&L'!I29 -> 15632.46
B28: Licenses & Permits | D28: ='TE_P&L'!D30+'LE_P&L'!D30 -> 4316.68 | E28: ='TE_P&L'!E30+'LE_P&L'!E30 -> 3059.96 | F28: ='TE_P&L'!F30+'LE_P&L'!F30 -> 4997.61 | G28: ='TE_P&L'!G30+'LE_P&L'!G30 -> 3572.31 | H28: ='TE_P&L'!H30+'LE_P&L'!H30 -> 3629.67 | I28: ='TE_P&L'!I30+'LE_P&L'!I30 -> 3629.67
B29: Miscellaneous | D29: ='TE_P&L'!D31+'LE_P&L'!D31 -> 0 | E29: ='TE_P&L'!E31+'LE_P&L'!E31 -> 300 | F29: ='TE_P&L'!F31+'LE_P&L'!F31 -> 0 | G29: ='TE_P&L'!G31+'LE_P&L'!G31 -> 1322.97 | H29: ='TE_P&L'!H31+'LE_P&L'!H31 -> 1484.94 | I29: ='TE_P&L'!I31+'LE_P&L'!I31 -> 1484.94
B30: Office Expense | D30: ='TE_P&L'!D32+'LE_P&L'!D32 -> 2439.11 | E30: ='TE_P&L'!E32+'LE_P&L'!E32 -> 1873.77 | F30: ='TE_P&L'!F32+'LE_P&L'!F32 -> 5450.88 | G30: ='TE_P&L'!G32+'LE_P&L'!G32 -> 824.07 | H30: ='TE_P&L'!H32+'LE_P&L'!H32 -> 899.91 | I30: ='TE_P&L'!I32+'LE_P&L'!I32 -> 899.91
B31: Personnel Expense:
B32: Wages | D32: ='TE_P&L'!D34+'LE_P&L'!D34 -> 54756.28 | E32: ='TE_P&L'!E34+'LE_P&L'!E34 -> 61546.28 | F32: ='TE_P&L'!F34+'LE_P&L'!F34 -> 69065.13 | G32: ='TE_P&L'!G34+'LE_P&L'!G34 -> 66857.64 | H32: ='TE_P&L'!H34+'LE_P&L'!H34 -> 64620.25 | I32: ='TE_P&L'!I34+'LE_P&L'!I34 -> 64620.25
B33: Cell Phone Reimbursements | D33: ='TE_P&L'!D35+'LE_P&L'!D35 -> 1215 | E33: ='TE_P&L'!E35+'LE_P&L'!E35 -> 1482.5 | F33: ='TE_P&L'!F35+'LE_P&L'!F35 -> 1832.63 | G33: ='TE_P&L'!G35+'LE_P&L'!G35 -> 1781.27 | H33: ='TE_P&L'!H35+'LE_P&L'!H35 -> 1703.77 | I33: ='TE_P&L'!I35+'LE_P&L'!I35 -> 1703.77
B34: Benefits and Fees | D34: ='TE_P&L'!D36+'LE_P&L'!D36 -> 13299.3 | E34: ='TE_P&L'!E36+'LE_P&L'!E36 -> 14112.2 | F34: ='TE_P&L'!F36+'LE_P&L'!F36 -> 10578.85 | G34: ='TE_P&L'!G36+'LE_P&L'!G36 -> 14341.04 | H34: ='TE_P&L'!H36+'LE_P&L'!H36 -> 13755.27 | I34: ='TE_P&L'!I36+'LE_P&L'!I36 -> 13755.27
B35: Payroll Taxes | D35: ='TE_P&L'!D37+'LE_P&L'!D37 -> 5000.14 | E35: ='TE_P&L'!E37+'LE_P&L'!E37 -> 4975.2 | F35: ='TE_P&L'!F37+'LE_P&L'!F37 -> 6852.11 | G35: ='TE_P&L'!G37+'LE_P&L'!G37 -> 7174.81 | H35: ='TE_P&L'!H37+'LE_P&L'!H37 -> 6962.55 | I35: ='TE_P&L'!I37+'LE_P&L'!I37 -> 6962.55
B36: Workers Comp Insurance | D36: ='TE_P&L'!D38+'LE_P&L'!D38 -> 1527.86 | E36: ='TE_P&L'!E38+'LE_P&L'!E38 -> 2139.6 | F36: ='TE_P&L'!F38+'LE_P&L'!F38 -> 1043.59 | G36: ='TE_P&L'!G38+'LE_P&L'!G38 -> 1186.77 | H36: ='TE_P&L'!H38+'LE_P&L'!H38 -> 1167.55 | I36: ='TE_P&L'!I38+'LE_P&L'!I38 -> 1167.55
B37: Leasing Commission Park | D37: ='TE_P&L'!D39+'LE_P&L'!D39 -> 0 | E37: ='TE_P&L'!E39+'LE_P&L'!E39 -> 0 | F37: ='TE_P&L'!F39+'LE_P&L'!F39 -> 0 | G37: ='TE_P&L'!G39+'LE_P&L'!G39 -> 0 | H37: ='TE_P&L'!H39+'LE_P&L'!H39 -> 0 | I37: ='TE_P&L'!I39+'LE_P&L'!I39 -> 0
B38: Labor Concession | D38: ='TE_P&L'!D40+'LE_P&L'!D40 -> 0 | E38: ='TE_P&L'!E40+'LE_P&L'!E40 -> 0 | F38: ='TE_P&L'!F40+'LE_P&L'!F40 -> 0 | G38: ='TE_P&L'!G40+'LE_P&L'!G40 -> 0 | H38: ='TE_P&L'!H40+'LE_P&L'!H40 -> 0 | I38: ='TE_P&L'!I40+'LE_P&L'!I40 -> 0
B39: Contract Labor | D39: ='TE_P&L'!D41+'LE_P&L'!D41 -> 0 | E39: ='TE_P&L'!E41+'LE_P&L'!E41 -> 0 | F39: ='TE_P&L'!F41+'LE_P&L'!F41 -> 0 | G39: ='TE_P&L'!G41+'LE_P&L'!G41 -> 0 | H39: ='TE_P&L'!H41+'LE_P&L'!H41 -> 0 | I39: ='TE_P&L'!I41+'LE_P&L'!I41 -> 0
B40: Postage | D40: ='TE_P&L'!D42+'LE_P&L'!D42 -> 569.74 | E40: ='TE_P&L'!E42+'LE_P&L'!E42 -> 252.34 | F40: ='TE_P&L'!F42+'LE_P&L'!F42 -> 473.18 | G40: ='TE_P&L'!G42+'LE_P&L'!G42 -> 1339.39 | H40: ='TE_P&L'!H42+'LE_P&L'!H42 -> 1323.46 | I40: ='TE_P&L'!I42+'LE_P&L'!I42 -> 1323.46
B41: Professional Fees | D41: ='TE_P&L'!D43+'LE_P&L'!D43 -> 2265.78 | E41: ='TE_P&L'!E43+'LE_P&L'!E43 -> 568.71 | F41: ='TE_P&L'!F43+'LE_P&L'!F43 -> 4043.22 | G41: ='TE_P&L'!G43+'LE_P&L'!G43 -> 7546.88 | H41: ='TE_P&L'!H43+'LE_P&L'!H43 -> 7047.5 | I41: ='TE_P&L'!I43+'LE_P&L'!I43 -> 7047.5
B42: Repairs & Maintenance | D42: ='TE_P&L'!D44+'LE_P&L'!D44 -> 19417.36 | E42: ='TE_P&L'!E44+'LE_P&L'!E44 -> 17003.71 | F42: ='TE_P&L'!F44+'LE_P&L'!F44 -> 37046.68 | G42: ='TE_P&L'!G44+'LE_P&L'!G44 -> 35769.88 | H42: ='TE_P&L'!H44+'LE_P&L'!H44 -> 35113.86 | I42: ='TE_P&L'!I44+'LE_P&L'!I44 -> 35113.86
B43: Resident Concessions | D43: ='TE_P&L'!D45+'LE_P&L'!D45 -> 829.33 | E43: ='TE_P&L'!E45+'LE_P&L'!E45 -> 3900 | F43: ='TE_P&L'!F45+'LE_P&L'!F45 -> 1305 | G43: ='TE_P&L'!G45+'LE_P&L'!G45 -> 1919.84 | H43: ='TE_P&L'!H45+'LE_P&L'!H45 -> 1919.84 | I43: ='TE_P&L'!I45+'LE_P&L'!I45 -> 1919.84
B44: Telephone | D44: ='TE_P&L'!D46+'LE_P&L'!D46 -> 2247.62 | E44: ='TE_P&L'!E46+'LE_P&L'!E46 -> 3525.77 | F44: ='TE_P&L'!F46+'LE_P&L'!F46 -> 4451.32 | G44: ='TE_P&L'!G46+'LE_P&L'!G46 -> 4729.65 | H44: ='TE_P&L'!H46+'LE_P&L'!H46 -> 4757.03 | I44: ='TE_P&L'!I46+'LE_P&L'!I46 -> 4757.03
B45: Utilities:
B46: Electric - | D46: ='TE_P&L'!D48+'LE_P&L'!D48 -> 7362.28 | E46: ='TE_P&L'!E48+'LE_P&L'!E48 -> 7003.09 | F46: ='TE_P&L'!F48+'LE_P&L'!F48 -> 5125.67 | G46: ='TE_P&L'!G48+'LE_P&L'!G48 -> 4924.64 | H46: ='TE_P&L'!H48+'LE_P&L'!H48 -> 5176.39 | I46: ='TE_P&L'!I48+'LE_P&L'!I48 -> 5176.39
B47: Gas - | D47: ='TE_P&L'!D49+'LE_P&L'!D49 -> 1043.97 | E47: ='TE_P&L'!E49+'LE_P&L'!E49 -> 1017.08 | F47: ='TE_P&L'!F49+'LE_P&L'!F49 -> 966.49 | G47: ='TE_P&L'!G49+'LE_P&L'!G49 -> 1030.78 | H47: ='TE_P&L'!H49+'LE_P&L'!H49 -> 1057.78 | I47: ='TE_P&L'!I49+'LE_P&L'!I49 -> 1057.78
B48: Water -(3) | D48: ='TE_P&L'!D50+'LE_P&L'!D50 -> 46810.62 | E48: ='TE_P&L'!E50+'LE_P&L'!E50 -> 53225.43 | F48: ='TE_P&L'!F50+'LE_P&L'!F50 -> 69988.32 | G48: ='TE_P&L'!G50+'LE_P&L'!G50 -> 26845.65 | H48: ='TE_P&L'!H50+'LE_P&L'!H50 -> 27323.8 | I48: ='TE_P&L'!I50+'LE_P&L'!I50 -> 27323.8
B49: Sewer - | D49: ='TE_P&L'!D51+'LE_P&L'!D51 -> 0 | E49: ='TE_P&L'!E51+'LE_P&L'!E51 -> 0 | F49: ='TE_P&L'!F51+'LE_P&L'!F51 -> 0 | G49: ='TE_P&L'!G51+'LE_P&L'!G51 -> 0 | H49: ='TE_P&L'!H51+'LE_P&L'!H51 -> 0 | I49: ='TE_P&L'!I51+'LE_P&L'!I51 -> 0
B50: Trash - | D50: ='TE_P&L'!D52+'LE_P&L'!D52 -> 12969.33 | E50: ='TE_P&L'!E52+'LE_P&L'!E52 -> 10796.98 | F50: ='TE_P&L'!F52+'LE_P&L'!F52 -> 12441.75 | G50: ='TE_P&L'!G52+'LE_P&L'!G52 -> 12491.16 | H50: ='TE_P&L'!H52+'LE_P&L'!H52 -> 12492 | I50: ='TE_P&L'!I52+'LE_P&L'!I52 -> 12492
B51: Admin Fee - | D51: ='TE_P&L'!D53+'LE_P&L'!D53 -> 2247.62 | E51: ='TE_P&L'!E53+'LE_P&L'!E53 -> 405.3 | F51: ='TE_P&L'!F53+'LE_P&L'!F53 -> 565.65 | G51: ='TE_P&L'!G53+'LE_P&L'!G53 -> 339.15 | H51: ='TE_P&L'!H53+'LE_P&L'!H53 -> 244.39 | I51: ='TE_P&L'!I53+'LE_P&L'!I53 -> 244.39
B52: Insurance | D52: ='TE_P&L'!D54+'LE_P&L'!D54 -> 14325.54 | E52: ='TE_P&L'!E54+'LE_P&L'!E54 -> 14006.86 | F52: ='TE_P&L'!F54+'LE_P&L'!F54 -> 16537.84 | G52: ='TE_P&L'!G54+'LE_P&L'!G54 -> 20202.73 | H52: ='TE_P&L'!H54+'LE_P&L'!H54 -> 20513.48 | I52: ='TE_P&L'!I54+'LE_P&L'!I54 -> 20513.48
B53: Real Estate Taxes | D53: ='TE_P&L'!D55+'LE_P&L'!D55 -> 18948 | E53: ='TE_P&L'!E55+'LE_P&L'!E55 -> 23149.3 | F53: ='TE_P&L'!F55+'LE_P&L'!F55 -> 22844 | G53: ='TE_P&L'!G55+'LE_P&L'!G55 -> 22919 | H53: ='TE_P&L'!H55+'LE_P&L'!H55 -> 22974.47 | I53: ='TE_P&L'!I55+'LE_P&L'!I55 -> 22974.47
B54: Management Fee(4) | C54: 0.04 | D54: ='TE_P&L'!D56+'LE_P&L'!D56 -> 21144.87 | E54: ='TE_P&L'!E56+'LE_P&L'!E56 -> 25307.74 | F54: ='TE_P&L'!F56+'LE_P&L'!F56 -> 25582.3688 | G54: ='TE_P&L'!G56+'LE_P&L'!G56 -> 28147.2252 | H54: ='TE_P&L'!H56+'LE_P&L'!H56 -> 28596.2724 | I54: ='TE_P&L'!I56+'LE_P&L'!I56 -> 33449.1036
D55: =SUM(D23:D54) -> 242162.75 | E55: 267243.16 | F55: 323374.8688 | G55: 287803.9652 | H55: 285109.2924 | I55: 289962.1236
B56: Expense Margin | D56: =IFERROR(D55/D21,"") -> 0.4763530646 | E56: =IFERROR(E55/E21,"") -> 0.4442039098 | F56: 0.5056214635 | G56: =IFERROR(G55/G21,"") -> 0.4110621928 | H56: 0.4007872329 | I56: 0.3467502473
B58: Net Operating Income | D58: =+D21-D55 -> 266205.45 | E58: 334379.55 | F58: 316184.3512 | G58: =+G21-G55 -> 412343.0448 | H58: 426263.8976 | I58: 546265.4664
B60: (1) In-Place reflects the current rent roll annualized for base rent and other fixed charges and TTM expenses and other revenues
B61: (2) Yr 1 Proforma assumes average water usage per lot and average rate per gallon based on 2024 figures
B62: (3) Master meter was replaced in August 2024 after a nearby water main break; billing was inconsistent Aug–Oct due to meter read issues
B63: ="(4) Future management fees at "&TEXT(C54,"0.0%")&" of revenues" -> (4) Future management fees at 4.0% of revenues
B65: Home Revenues | D65: =+'TE_P&L'!D70+'LE_P&L'!D68 -> 317888.84 | E65: =+'TE_P&L'!E70+'LE_P&L'!E68 -> 451423.94 | F65: =+'TE_P&L'!F70+'LE_P&L'!F68 -> 466607.94 | G65: =+'TE_P&L'!G70+'LE_P&L'!G68 -> 537714.86 | H65: =+'TE_P&L'!H70+'LE_P&L'!H68 -> 530172.81 | I65: =+'TE_P&L'!I70+'LE_P&L'!I68 -> 543865.29
B66: Home Expenses | D66: =+'TE_P&L'!D71+'LE_P&L'!D69 -> 141186.13 | E66: =+'TE_P&L'!E71+'LE_P&L'!E69 -> 168823.08 | F66: =+'TE_P&L'!F71+'LE_P&L'!F69 -> 208826.83 | G66: =+'TE_P&L'!G71+'LE_P&L'!G69 -> 187076.4044 | H66: =+'TE_P&L'!H71+'LE_P&L'!H69 -> 187762.9824 | I66: =+'TE_P&L'!I71+'LE_P&L'!I69 -> 188150.8816
B67: Homes NOI | D67: =D65-D66 -> 176702.71 | E67: =E65-E66 -> 282600.86 | F67: 257781.11 | G67: 350638.4556 | H67: 342409.8276 | I67: 355714.4084
B69: (1) In-Place reflects the current rent roll annualized for home rent and other fixed charges and TTM expenses and other revenues
B70: ="(2) Future management fees at "&TEXT(C54,"0.0%")&" of revenues" -> (2) Future management fees at 4.0% of revenues

Sheet Payroll
B1: Tulsa Portfolio
B2: Payroll Detail - 2025
D6: Community Level | H6: Homes P&L | L6: Combined
B7: 2025 | D7: Trails | E7: Leisure | F7: Combined | H7: Trails | I7: Leisure | J7: Combined | L7: Total
B8: ='TE_P&L'!B33 -> Personnel Expense:
B9: ='TE_P&L'!B34 -> Wages | D9: =SUM('TE_P&L'!G34) -> 47049.62 | E9: ='LE_P&L'!G34 -> 19808.02 | F9: =SUM(D9:E9) -> 66857.64 | H9: 2882.16 | I9: 13233.41 | J9: =SUM(H9:I9) -> 16115.57 | L9: =F9+J9 -> 82973.21
B10: ='TE_P&L'!B35 -> Cell Phone Reimbursements | D10: =SUM('TE_P&L'!G35) -> 1331.25 | E10: ='LE_P&L'!G35 -> 450.02 | F10: =SUM(D10:E10) -> 1781.27 | H10: 53.97 | I10: 202.5 | J10: =SUM(H10:I10) -> 256.47 | L10: =F10+J10 -> 2037.74
B11: ='TE_P&L'!B36 -> Benefits and Fees | D11: =SUM('TE_P&L'!G36) -> 11396.05 | E11: ='LE_P&L'!G36 -> 2944.99 | F11: 14341.04 | H11: 325.94 | I11: 2192 | J11: 2517.94 | L11: 16858.98
B12: ='TE_P&L'!B37 -> Payroll Taxes | D12: =SUM('TE_P&L'!G37) -> 5377.42 | E12: ='LE_P&L'!G37 -> 1797.39 | F12: 7174.81 | H12: 252.14 | I12: 1102.64 | J12: 1354.78 | L12: 8529.59
B13: ='TE_P&L'!B38 -> Workers Comp Insurance | D13: =SUM('TE_P&L'!G38) -> 726.53 | E13: ='LE_P&L'!G38 -> 460.24 | F13: 1186.77 | H13: 78.68 | I13: 362.29 | J13: 440.97 | L13: 1627.74
B14: Leasing Commissions | D14: =SUM('TE_P&L'!G39) -> 0 | E14: ='LE_P&L'!G39 -> 0 | F14: 0 | H14: 14407.5 | I14: 8500 | J14: 22907.5 | L14: 22907.5 | M14: Should be much smaller going forward as parks are now full.
D15: =SUM(D9:D14) -> 65880.87 | E15: =SUM(E9:E14) -> 25460.66 | F15: =SUM(F9:F14) -> 91341.53 | H15: =SUM(H9:H14) -> 18000.39 | I15: =SUM(I9:I14) -> 25592.84 | J15: =SUM(J9:J14) -> 43593.23 | L15: =SUM(L9:L14) -> 134934.76
B18: New Buyer Staffing | D18: Per Hour | E18: Hours | F18: Wages
B19: Manager | D19: 19 | E19: =52*40 -> 2080 | F19: =D19*E19 -> 39520
B20: Maintenance | D20: 19 | E20: =E19 -> 2080 | F20: =D20*E20 -> 39520
D21: =F21/E21 -> 19 | E21: =SUM(E19:E20) -> 4160 | F21: =SUM(F19:F20) -> 79040

Sheet Trails End-->

Sheet TE_P&L
B1: Trails End | H1: =EOMONTH(H6,-12) -> 2025-01-31
B2: Historical Financials
B4: Total Lots | C4: =+TE_BSR!$A$81 -> 71
H5: TTM
D6: 2022 | E6: 2023 | F6: 2024 | G6: 2025 | H6: 2026-01-31 | I6: In-Place(1) | K6: 2024-01-01 | L6: =EOMONTH(K6,1) -> 2024-02-29 | M6: 2024-03-31 | N6: 2024-04-30 | O6: 2024-05-31 | P6: 2024-06-30 | Q6: =EOMONTH(P6,1) -> 2024-07-31 | R6: =EOMONTH(Q6,1) -> 2024-08-31 | S6: =EOMONTH(R6,1) -> 2024-09-30 | T6: =EOMONTH(S6,1) -> 2024-10-31 | U6: =EOMONTH(T6,1) -> 2024-11-30 | V6: =EOMONTH(U6,1) -> 2024-12-31 | W6: =EOMONTH(V6,1) -> 2025-01-31 | X6: =EOMONTH(W6,1) -> 2025-02-28 | Y6: =EOMONTH(X6,1) -> 2025-03-31 | Z6: =EOMONTH(Y6,1) -> 2025-04-30 | AA6: =EOMONTH(Z6,1) -> 2025-05-31 | AB6: =EOMONTH(AA6,1) -> 2025-06-30 | AC6: 2025-07-31 | AD6: 2025-08-31 | AE6: 2025-09-30 | AF6: 2025-10-31 | AG6: 2025-11-30 | AH6: 2025-12-31 | AI6: 2026-01-31
B7: Average Occupied Lots | D7: 60.66666667 | E7: 59.83333333 | F7: =AVERAGE(K7:V7) -> 62 | G7: =AVERAGE(W7:AH7) -> 63.83333333 | H7: =(SUMIF($K$6:$AI$6,"<="&$H$6&"",$K7:$AI7)-SUMIF($K$6:$AI$6,"<="&$H$1&"",$K7:$AI7))/12 -> 64 | I7: =SUM(TE_BSR!A98:A99) -> 69 | K7: 55 | L7: 62 | M7: 66 | N7: 63 | O7: 63 | P7: 62 | Q7: 63 | R7: 63 | S7: 60 | T7: 63 | U7: 62 | V7: 62 | W7: 65 | X7: 66 | Y7: 61 | Z7: 65 | AA7: 65 | AB7: 63 | AC7: 63 | AD7: 62 | AE7: 62 | AF7: 64 | AG7: 64 | AH7: 66 | AI7: 67
B8: % Occupancy | D8: =+D7/$C$4 -> 0.8544600939 | E8: =+E7/$C$4 -> 0.8427230047 | F8: 0.8732394366 | G8: 0.8990610329 | H8: 0.9014084507 | I8: 0.9718309859 | K8: =IFERROR(K7/$C$4,0) -> 0.7746478873 | L8: =IFERROR(L7/$C$4,0) -> 0.8732394366 | M8: 0.9295774648 | N8: 0.8873239437 | O8: 0.8873239437 | P8: 0.8732394366 | Q8: 0.8873239437 | R8: 0.8873239437 | S8: 0.8450704225 | T8: 0.8873239437 | U8: 0.8732394366 | V8: 0.8732394366 | W8: 0.9154929577 | X8: 0.9295774648 | Y8: 0.8591549296 | Z8: 0.9154929577 | AA8: 0.9154929577 | AB8: 0.8873239437 | AC8: 0.8873239437 | AD8: 0.8732394366 | AE8: 0.8732394366 | AF8: 0.9014084507 | AG8: 0.9014084507 | AH8: 0.9295774648 | AI8: =IFERROR(AI7/$C$4,0) -> 0.9436619718
B9: Average Rents | D9: =IFERROR(D12/D7/12,"") -> 411.5108929 | E9: 455.8417549 | F9: =IFERROR(F12/F7/12,"") -> 472.5237231 | G9: =IFERROR(G12/G7/12,"") -> 497.4114491 | H9: =IFERROR(H12/H7/12,"") -> 504.0226823 | I9: =IFERROR(I12/I7/12,"") -> 554.4927536 | K9: =IFERROR(K12/K7,"") -> 474 | L9: =IFERROR(L12/L7,"") -> 450.8925806 | M9: 474.5406061 | N9: 479.2063492 | O9: 475.6988889 | P9: 468.8709677 | Q9: 471.4566667 | R9: 478.6507937 | S9: 478.25 | T9: 459.608254 | U9: 473.9785484 | V9: 485.32 | W9: 471.814 | X9: 487.5433333 | Y9: 502.6837705 | Z9: 485.9103077 | AA9: 498.3076923 | AB9: 498.3333333 | AC9: 487.5806349 | AD9: 495.1430645 | AE9: 497.5672581 | AF9: 509.609375 | AG9: 521.40625 | AH9: 513.4530303 | AI9: =IFERROR(AI12/AI7,"") -> 548.360597
B11: Revenues
B12: MH Lot Rent | D12: 299579.93 | E12: 327294.38 | F12: =SUM(K12:V12) -> 351557.65 | G12: =SUM(W12:AH12) -> 381017.17 | H12: =SUMIF($K$6:$AI$6,"<="&$H$6&"",$K12:$AI12)-SUMIF($K$6:$AI$6,"<="&$H$1&"",$K12:$AI12) -> 387089.42 | I12: =+TE_BSR!E81*12 -> 459120 | K12: 26070 | L12: 27955.34 | M12: 31319.68 | N12: 30190 | O12: 29969.03 | P12: 29070 | Q12: 29701.77 | R12: 30155 | S12: 28695 | T12: 28955.32 | U12: 29386.67 | V12: 30089.84 | W12: 30667.91 | X12: 32177.86 | Y12: 30663.71 | Z12: 31584.17 | AA12: 32390 | AB12: 31395 | AC12: 30717.58 | AD12: 30698.87 | AE12: 30849.17 | AF12: 32615 | AG12: 33370 | AH12: 33887.9 | AI12: 36740.16
B13: Shed Income | D13: 20115.16 | E13: 23824.11 | F13: =SUM(K13:V13) -> 26689.14 | G13: =SUM(W13:AH13) -> 29128.18 | H13: =SUMIF($K$6:$AI$6,"<="&$H$6&"",$K13:$AI13)-SUMIF($K$6:$AI$6,"<="&$H$1&"",$K13:$AI13) -> 29618.02 | I13: =+TE_BSR!F81*12 -> 33660 | K13: 1760 | L13: 2019.82 | M13: 2257.26 | N13: 2276.67 | O13: 2271.78 | P13: 2185 | Q13: 2249.68 | R13: 2290 | S13: 2140 | T13: 2688.87 | U13: 2281.67 | V13: 2268.39 | W13: 2281.29 | X13: 2422.14 | Y13: 2203.87 | Z13: 2445 | AA13: 2470 | AB13: 2435 | AC13: 2360.81 | AD13: 2393.71 | AE13: 2373.33 | AF13: 2555 | AG13: 2554 | AH13: 2634.03 | AI13: 2771.13
B14: Utility Reimbursements:
B15: Water Recap | D15: =+IFERROR(D17/D52,0) -> 0 | E15: =+IFERROR(E17/E52,0) -> 0 | F15: 0 | G15: 0 | H15: 0 | I15: 0 | K15: 0 | L15: 0 | M15: 0 | N15: 0 | O15: 0 | P15: 0 | Q15: 0 | R15: 0 | S15: 0 | T15: 0 | U15: 0 | V15: 0 | W15: 0 | X15: 0 | Y15: 0 | Z15: 0 | AA15: 0 | AB15: 0 | AC15: 0 | AD15: 0 | AE15: 0 | AF15: 0 | AG15: 0 | AH15: 0 | AI15: =+IFERROR(AI17/AI52,0) -> 0
B16: Electric + | D16: 0 | E16: 0 | F16: =SUM(K16:V16) -> 0 | G16: =SUM(W16:AH16) -> 0 | H16: =SUMIF($K$6:$AI$6,"<="&$H$6&"",$K16:$AI16)-SUMIF($K$6:$AI$6,"<="&$H$1&"",$K16:$AI16) -> 0 | I16: =H16 -> 0 | K16: 0 | L16: 0 | M16: 0 | N16: 0 | O16: 0 | P16: 0 | Q16: 0 | R16: 0 | S16: 0 | T16: 0 | U16: 0 | V16: 0 | W16: 0 | X16: 0 | Y16: 0 | Z16: 0 | AA16: 0 | AB16: 0 | AC16: 0 | AD16: 0 | AE16: 0 | AF16: 0 | AG16: 0 | AH16: 0 | AI16: 0
B17: Water + | D17: 0 | E17: 0 | F17: 0 | G17: 0 | H17: 0 | I17: =H17 -> 0 | K17: 0 | L17: 0 | M17: 0 | N17: 0 | O17: 0 | P17: 0 | Q17: 0 | R17: 0 | S17: 0 | T17: 0 | U17: 0 | V17: 0 | W17: 0 | X17: 0 | Y17: 0 | Z17: 0 | AA17: 0 | AB17: 0 | AC17: 0 | AD17: 0 | AE17: 0 | AF17: 0 | AG17: 0 | AH17: 0 | AI17: 0
B18: Trash + | D18: 0 | E18: 144 | F18: 313 | G18: 422 | H18: 437 | I18: =+TE_BSR!H81*12 -> 468 | K18: 25 | L18: 36 | M18: 24 | N18: 36 | O18: 24 | P18: 24 | Q18: 24 | R18: 24 | S18: 24 | T18: 24 | U18: 24 | V18: 24 | W18: 24 | X18: 24 | Y18: 24 | Z18: 38 | AA18: 39 | AB18: 39 | AC18: 39 | AD18: 39 | AE18: 39 | AF18: 39 | AG18: 39 | AH18: 39 | AI18: 39
B19: Fee Income | D19: 8720.29 | E19: 16940 | F19: 18980 | G19: 15039 | H19: 15909 | I19: 15909 | K19: 1645 | L19: 1205 | M19: 1135 | N19: 920 | O19: 1320 | P19: 3210 | Q19: 2305 | R19: 1205 | S19: 1495 | T19: 1560 | U19: 2195 | V19: 785 | W19: 1020 | X19: 1550 | Y19: 1410 | Z19: 485 | AA19: 1170 | AB19: 1125 | AC19: 1010 | AD19: 2104 | AE19: 2080 | AF19: 1275 | AG19: 1025 | AH19: 785 | AI19: 1890
B20: Application Fee Income | D20: 1110 | E20: 2135 | F20: 1612 | G20: 2345 | H20: 2064 | I20: 2064 | K20: 142 | L20: 0 | M20: 0 | N20: 105 | O20: 140 | P20: 105 | Q20: 210 | R20: 0 | S20: 420 | T20: 420 | U20: 70 | V20: 0 | W20: 351 | X20: 104 | Y20: 420 | Z20: 105 | AA20: 0 | AB20: 0 | AC20: 210 | AD20: 455 | AE20: 315 | AF20: 210 | AG20: 70 | AH20: 105 | AI20: 70
B21: Miscellaneous Income | D21: 1639 | E21: 1812.02 | F21: 0 | G21: 0 | H21: 0 | I21: 0 | K21: 0 | L21: 0 | M21: 0 | N21: 0 | O21: 0 | P21: 0 | Q21: 0 | R21: 0 | S21: 0 | T21: 0 | U21: 0 | V21: 0 | W21: 0 | X21: 0 | Y21: 0 | Z21: 0 | AA21: 0 | AB21: 0 | AC21: 0 | AD21: 0 | AE21: 0 | AF21: 0 | AG21: 0 | AH21: 0 | AI21: 0
B22: Bad Debt | D22: -2496 | E22: -3838.26 | F22: -9474 | G22: -1286.5 | H22: -1286.5 | I22: -1286.5 | K22: 0 | L22: -1903 | M22: 0 | N22: 0 | O22: -2077 | P22: -833 | Q22: 0 | R22: -2165 | S22: -175 | T22: -1140 | U22: -150 | V22: -1031 | W22: 0 | X22: 0 | Y22: -666 | Z22: 0 | AA22: 0 | AB22: 1313.5 | AC22: -1814 | AD22: -10 | AE22: 0 | AF22: 0 | AG22: -233 | AH22: 123 | AI22: 0
D23: =SUM(D12:D13,D16:D22) -> 328668.38 | E23: =SUM(E12:E13,E16:E22) -> 368311.25 | F23: 389677.79 | G23: 426664.85 | H23: 433830.94 | I23: 509934.5 | K23: =SUM(K12:K13,K16:K22) -> 29642 | L23: =SUM(L12:L13,L16:L22) -> 29313.16 | M23: 34735.94 | N23: 33527.67 | O23: 31647.81 | P23: 33761 | Q23: 34490.45 | R23: 31509 | S23: 32599 | T23: 32508.19 | U23: 33807.34 | V23: 32136.23 | W23: 34344.2 | X23: 36278 | Y23: 34055.58 | Z23: 34657.17 | AA23: 36069 | AB23: 36307.5 | AC23: 32523.39 | AD23: 35680.58 | AE23: 35656.5 | AF23: 36694 | AG23: 36825 | AH23: 37573.93 | AI23: =SUM(AI12:AI13,AI16:AI22) -> 41510.29
B24: Operating Expenses
B25: Advertising | D25: 0 | E25: 928.26 | F25: =SUM(K25:V25) -> 600.79 | G25: =SUM(W25:AH25) -> 548.41 | H25: =SUMIF($K$6:$AI$6,"<="&$H$6&"",$K25:$AI25)-SUMIF($K$6:$AI$6,"<="&$H$1&"",$K25:$AI25) -> 531.48 | I25: =H25 -> 531.48 | K25: 33.46 | L25: 16.96 | M25: 255.52 | N25: 29.48 | O25: 143.51 | P25: 37.05 | Q25: 17.17 | R25: 17.21 | S25: 17.08 | T25: 16.95 | U25: 16.08 | V25: 0.32 | W25: 32.25 | X25: 29.01 | Y25: 63.8 | Z25: 27.76 | AA25: 248.57 | AB25: 14.96 | AC25: 14.73 | AD25: 15.88 | AE25: 15.76 | AF25: 56.3 | AG25: 14.75 | AH25: 14.64 | AI25: 15.32
B26: Auto | D26: 2106.09 | E26: 5333.81 | F26: =SUM(K26:V26) -> 1710.02 | G26: 1013.1 | H26: 1027.9 | I26: =H26 -> 1027.9 | K26: 123.58 | L26: 76.84 | M26: 194.9 | N26: 294.95 | O26: 180.02 | P26: 97.32 | Q26: 179.61 | R26: 80.76 | S26: 34.56 | T26: 74.94 | U26: 71.54 | V26: 301 | W26: 4.27 | X26: 3.95 | Y26: 47.38 | Z26: 5.67 | AA26: 34.21 | AB26: 53.89 | AC26: 5.61 | AD26: 22.46 | AE26: 419.16 | AF26: 392.45 | AG26: 17.93 | AH26: 6.12 | AI26: 19.07
B27: Bank Expense | D27: 80.35 | E27: 541.85 | F27: 523.15 | G27: 574.35 | H27: 578.4 | I27: 578.4 | K27: 40.4 | L27: 43.25 | M27: 41.35 | N27: 40.2 | O27: 40.3 | P27: 45.05 | Q27: 32.5 | R27: 54.1 | S27: 42.1 | T27: 50.85 | U27: 38.3 | V27: 54.75 | W27: 45.9 | X27: 50.95 | Y27: 0 | Z27: 88.9 | AA27: 49.95 | AB27: 56.95 | AC27: 46.95 | AD27: 55.95 | AE27: 51.95 | AF27: 43.95 | AG27: 44.95 | AH27: 37.95 | AI27: 49.95
B28: Equipment and Site Supplies | D28: 2428.56 | E28: 1573.16 | F28: 2936.63 | G28: 729 | H28: 745.09 | I28: 745.09 | K28: 0 | L28: 23.98 | M28: 603.74 | N28: 135.35 | O28: 1147.11 | P28: 167.6 | Q28: 391.63 | R28: 0 | S28: 0.27 | T28: 203.16 | U28: 1.02 | V28: 262.77 | W28: 0 | X28: 0 | Y28: 67.35 | Z28: 0 | AA28: 116.45 | AB28: 102.55 | AC28: 76.42 | AD28: 53.75 | AE28: 49.95 | AF28: 54.79 | AG28: 175.56 | AH28: 32.18 | AI28: 16.09
B29: Landscaping and Groundskeeping | D29: 1947.87 | E29: 1155.32 | F29: 8791.25 | G29: 8047.93 | H29: 7248.21 | I29: =H29 -> 7248.21 | K29: 350 | L29: 364.7 | M29: 318.05 | N29: 2154 | O29: 1982.08 | P29: 865.35 | Q29: 852 | R29: 850 | S29: 864.02 | T29: 190.05 | U29: 1 | V29: 0 | W29: 1616.53 | X29: 0 | Y29: -1600 | Z29: 66.85 | AA29: 1839.66 | AB29: 0 | AC29: 3525 | AD29: 1700.01 | AE29: 0 | AF29: 876.99 | AG29: 22.89 | AH29: 0 | AI29: 816.81
B30: Licenses & Permits | D30: 4115.13 | E30: 2075.87 | F30: 4972.04 | G30: 3443.6 | H30: 3443.6 | I30: 3443.6 | K30: 162.8 | L30: 162.8 | M30: 162.8 | N30: 525.71 | O30: 987.8 | P30: 162.83 | Q30: 0 | R30: 2110.84 | S30: 0 | T30: 693.41 | U30: 0 | V30: 3.05 | W30: 0 | X30: 0 | Y30: 400 | Z30: 1500 | AA30: -1500 | AB30: 0 | AC30: 336.77 | AD30: 49.08 | AE30: 150 | AF30: 254 | AG30: 2253.75 | AH30: 0 | AI30: 0
B31: Miscellaneous | D31: 0 | E31: 300 | F31: 0 | G31: 970.92 | H31: 1079.21 | I31: 1079.21 | K31: 0 | L31: 0 | M31: 0 | N31: 0 | O31: 0 | P31: 0 | Q31: 0 | R31: 0 | S31: 0 | T31: 0 | U31: 0 | V31: 0 | W31: 0 | X31: 0 | Y31: 0 | Z31: 0 | AA31: 0 | AB31: 0 | AC31: 0 | AD31: 557.91 | AE31: 320.13 | AF31: 32.88 | AG31: 30 | AH31: 30 | AI31: 108.29
B32: Office Expense | D32: 1788.1 | E32: 1462.06 | F32: 4329.03 | G32: 372.61 | H32: 383.06 | I32: 383.06 | K32: 84.02 | L32: 285.1 | M32: 649.43 | N32: 275.85 | O32: 216.7 | P32: 317.71 | Q32: 251.63 | R32: 810.2 | S32: 948.39 | T32: 260.62 | U32: 131.33 | V32: 98.05 | W32: 14.61 | X32: 1.73 | Y32: 27 | Z32: 0 | AA32: 20.8 | AB32: 5.96 | AC32: 31.1 | AD32: 14.94 | AE32: 132.84 | AF32: 0 | AG32: 49.38 | AH32: 74.25 | AI32: 25.06
B33: Personnel Expense:
B34: Wages | D34: 44511.5 | E34: 45927.83 | F34: =SUM(K34:V34) -> 50609.23 | G34: =SUM(W34:AH34) -> 47049.62 | H34: =SUMIF($K$6:$AI$6,"<="&$H$6&"",$K34:$AI34)-SUMIF($K$6:$AI$6,"<="&$H$1&"",$K34:$AI34) -> 44477.42 | I34: =H34 -> 44477.42 | K34: 3779.24 | L34: 3765.28 | M34: 5641.8 | N34: 4599.73 | O34: 3796.55 | P34: 3556.42 | Q34: 3475.43 | R34: 5517.4 | S34: 3845.06 | T34: 3870.65 | U34: 3945.29 | V34: 4816.38 | W34: 3668.39 | X34: 3789.55 | Y34: 3114.31 | Z34: 3487.69 | AA34: 3255.19 | AB34: 3635.31 | AC34: 3288.56 | AD34: 5591.32 | AE34: 3525.65 | AF34: 3177.6 | AG34: 3990.37 | AH34: 6525.68 | AI34: 1096.19
B35: Cell Phone Reimbursements | D35: 981.25 | E35: 1192.5 | F35: 1364.97 | G35: 1331.25 | H35: 1254.75 | I35: 1254.75 | K35: 115 | L35: 115 | M35: 115 | N35: 115 | O35: 115 | P35: 110 | Q35: 115.32 | R35: 112.5 | S35: 114.65 | T35: 112.5 | U35: 112.5 | V35: 112.5 | W35: 112.5 | X35: 110 | Y35: 110 | Z35: 110 | AA35: 113.75 | AB35: 110 | AC35: 110 | AD35: 112.5 | AE35: 108.75 | AF35: 111.25 | AG35: 111.25 | AH35: 111.25 | AI35: 36
B36: Benefits and Fees | D36: 11817.39 | E36: 12322.96 | F36: 9166.22 | G36: 11396.05 | H36: 10742.41 | I36: 10742.41 | K36: 794.47 | L36: 878.03 | M36: 858.39 | N36: 832.03 | O36: 870.02 | P36: 871.73 | Q36: 884.4 | R36: 886 | S36: 236.43 | T36: 193.37 | U36: 893.92 | V36: 967.43 | W36: 952.73 | X36: 969.54 | Y36: 943.51 | Z36: 945.46 | AA36: 944.34 | AB36: 928.81 | AC36: 933.52 | AD36: 1007.56 | AE36: 916.75 | AF36: 922.98 | AG36: 917.85 | AH36: 1013 | AI36: 299.09
B37: Payroll Taxes | D37: 4118.63 | E37: 3793.94 | F37: 5159.51 | G37: 5377.42 | H37: 5115.11 | I37: 5115.11 | K37: 333.76 | L37: 376.33 | M37: 737.3 | N37: 420.07 | O37: 557.77 | P37: 295.82 | Q37: 336.73 | R37: 449.37 | S37: 324.22 | T37: 399.45 | U37: 464.68 | V37: 464.01 | W37: 389.41 | X37: 527.76 | Y37: 428.3 | Z37: 576.05 | AA37: 395.74 | AB37: 319.88 | AC37: 288.51 | AD37: 643.19 | AE37: 343.13 | AF37: 407.77 | AG37: 448.87 | AH37: 608.81 | AI37: 127.1
B38: Workers Comp Insurance | D38: 1049.48 | E38: 1580.86 | F38: 642.5 | G38: 726.53 | H38: 693.99 | I38: 693.99 | K38: 43.01 | L38: 51.14 | M38: 98.52 | N38: 61.6 | O38: 75.54 | P38: 75.54 | Q38: 75.54 | R38: 75.54 | S38: -226.62 | T38: 191.58 | U38: 56.97 | V38: 64.14 | W38: 65.95 | X38: 61.03 | Y38: 51.51 | Z38: 58.4 | AA38: 47.86 | AB38: 39.99 | AC38: 36.08 | AD38: 97.32 | AE38: 52.4 | AF38: 64.13 | AG38: 70.42 | AH38: 81.44 | AI38: 33.41
B39: Leasing Commission Park | D39: 0 | E39: 0 | F39: 0 | G39: 0 | H39: 0 | I39: 0 | K39: 0 | L39: 0 | M39: 0 | N39: 0 | O39: 0 | P39: 0 | Q39: 0 | R39: 0 | S39: 0 | T39: 0 | U39: 0 | V39: 0 | W39: 0 | X39: 0 | Y39: 0 | Z39: 0 | AA39: 0 | AB39: 0 | AC39: 0 | AD39: 0 | AE39: 0 | AF39: 0 | AG39: 0 | AH39: 0 | AI39: 0
B40: Labor Concession | D40: 0 | E40: 0 | F40: 0 | G40: 0 | H40: 0 | I40: 0 | K40: 0 | L40: 0 | M40: 0 | N40: 0 | O40: 0 | P40: 0 | Q40: 0 | R40: 0 | S40: 0 | T40: 0 | U40: 0 | V40: 0 | W40: 0 | X40: 0 | Y40: 0 | Z40: 0 | AA40: 0 | AB40: 0 | AC40: 0 | AD40: 0 | AE40: 0 | AF40: 0 | AG40: 0 | AH40: 0 | AI40: 0
B41: Contract Labor | D41: 0 | E41: 0 | F41: 0 | G41: 0 | H41: 0 | I41: 0 | K41: 0 | L41: 0 | M41: 0 | N41: 0 | O41: 0 | P41: 0 | Q41: 0 | R41: 0 | S41: 0 | T41: 0 | U41: 0 | V41: 0 | W41: 0 | X41: 0 | Y41: 0 | Z41: 0 | AA41: 0 | AB41: 0 | AC41: 0 | AD41: 0 | AE41: 0 | AF41: 0 | AG41: 0 | AH41: 0 | AI41: 0
B42: Postage | D42: 192.09 | E42: 158.99 | F42: 342.76 | G42: 759.49 | H42: =SUMIF($K$6:$AI$6,"<="&$H$6&"",$K42:$AI42)-SUMIF($K$6:$AI$6,"<="&$H$1&"",$K42:$AI42) -> 730.72 | I42: 730.72 | K42: 67.25 | L42: 15.31 | M42: 41.56 | N42: 63.01 | O42: 10.57 | P42: 79.03 | Q42: 12.14 | R42: 5.75 | S42: 1.45 | T42: 4.83 | U42: 36.42 | V42: 5.44 | W42: 43.66 | X42: 29.99 | Y42: 96.04 | Z42: 50.64 | AA42: 68.58 | AB42: 127.59 | AC42: 3.67 | AD42: 0.72 | AE42: 63.55 | AF42: 81.41 | AG42: 117.31 | AH42: 76.33 | AI42: 14.89
B43: Professional Fees | D43: 654.81 | E43: -1278.9 | F43: 2568.17 | G43: 5842.06 | H43: 5362.34 | I43: 5362.34 | K43: 777.14 | L43: 609.13 | M43: -441.78 | N43: 364.05 | O43: -217.8 | P43: 133.16 | Q43: 300.89 | R43: 4.41 | S43: 391.42 | T43: 535.99 | U43: 63.6 | V43: 47.96 | W43: 345.93 | X43: -404.62 | Y43: 484.2 | Z43: 118.42 | AA43: 105.75 | AB43: -518.25 | AC43: 756.26 | AD43: 1714.11 | AE43: 1374.44 | AF43: 242.16 | AG43: 1071.74 | AH43: 551.92 | AI43: -133.79
B44: Repairs & Maintenance | D44: 17330.82 | E44: 14517.06 | F44: 33620.3 | G44: 32895.05 | H44: 32248.02 | I44: 32248.02 | K44: 1493.08 | L44: 979.14 | M44: 1818.37 | N44: 1573.29 | O44: 3709.36 | P44: 3428.24 | Q44: 3726.25 | R44: 3629.97 | S44: 1968.6 | T44: 5230.97 | U44: 2786.15 | V44: 3276.88 | W44: 2417.1 | X44: 1082.56 | Y44: 1978.3 | Z44: 2088.44 | AA44: 4904.88 | AB44: 1933.02 | AC44: 2677.77 | AD44: 3397.65 | AE44: 2290.69 | AF44: 2797.74 | AG44: 3900.51 | AH44: 3426.39 | AI44: 1770.07
B45: Resident Concessions | D45: 150 | E45: 2950 | F45: 995 | G45: 1919.84 | H45: 1919.84 | I45: 1919.84 | K45: 0 | L45: 0 | M45: 0 | N45: 0 | O45: 0 | P45: 0 | Q45: 0 | R45: 480 | S45: 465 | T45: 0 | U45: 50 | V45: 0 | W45: 0 | X45: 94.84 | Y45: 575 | Z45: 0 | AA45: 0 | AB45: 0 | AC45: 0 | AD45: 0 | AE45: 0 | AF45: 625 | AG45: 0 | AH45: 625 | AI45: 0
B46: Telephone | D46: 1475.82 | E46: 1698.52 | F46: 1867.39 | G46: 1970.61 | H46: 1981.66 | I46: 1981.66 | K46: 158.12 | L46: 158.12 | M46: 158.12 | N46: 157.48 | O46: 130.22 | P46: 157.48 | Q46: 158.05 | R46: 157.66 | S46: 157.66 | T46: 158.16 | U46: 158.16 | V46: 158.16 | W46: 158.33 | X46: 158.33 | Y46: 158.33 | Z46: 158.45 | AA46: 158.45 | AB46: 158.45 | AC46: 158.45 | AD46: 184.37 | AE46: 168.8 | AF46: 169.55 | AG46: 169.55 | AH46: 169.55 | AI46: 169.38
B47: Utilities: | H47: 0
B48: Electric - | D48: 7050.28 | E48: 5841.92 | F48: =SUM(K48:V48) -> 3930.68 | G48: =SUM(W48:AH48) -> 3884.18 | H48: 4184.19 | I48: =H48 -> 4184.19 | K48: 277.73 | L48: 275.69 | M48: 268.22 | N48: 252.7 | O48: 292.62 | P48: 407.37 | Q48: 387.36 | R48: 352.62 | S48: 397.76 | T48: 285.71 | U48: 380.71 | V48: 352.19 | W48: 317.5 | X48: 323.85 | Y48: 234.19 | Z48: 246.13 | AA48: 285.75 | AB48: 383.04 | AC48: 451.78 | AD48: 401.27 | AE48: 420.38 | AF48: 360.52 | AG48: 266.75 | AH48: 193.02 | AI48: 617.51
B49: Gas - | D49: 1043.97 | E49: 1017.08 | F49: 966.49 | G49: 1030.78 | H49: 1057.78 | I49: =H49 -> 1057.78 | K49: 259.99 | L49: 79.59 | M49: 81.23 | N49: 68.2 | O49: 51.76 | P49: 48.44 | Q49: 51.3 | R49: 51.28 | S49: 51.9 | T49: 53.08 | U49: 59.03 | V49: 110.69 | W49: 143.39 | X49: 114.33 | Y49: 93.9 | Z49: 64.41 | AA49: 59.68 | AB49: 53.13 | AC49: 56.51 | AD49: 56.64 | AE49: 55.96 | AF49: 57.43 | AG49: 69.38 | AH49: 206.02 | AI49: 170.39
B50: Water -(2) | D50: 28686 | E50: 38620.38 | F50: 49957 | G50: 6834 | H50: 6735 | I50: 6735 | K50: 5545 | L50: 5770 | M50: 5329 | N50: 5176 | O50: 4573 | P50: 4969 | Q50: 1099 | R50: 4987 | S50: 7507 | T50: 4987 | U50: -445 | V50: 460 | W50: 649 | X50: 649 | Y50: 550 | Z50: 575.3 | AA50: 478 | AB50: 515.7 | AC50: 532 | AD50: 622 | AE50: 559 | AF50: 523 | AG50: 577 | AH50: 604 | AI50: 550
B51: Sewer - | H51: 0
B52: Trash - | D52: 12038.46 | E52: 10536.4 | F52: =SUM(K52:V52) -> 12137 | G52: 12323.16 | H52: 12324 | I52: 12324 | K52: 1014 | L52: 1014 | M52: 1014 | N52: 983 | O52: 1014 | P52: 1014 | Q52: 1014 | R52: 1014 | S52: 1014 | T52: 1014 | U52: 1014 | V52: 1014 | W52: 1026.16 | X52: 1027 | Y52: 1027 | Z52: 1027 | AA52: 1027 | AB52: 1043.71 | AC52: 1010.29 | AD52: 1027 | AE52: 1027 | AF52: 1027 | AG52: 1027 | AH52: 1027 | AI52: 1027
B53: Admin Fee - | D53: 1475.82 | E53: 0 | F53: 0 | G53: 21.71 | H53: 21.71 | I53: 21.71 | K53: 0 | L53: 0 | M53: 0 | N53: 0 | O53: 0 | P53: 0 | Q53: 0 | R53: 0 | S53: 0 | T53: 0 | U53: 0 | V53: 0 | W53: 0 | X53: 0 | Y53: 0 | Z53: 0 | AA53: 0 | AB53: 21.71 | AC53: 0 | AD53: 0 | AE53: 0 | AF53: 0 | AG53: 0 | AH53: 0 | AI53: 0
B54: Insurance | D54: 10733.8 | E54: 9384.24 | F54: 10539.22 | G54: 12271.91 | H54: 12416.92 | I54: 12416.92 | K54: 830.97 | L54: 830.97 | M54: 830.97 | N54: 830.97 | O54: 830.97 | P54: 830.97 | Q54: 830.97 | R54: 830.97 | S54: 878.25 | T54: 1303.99 | U54: 854.61 | V54: 854.61 | W54: 854.61 | X54: 854.61 | Y54: 854.61 | Z54: 854.61 | AA54: 854.61 | AB54: 854.61 | AC54: 803.9 | AD54: 1371.32 | AE54: 1704.97 | AF54: 1088.02 | AG54: 1088.02 | AH54: 1088.02 | AI54: 999.62
B55: Real Estate Taxes | D55: 7747 | E55: 12065.3 | F55: 11661 | G55: 11735 | H55: 11790.37 | I55: 11790.37 | K55: 1071.67 | L55: 1071.67 | M55: 1071.67 | N55: 1071.67 | O55: 1071.67 | P55: 1071.67 | Q55: 1071.67 | R55: 1071.67 | S55: 1071.67 | T55: 869.72 | U55: 869.72 | V55: 276.53 | W55: 1020.34 | X55: 1020.34 | Y55: 1020.34 | Z55: 1020.34 | AA55: 1020.34 | AB55: 1020.34 | AC55: 1020.34 | AD55: 1020.34 | AE55: 1020.34 | AF55: 607.08 | AG55: 607.08 | AH55: 1337.78 | AI55: 1075.71
B56: Management Fee(3) | C56: 0.04 | D56: 13633.14 | E56: 15519.92 | F56: 15587.1116 | G56: 17134.934 | H56: 17421.5776 | I56: =+I23*$C56 -> 20397.38 | K56: =+K23*$C$56 -> 1185.68 | L56: =+L23*$C$56 -> 1172.5264 | M56: 1389.4376 | N56: 1341.1068 | O56: 1265.9124 | P56: 1350.44 | Q56: 1379.618 | R56: 1260.36 | S56: 1303.96 | T56: 1300.3276 | U56: 1352.2936 | V56: 1285.4492 | W56: 1373.768 | X56: 1451.12 | Y56: 1362.2232 | Z56: 1386.2868 | AA56: 1442.76 | AB56: 1452.3 | AC56: 1300.9356 | AD56: 1427.2232 | AE56: 1426.26 | AF56: 1536.1 | AG56: 1473 | AH56: 1502.9572 | AI56: =+AI23*$C$56 -> 1660.4116
D57: =SUM(D25:D56) -> 177156.36 | E57: 189219.33 | F57: 234977.4616 | G57: 190203.514 | H57: 185514.7576 | I57: 188490.56 | K57: =SUM(K25:K56) -> 18540.37 | L57: =SUM(L25:L56) -> 18135.5564 | M57: 21237.5976 | N57: 21365.4468 | O57: 22844.6824 | P57: 20092.22 | Q57: 16643.208 | R57: 24809.61 | S57: 21408.83 | T57: 22001.3076 | U57: 12912.3236 | V57: 14986.3092 | W57: 15252.328 | X57: 11944.87 | Y57: 12087.2932 | Z57: 14456.8068 | AA57: 15972.32 | AB57: 12313.65 | AC57: 17465.1556 | AD57: =SUM(AD25:AD56) -> 21144.5132 | AE57: 16197.86 | AF57: =SUM(AF25:AF56) -> 15510.1 | AG57: 18515.31 | AH57: =SUM(AH25:AH56) -> 19343.3072 | AI57: 10563.5716
B58: Expense Margin | D58: =IFERROR(D57/D23,"") -> 0.5390124843 | E58: =IFERROR(E57/E23,"") -> 0.5137484397 | F58: 0.6030045017 | G58: =IFERROR(G57/G23,"") -> 0.445791384 | H58: 0.4276199332 | I58: 0.3696368063 | K58: =IFERROR(K57/K23,"") -> 0.6254763511 | L58: 0.6186830898 | M58: 0.6114012634 | N58: 0.6372481834 | O58: 0.7218408604 | P58: 0.5951310684 | Q58: 0.4825454002 | R58: 0.7873817005 | S58: 0.6567327219 | T58: 0.676792759 | U58: 0.3819384666 | V58: 0.466336879 | W58: 0.4441020027 | X58: 0.3292593307 | Y58: 0.35492842 | Z58: 0.4171375447 | AA58: 0.4428268042 | AB58: 0.3391489362 | AC58: 0.5370029262 | AD58: 0.5926056471 | AE58: 0.4542750971 | AF58: 0.4226876329 | AG58: 0.5027918534 | AH58: 0.5148066013 | AI58: =IFERROR(AI57/AI23,"") -> 0.254480795
B60: Net Operating Income | D60: =+D23-D57 -> 151512.02 | E60: 179091.92 | F60: 154700.3284 | G60: 236461.336 | H60: 248316.1824 | I60: 321443.94 | K60: =+K23-K57 -> 11101.63 | L60: =+L23-L57 -> 11177.6036 | M60: 13498.3424 | N60: 12162.2232 | O60: 8803.1276 | P60: 13668.78 | Q60: 17847.242 | R60: 6699.39 | S60: 11190.17 | T60: 10506.8824 | U60: 20895.0164 | V60: 17149.9208 | W60: 19091.872 | X60: 24333.13 | Y60: 21968.2868 | Z60: 20200.3632 | AA60: 20096.68 | AB60: 23993.85 | AC60: 15058.2344 | AD60: =+AD23-AD57 -> 14536.0668 | AE60: 19458.64 | AF60: =+AF23-AF57 -> 21183.9 | AG60: 18309.69 | AH60: =+AH23-AH57 -> 18230.6228 | AI60: 30946.7184
B62: (1) In-Place reflects the current rent roll annualized for base rent and other fixed charges and TTM expenses and other revenues
B63: (2) Master meter was replaced in August 2024 after a nearby water main break; billing was inconsistent Aug–Oct due to meter read issues
B64: ="(3) Future management fees at "&TEXT(C56,"0.0%")&" of revenues" -> (3) Future management fees at 4.0% of revenues
B70: Home Revenues | D70: 238826.03 | E70: 320771.79 | F70: 320880.68 | G70: 353841.34 | H70: 349229.29 | I70: 363179.29
B71: Home Expenses | D71: 104693.8 | E71: 118153.86 | F71: 122872.56 | G71: 106342.5236 | H71: 106586.9416 | I71: 107144.9416
B72: Homes NOI | D72: =+D70-D71 -> 134132.23 | E72: 202617.93 | F72: 198008.12 | G72: 247498.8164 | H72: 242642.3484 | I72: 256034.3484
B74: (1) In-Place reflects the current rent roll annualized for home rent and other fixed charges and TTM expenses and other revenues

Sheet TE_BSR
A1: Bill Summary Report
A2: Cairn Communities
A3: Property: Trails End
A4: Data Source: Forecast
A5: Billing Period: 4/2026
A6: Ran On: 03/20/2026 11:45 AM
A8: Site Information | D8: Billing Summary | K8: Loan Summary
A9: Site | B9: Status | C9: Resident | D9: Balance Forward | E9: Base Rent | F9: Shed | G9: Home Rent | H9: Trash | I9: Total Charges | J9: Ending Balance | K9: Next Loan Due Date | L9: Loan Balance Forward | M9: Loan Total Charges | N9: Loan Ending Balance | O9: Grand Total Due - Rent and Loan
A10: 1 | B10: Park Owned - Rented | C10: Dakota Layne Johnston | D10: -50 | E10: 555 | F10: 50 | G10: 605 | H10: 0 | I10: 1210 | J10: 1160 | L10: 0 | N10: 0 | O10: 1160
A11: 2 | B11: Resident Occupied | C11: Judy Rutherford | D11: -450 | E11: 450 | F11: 0 | G11: 0 | H11: 0 | I11: 450 | J11: 0 | L11: 0 | N11: 0 | O11: 0
A12: 3 | B12: Vacant Site | D12: 0 | E12: 0 | F12: 0 | G12: 0 | H12: 0 | I12: 0 | J12: 0 | L12: 0 | N12: 0 | O12: 0
A13: 4 | B13: Resident Occupied | C13: Tina L Rollison | D13: 0 | E13: 535 | F13: 50 | G13: 0 | H13: 0 | I13: 585 | J13: 585 | L13: 0 | N13: 0 | O13: 585
A14: 5 | B14: Resident Occupied | C14: Rick Lacy | D14: 0 | E14: 525 | F14: 0 | G14: 0 | H14: 0 | I14: 525 | J14: 525 | L14: 0 | N14: 0 | O14: 525
A15: 6 | B15: Park Owned - LTO | C15: Shannon Parsons | D15: 0 | E15: 525 | F15: 35 | G15: 0 | H15: 0 | I15: 560 | J15: 560 | K15: 04/01/2026 | L15: 2 | M15: 400 | N15: 398 | O15: 958
A16: 7 | B16: Park Owned - LTO | C16: Trevor Goodson | D16: 615 | E16: 530 | F16: 35 | G16: 0 | H16: 0 | I16: 565 | J16: 1180 | K16: 04/01/2026 | L16: 410 | M16: 410 | N16: 820 | O16: 2000
A17: 8 | B17: Resident Occupied - LTO | C17: Edward Lee Fowler | D17: 0 | E17: 535 | F17: 50 | G17: 0 | H17: 0 | I17: 585 | J17: 585 | K17: 04/01/2026 | L17: 0 | M17: 525 | N17: 525 | O17: 1110
A18: 9 | B18: Resident Occupied - LTO | C18: Anthony Michael Weathers | D18: 0 | E18: 535 | F18: 50 | G18: 0 | H18: 0 | I18: 585 | J18: 585 | K18: 04/01/2026 | L18: 40 | M18: 495 | N18: 455 | O18: 1040
A19: 10 | B19: Park Owned - Rented | C19: Antonia Elizabeth Wagoner | D19: -1 | E19: 540 | F19: 50 | G19: 580 | H19: 0 | I19: 1170 | J19: 1169 | L19: 0 | N19: 0 | O19: 1169
A20: 10A | B20: Resident Occupied - LTO | C20: Kayden Haze Mitchell | D20: 0 | E20: 535 | F20: 50 | G20: 0 | H20: 0 | I20: 585 | J20: 585 | K20: 04/01/2026 | L20: 0 | M20: 495 | N20: 495 | O20: 1080
A21: 11 | B21: Resident Occupied - LTO | C21: Jackie L Ballard | D21: 0 | E21: 535 | F21: 50 | G21: 0 | H21: 0 | I21: 585 | J21: 585 | K21: 04/01/2026 | L21: 0 | M21: 495 | N21: 495 | O21: 1080
A22: 12 | B22: Resident Occupied - LTO | C22: Kimberly Ann Harrold | D22: 0 | E22: 625 | F22: 50 | G22: 0 | H22: 0 | I22: 675 | J22: 675 | K22: 04/01/2026 | L22: 1161 | M22: 420 | N22: 741 | O22: 1416
A23: 13 | B23: Resident Occupied - LTO | C23: Destiny Faith Tollette | D23: 0 | E23: 650 | F23: 50 | G23: 0 | H23: 0 | I23: 700 | J23: 700 | K23: 04/01/2026 | L23: 0 | M23: 395 | N23: 395 | O23: 1095
A24: 14 | B24: Resident Occupied - LTO | C24: Juan Ricardo Rodriguez | D24: 0 | E24: 625 | F24: 50 | G24: 0 | H24: 0 | I24: 675 | J24: 675 | K24: 04/01/2026 | L24: 0 | M24: 475 | N24: 475 | O24: 1150
A25: 15 | B25: Resident Occupied | C25: Terri J Harris | D25: 0 | E25: 515 | F25: 50 | G25: 0 | H25: 0 | I25: 565 | J25: 565 | L25: 0 | N25: 0 | O25: 565
A26: 16 | B26: Resident Occupied | C26: Lavelda Jessepe | D26: 0 | E26: 450 | F26: 35 | G26: 0 | H26: 0 | I26: 485 | J26: 485 | L26: 0 | N26: 0 | O26: 485
A27: 17 | B27: Park Owned - LTO | C27: Erica Drawbaugh | D27: 0 | E27: 540 | F27: 35 | G27: 0 | H27: 0 | I27: 575 | J27: 575 | K27: 04/01/2026 | L27: 15 | M27: 470 | N27: 455 | O27: 1030
A28: 18 | B28: Park Owned - LTO | C28: Kevin Bishop | D28: 0 | E28: 530 | F28: 35 | G28: 0 | H28: 0 | I28: 565 | J28: 565 | K28: 04/01/2026 | L28: 0 | M28: 435 | N28: 435 | O28: 1000
A29: 19 | B29: Resident Occupied - LTO | C29: Cody Micheal Tollette | D29: 0 | E29: 625 | F29: 50 | G29: 0 | H29: 0 | I29: 675 | J29: 675 | K29: 04/01/2026 | L29: 0 | M29: 385 | N29: 385 | O29: 1060
A30: 20 | B30: Park Owned - Rented | C30: Shawleigh Ann Hibbs | D30: 0 | E30: 535 | F30: 50 | G30: 615 | H30: 0 | I30: 1200 | J30: 1200 | L30: 0 | N30: 0 | O30: 1200
A31: 21 | B31: Resident Occupied - LTO | C31: Dylan Lloyd DeShong | D31: 0 | E31: 625 | F31: 50 | G31: 0 | H31: 0 | I31: 675 | J31: 675 | K31: 04/01/2026 | L31: 0 | M31: 445 | N31: 445 | O31: 1120
A32: 22 | B32: Resident Occupied - LTO | C32: Carlos Javier Duran | D32: 0 | E32: 500 | F32: 50 | G32: 0 | H32: 0 | I32: 550 | J32: 550 | K32: 04/01/2026 | L32: 0 | M32: 545 | N32: 545 | O32: 1095
A33: 23 | B33: Resident Occupied | C33: Christopher Nicholas Shanholtzer | D33: 0 | E33: 540 | F33: 0 | G33: 0 | H33: 0 | I33: 540 | J33: 540 | L33: 0 | N33: 0 | O33: 540
A34: 24 | B34: Resident Occupied - LTO | C34: Allyssa Louise Smith | D34: 0 | E34: 500 | F34: 50 | G34: 0 | H34: 0 | I34: 550 | J34: 550 | K34: 04/01/2026 | L34: 0 | M34: 545 | N34: 545 | O34: 1095
A35: 26 | B35: Resident Occupied - LTO | C35: Tanner Wade Cargill | D35: 0 | E35: 625 | F35: 50 | G35: 0 | H35: 0 | I35: 675 | J35: 675 | K35: 04/01/2026 | L35: 0 | M35: 395 | N35: 395 | O35: 1070
A36: 27 | B36: Park Owned - LTO | C36: Rodney Cox | D36: 0 | E36: 525 | F36: 35 | G36: 0 | H36: 0 | I36: 560 | J36: 560 | K36: 04/01/2026 | L36: 0 | M36: 410 | N36: 410 | O36: 970
A37: 28 | B37: Resident Occupied - LTO | C37: Jantae Eban Guerrero | D37: 0 | E37: 625 | F37: 50 | G37: 0 | H37: 0 | I37: 675 | J37: 675 | K37: 04/01/2026 | L37: 0 | M37: 425 | N37: 425 | O37: 1100
A38: 29 | B38: Park Owned - Rented | C38: Robert L Friend | D38: 0 | E38: 530 | F38: 50 | G38: 450 | H38: 0 | I38: 1030 | J38: 1030 | L38: 0 | N38: 0 | O38: 1030
A39: 30 | B39: Resident Occupied - LTO | C39: Summer Cathy Rose Addams | D39: 0 | E39: 650 | F39: 50 | G39: 0 | H39: 0 | I39: 700 | J39: 700 | K39: 04/01/2026 | L39: 0 | M39: 395 | N39: 395 | O39: 1095
A40: 31 | B40: Office | D40: 0 | E40: 0 | F40: 0 | G40: 0 | H40: 0 | I40: 0 | J40: 0 | L40: 0 | N40: 0 | O40: 0
A41: 33 | B41: Resident Occupied - LTO | C41: Robert E Smith | D41: 0 | E41: 535 | F41: 50 | G41: 0 | H41: 13 | I41: 598 | J41: 598 | K41: 04/01/2026 | L41: 0 | M41: 545 | N41: 545 | O41: 1143
A42: 34 | B42: Resident Occupied - LTO | C42: Destinee Brieone Brandelyn Gordon | D42: 0 | E42: 535 | F42: 50 | G42: 0 | H42: 0 | I42: 585 | J42: 585 | K42: 04/01/2026 | L42: 0 | M42: 595 | N42: 595 | O42: 1180
A43: 34B | B43: Park Owned - Rented | C43: Michael Ryan Overack | D43: -5 | E43: 585 | F43: 50 | G43: 630 | H43: 0 | I43: 1265 | J43: 1260 | L43: 0 | N43: 0 | O43: 1260
A44: 35 | B44: Resident Occupied | C44: Brooken Phillips | D44: 0 | E44: 515 | F44: 0 | G44: 0 | H44: 13 | I44: 528 | J44: 528 | L44: 0 | N44: 0 | O44: 528
A45: 36 | B45: Resident Occupied - LTO | C45: Michael Dawson Myers | D45: 0 | E45: 625 | F45: 50 | G45: 0 | H45: 0 | I45: 675 | J45: 675 | K45: 04/01/2026 | L45: 0 | M45: 455 | N45: 455 | O45: 1130
A46: 37 | B46: Resident Occupied - LTO | C46: Myron L Snyder | D46: 0 | E46: 625 | F46: 50 | G46: 0 | H46: 0 | I46: 675 | J46: 675 | K46: 04/01/2026 | L46: 0 | M46: 465 | N46: 465 | O46: 1140
A47: 38 | B47: Resident Occupied - LTO | C47: Kodey M Andrulis | D47: 0 | E47: 500 | F47: 50 | G47: 0 | H47: 0 | I47: 550 | J47: 550 | K47: 04/01/2026 | L47: 0 | M47: 535 | N47: 535 | O47: 1085
A48: 39 | B48: Resident Occupied - LTO | C48: Halie Nicole Nelson | D48: 0 | E48: 625 | F48: 50 | G48: 0 | H48: 0 | I48: 675 | J48: 675 | K48: 04/01/2026 | L48: 0 | M48: 405 | N48: 405 | O48: 1080
A49: 40 | B49: Resident Occupied - LTO | C49: Jeffery Duane Holden | D49: 0 | E49: 625 | F49: 50 | G49: 0 | H49: 0 | I49: 675 | J49: 675 | K49: 04/01/2026 | L49: 0 | M49: 325 | N49: 325 | O49: 1000
A50: 41 | B50: Resident Occupied - LTO | C50: Marcus Sequoyah Kimbrough | D50: 0 | E50: 650 | F50: 50 | G50: 0 | H50: 0 | I50: 700 | J50: 700 | K50: 04/01/2026 | L50: 0 | M50: 405 | N50: 405 | O50: 1105
A51: 42 | B51: Park Owned - Rented | C51: Casandra Nichole Goins | D51: 0 | E51: 515 | F51: 0 | G51: 480 | H51: 0 | I51: 995 | J51: 995 | L51: 0 | N51: 0 | O51: 995
A52: 42A | B52: Park Owned - Rented | C52: Aaron J Richburg | D52: 0 | E52: 540 | F52: 50 | G52: 605 | H52: 0 | I52: 1195 | J52: 1195 | L52: 0 | N52: 0 | O52: 1195
A53: 43 | B53: Park Owned - LTO | C53: Christopher Ward | D53: 0 | E53: 525 | F53: 35 | G53: 0 | H53: 0 | I53: 560 | J53: 560 | K53: 04/01/2026 | L53: 0 | M53: 330 | N53: 330 | O53: 890
A54: 44 | B54: Park Owned - LTO | C54: Matthew King | D54: 0 | E54: 540 | F54: 35 | G54: 0 | H54: 0 | I54: 575 | J54: 575 | K54: 04/01/2026 | L54: 0 | M54: 400 | N54: 400 | O54: 975
A55: 45 | B55: Resident Occupied - LTO | C55: Alexandria Yvonne Maestas | D55: 0 | E55: 535 | F55: 50 | G55: 0 | H55: 0 | I55: 585 | J55: 585 | K55: 04/01/2026 | L55: 0 | M55: 545 | N55: 545 | O55: 1130
A56: 46 | B56: Resident Occupied - LTO | C56: Monet Rain Peterson | D56: 0 | E56: 625 | F56: 50 | G56: 0 | H56: 0 | I56: 675 | J56: 675 | K56: 04/01/2026 | L56: 0 | M56: 175 | N56: 175 | O56: 850
A57: 47 | B57: Resident Occupied - LTO | C57: Mitchell Skot Skaggs | D57: 0 | E57: 535 | F57: 50 | G57: 0 | H57: 0 | I57: 585 | J57: 585 | K57: 04/01/2026 | L57: 0 | M57: 545 | N57: 545 | O57: 1130
A58: 48 | B58: Resident Occupied - LTO | C58: Ian Gregory Wiggs | D58: 0 | E58: 625 | F58: 50 | G58: 0 | H58: 0 | I58: 675 | J58: 675 | K58: 04/01/2026 | L58: 0 | M58: 405 | N58: 405 | O58: 1080
A59: 49 | B59: Resident Occupied | C59: Robin L Jacobs | D59: -6227.42 | E59: 550 | F59: 0 | G59: 0 | H59: 0 | I59: 550 | J59: -5677.42 | L59: 0 | N59: 0 | O59: -5677.42
A60: 50 | B60: Financed - Loan | C60: Stephanie Autumn Star Brixey | D60: 0 | E60: 535 | F60: 50 | G60: 0 | H60: 0 | I60: 585 | J60: 585 | L60: 0 | N60: 0 | O60: 585
A61: 50A | B61: Resident Occupied - LTO | C61: George Wesley Endinger III | D61: 0 | E61: 625 | F61: 50 | G61: 0 | H61: 0 | I61: 675 | J61: 675 | K61: 04/01/2026 | L61: 0 | M61: 375 | N61: 375 | O61: 1050
A62: 51 | B62: Resident Occupied - LTO | C62: Susan Kay Hensley | D62: 0 | E62: 625 | F62: 50 | G62: 0 | H62: 0 | I62: 675 | J62: 675 | K62: 04/01/2026 | L62: 0 | M62: 415 | N62: 415 | O62: 1090
A63: 52 | B63: Resident Occupied - LTO | C63: Sebastian James Durrett | D63: 0 | E63: 500 | F63: 50 | G63: 0 | H63: 0 | I63: 550 | J63: 550 | K63: 04/01/2026 | L63: 0 | M63: 515 | N63: 515 | O63: 1065
A64: 53 | B64: Park Owned - LTO | C64: Michael Shelton Ramer | D64: 0 | E64: 540 | F64: 40 | G64: 0 | H64: 0 | I64: 580 | J64: 580 | K64: 04/01/2026 | L64: 10 | M64: 490 | N64: 480 | O64: 1060
A65: 54 | B65: Resident Occupied - LTO | C65: Jana Jolynn Thomas | D65: -11.96 | E65: 650 | F65: 50 | G65: 0 | H65: 0 | I65: 700 | J65: 688.04 | K65: 04/01/2026 | L65: 0 | M65: 395 | N65: 395 | O65: 1083.04
A66: 55 | B66: Resident Occupied - LTO | C66: Emily Marie Carmichael | D66: 0 | E66: 625 | F66: 50 | G66: 0 | H66: 0 | I66: 675 | J66: 675 | K66: 04/01/2026 | L66: 70 | M66: 395 | N66: 325 | O66: 1000
A67: 55A | B67: Resident Occupied - LTO | C67: John Lee Carmichael | D67: 550 | E67: 500 | F67: 50 | G67: 0 | H67: 0 | I67: 550 | J67: 1100 | K67: 04/01/2026 | L67: 505 | M67: 505 | N67: 1010 | O67: 2110
A68: 56 | B68: Resident Occupied | C68: Fredie Hunter | D68: 0 | E68: 475 | F68: 0 | G68: 0 | H68: 0 | I68: 475 | J68: 475 | L68: 0 | N68: 0 | O68: 475
A69: 57 | B69: Park Owned - LTO | C69: Kaleb C Haikey | D69: 0 | E69: 530 | F69: 50 | G69: 0 | H69: 0 | I69: 580 | J69: 580 | K69: 04/01/2026 | L69: 0 | M69: 430 | N69: 430 | O69: 1010
A70: 58 | B70: Resident Occupied - LTO | C70: Jessica Marie Briggs | D70: 0 | E70: 500 | F70: 50 | G70: 0 | H70: 0 | I70: 550 | J70: 550 | K70: 04/01/2026 | L70: 460 | M70: 505 | N70: 45 | O70: 595
A71: 59 | B71: Park Owned - LTO | C71: Martha Marquez | D71: 0 | E71: 530 | F71: 35 | G71: 0 | H71: 0 | I71: 565 | J71: 565 | K71: 04/01/2026 | L71: 0 | M71: 430 | N71: 430 | O71: 995
A72: 60 | B72: Park Owned - LTO | C72: Marissa Nance | D72: 0 | E72: 525 | F72: 0 | G72: 0 | H72: 0 | I72: 525 | J72: 525 | K72: 04/01/2026 | L72: 0 | M72: 400 | N72: 400 | O72: 925
A73: 61 | B73: Resident Occupied | C73: Doyle Hammons | D73: 0 | E73: 475 | F73: 0 | G73: 0 | H73: 0 | I73: 475 | J73: 475 | L73: 0 | N73: 0 | O73: 475
A74: 62 | B74: Resident Occupied - LTO | C74: Austin Ray Johnson | D74: 0 | E74: 625 | F74: 50 | G74: 0 | H74: 0 | I74: 675 | J74: 675 | K74: 04/01/2026 | L74: 0 | M74: 485 | N74: 485 | O74: 1160
A75: 63 | B75: Resident Occupied | C75: Jose Enrique Vega-Perez | D75: 0 | E75: 540 | F75: 50 | G75: 0 | H75: 0 | I75: 590 | J75: 590 | L75: 0 | N75: 0 | O75: 590
A76: 64 | B76: Resident Occupied | C76: Shelly Morgan | D76: 0 | E76: 475 | F76: 0 | G76: 0 | H76: 0 | I76: 475 | J76: 475 | L76: 0 | N76: 0 | O76: 475
A77: 65 | B77: Financed - Loan | C77: Austin J Miles | D77: 0 | E77: 515 | F77: 50 | G77: 0 | H77: 0 | I77: 565 | J77: 565 | L77: 0 | N77: 0 | O77: 565
A78: 71 | B78: Financed - Loan | C78: Christina Michelle Rigney | D78: 0 | E78: 580 | F78: 50 | G78: 0 | H78: 13 | I78: 643 | J78: 643 | L78: 0 | N78: 0 | O78: 643
A79: 73 | B79: Park Owned - Rented | C79: James F Hurst | D79: 0 | E79: 540 | F79: 50 | G79: 715 | H79: 0 | I79: 1305 | J79: 1305 | L79: 0 | N79: 0 | O79: 1305
A80: 75 | B80: Resident Occupied - LTO | C80: Matthew Ryan Lessley | D80: 0 | E80: 525 | F80: 50 | G80: 0 | H80: 0 | I80: 575 | J80: 575 | K80: 04/01/2026 | L80: 0 | M80: 555 | N80: 555 | O80: 1130
A81: =COUNTA(A10:A80) -> 71 | D81: =SUM(D10:D80) -> -5580.38 | E81: =SUM(E10:E80) -> 38260 | F81: 2805 | G81: 4680 | H81: 39 | I81: 45784 | J81: 40203.62 | L81: =SUM(L10:L80) -> 2673 | M81: 20585 | N81: 21224 | O81: 61427.62
C83: Average Base Rents
A84: =COUNTIF($B$10:$B$80,B84) -> 1 | B84: Office | C84: =IFERROR(E84/A84,"") -> 0 | D84: =SUMIF($B$10:$B$80,$B84,D$10:D$80) -> 0 | E84: =SUMIF($B$10:$B$80,$B84,E$10:E$80) -> 0 | F84: 0 | G84: 0 | H84: 0 | I84: 0 | J84: 0 | L84: 0 | M84: 0 | N84: 0 | O84: 0
A85: =COUNTIF($B$10:$B$80,B85) -> 0 | B85: Abandoned | D85: =SUMIF($B$10:$B$80,$B85,D$10:D$80) -> 0 | E85: 0 | F85: 0 | G85: 0 | H85: 0 | I85: 0 | J85: 0 | L85: 0 | M85: 0 | N85: 0 | O85: 0
A86: 3 | B86: Financed - Loan | C86: 543.3333333 | D86: 0 | E86: 1630 | F86: 150 | G86: 0 | H86: 13 | I86: 1793 | J86: 1793 | L86: 0 | M86: 0 | N86: 0 | O86: 1793
A87: 11 | B87: Park Owned - LTO | C87: 530.9090909 | D87: 615 | E87: 5840 | F87: 370 | G87: 0 | H87: 0 | I87: 6210 | J87: 6825 | L87: 437 | M87: 4605 | N87: 4988 | O87: 11813
A88: 8 | B88: Park Owned - Rented | C88: 542.5 | D88: -56 | E88: 4340 | F88: 350 | G88: 4680 | H88: 0 | I88: 9370 | J88: 9314 | L88: 0 | M88: 0 | N88: 0 | O88: 9314
A89: 0 | B89: Park Owned - Vacant New | D89: 0 | E89: 0 | F89: 0 | G89: 0 | H89: 0 | I89: 0 | J89: 0 | L89: 0 | M89: 0 | N89: 0 | O89: 0
A90: 0 | B90: Park Owned - Vacant Old | D90: 0 | E90: 0 | F90: 0 | G90: 0 | H90: 0 | I90: 0 | J90: 0 | L90: 0 | M90: 0 | N90: 0 | O90: 0
A91: 12 | B91: Resident Occupied | C91: 503.75 | D91: -6677.42 | E91: 6045 | F91: 185 | G91: 0 | H91: 13 | I91: 6243 | J91: -434.42 | L91: 0 | M91: 0 | N91: 0 | O91: -434.42
A92: 35 | B92: Resident Occupied - LTO | C92: 583 | D92: 538.04 | E92: 20405 | F92: 1750 | G92: 0 | H92: 13 | I92: 22168 | J92: 22706.04 | L92: 2236 | M92: 15980 | N92: 16236 | O92: 38942.04
A93: 0 | B93: Unrentable | D93: 0 | E93: 0 | F93: 0 | G93: 0 | H93: 0 | I93: 0 | J93: 0 | L93: 0 | M93: 0 | N93: 0 | O93: 0
A94: 1 | B94: Vacant Site | C94: 0 | D94: 0 | E94: 0 | F94: 0 | G94: 0 | H94: 0 | I94: 0 | J94: 0 | L94: 0 | M94: 0 | N94: 0 | O94: 0
A95: =SUM(A84:A94) -> 71 | C95: 538.8732394 | D95: =SUM(D84:D94) -> -5580.38 | E95: =SUM(E84:E94) -> 38260 | F95: =SUM(F84:F94) -> 2805 | G95: 4680 | H95: 39 | I95: 45784 | J95: 40203.62 | L95: =SUM(L84:L94) -> 2673 | M95: =SUM(M84:M94) -> 20585 | N95: =SUM(N84:N94) -> 21224 | O95: =SUM(O84:O94) -> 61427.62
A97: =A84 -> 1 | B97: Office | C97: =IFERROR(E97/A97,"") -> 0 | D97: =D84 -> 0 | E97: 0 | F97: 0 | G97: 0 | H97: 0 | I97: 0 | J97: 0 | L97: =L84 -> 0 | M97: 0 | N97: 0 | O97: 0
A98: =A91 -> 12 | B98: =B91 -> Resident Occupied | C98: 503.75 | D98: =D91 -> -6677.42 | E98: 6045 | F98: 185 | G98: 0 | H98: 13 | I98: 6243 | J98: -434.42 | L98: =L91 -> 0 | M98: 0 | N98: 0 | O98: -434.42
A99: =SUM(A86:A88,A92) -> 57 | B99: Park Owned - Occupied | C99: 565.1754386 | D99: =SUM(D86:D88,D92) -> 1097.04 | E99: 32215 | F99: 2620 | G99: 4680 | H99: 26 | I99: 39541 | J99: 40638.04 | L99: =SUM(L86:L88,L92) -> 2673 | M99: 20585 | N99: 21224 | O99: 61862.04
A100: =SUM(A89:A90) -> 0 | B100: Park Owned - Vacant | D100: =SUM(D89:D90) -> 0 | E100: 0 | F100: 0 | G100: 0 | H100: 0 | I100: 0 | J100: 0 | L100: =SUM(L89:L90) -> 0 | M100: 0 | N100: 0 | O100: 0
A101: =SUM(A85,A93:A94) -> 1 | B101: Vacant | C101: 0 | D101: =SUM(D85,D93:D94) -> 0 | E101: 0 | F101: 0 | G101: 0 | H101: 0 | I101: 0 | J101: 0 | L101: =SUM(L85,L93:L94) -> 0 | M101: 0 | N101: 0 | O101: 0
A102: =SUM(A97:A101) -> 71 | C102: 538.8732394 | D102: =SUM(D97:D101) -> -5580.38 | E102: =SUM(E97:E101) -> 38260 | F102: 2805 | G102: 4680 | H102: 39 | I102: =SUM(I97:I101) -> 45784 | J102: =SUM(J97:J101) -> 40203.62 | L102: =SUM(L97:L101) -> 2673 | M102: 20585 | N102: 21224 | O102: 61427.62

Sheet TE_RR (hidden)
A1: Rent Roll
A2: Cairn Communities
A3: Trails End
A4: 27701 E Admiral Pl
A5: Catoosa, OK 74015
A6: Period: 10/2025
A7: Report Date: 10/01/2025 10:28 AM
D9: Current Charge Detail
A10: Site # | B10: Status | C10: Resident | D10: Base Rent | E10: Utilities | F10: Other Charges | G10: Other Credits | H10: Move In Date | I10: Security Deposit
A11: 1 | B11: MH: Park Owned - Rented | C11: Dakota Layne Johnston | D11: 555 | E11: 0 | F11: 730 | G11: 0 | H11: 2023-05-19 | I11: 1140
A12: 2 | B12: MH: Resident Occupied | C12: Judy Rutherford | D12: 415 | E12: 0 | F12: 0 | G12: 0 | H12: 2018-01-16 | I12: 0
A13: 3 | B13: MH: Vacant Site | D13: 0 | E13: 0 | F13: 0 | G13: 0 | I13: 0
A14: 4 | B14: MH: Resident Occupied | C14: Tina L Rollison | D14: 500 | E14: 0 | F14: 50 | G14: 0 | H14: 2024-12-09 | I14: 500
A15: 5 | B15: MH: Resident Occupied | C15: Rick Lacy | D15: 490 | E15: 0 | F15: 0 | G15: 0 | H15: 2018-01-16 | I15: 0
A16: 6 | B16: MH: Park Owned - LTO | C16: Shannon Parsons | D16: 490 | E16: 0 | F16: 35 | G16: 0 | H16: 2018-06-27 | I16: 0
A17: 7 | B17: MH: Park Owned - LTO | C17: Trevor Goodson | D17: 495 | E17: 0 | F17: 35 | G17: 0 | H17: 2020-07-01 | I17: 0
A18: 8 | B18: MH: Resident Occupied - LTO | C18: Edward Lee Fowler | D18: 500 | E18: 0 | F18: 50 | G18: 0 | H18: 2024-11-01 | I18: 0
A19: 9 | B19: MH: Resident Occupied - LTO | C19: Anthony Michael Weathers | D19: 500 | E19: 0 | F19: 80 | G19: 0 | H19: 2024-10-18 | I19: 0
A20: 10 | B20: MH: Park Owned - Rented | C20: Antonia Elizabeth Wagoner | D20: 510 | E20: 0 | F20: 625 | G20: 0 | H20: 2024-03-01 | I20: 547.5
A21: 10A | B21: MH: Resident Occupied - LTO | C21: Kayden Haze Mitchell | D21: 500 | E21: 0 | F21: 50 | G21: 0 | H21: 2024-07-22 | I21: 0
A22: 11 | B22: MH: Resident Occupied - LTO | C22: Jackie L Ballard | D22: 500 | E22: 0 | F22: 50 | G22: 0 | H22: 2024-10-28 | I22: 0
A23: 12 | B23: MH: Vacant Site | D23: 0 | E23: 0 | F23: 0 | G23: 0 | I23: 0
A24: 13 | B24: MH: Park Owned - Rented | C24: Myranda Cornell | D24: 510 | E24: 0 | F24: 700 | G24: 0 | H24: 2024-02-26 | I24: 585
A25: 14 | B25: MH: Resident Occupied - LTO | C25: Juan Ricardo Rodriguez | D25: 625 | E25: 0 | F25: 50 | G25: 0 | H25: 2025-07-23 | I25: 0
A26: 15 | B26: MH: Resident Occupied | C26: Terri J Harris | D26: 480 | E26: 0 | F26: 50 | G26: 0 | H26: 2024-05-03 | I26: 480
A27: 16 | B27: MH: Resident Occupied | C27: Lavelda Jessepe | D27: 415 | E27: 0 | F27: 35 | G27: 0 | H27: 2018-01-16 | I27: 0
A28: 17 | B28: MH: Park Owned - LTO | C28: Erica Drawbaugh | D28: 510 | E28: 0 | F28: 35 | G28: 0 | H28: 2020-12-11 | I28: 0
A29: 18 | B29: MH: Park Owned - LTO | C29: Kevin Bishop | D29: 495 | E29: 0 | F29: 35 | G29: 0 | H29: 2020-06-15 | I29: 0
A30: 19 | B30: MH: Park Owned - Rented | C30: Craig Totten | D30: 505 | E30: 0 | F30: 635 | G30: 0 | H30: 2023-10-27 | I30: 575
A31: 20 | B31: MH: Park Owned - Rented | C31: Shawleigh Ann Hibbs | D31: 535 | E31: 0 | F31: 765 | G31: 0 | H31: 2022-08-01 | I31: 1095
A32: 21 | B32: MH: Resident Occupied - LTO | C32: Dylan Lloyd DeShong | D32: 625 | E32: 0 | F32: 50 | G32: 0 | H32: 2025-08-11 | I32: 0
A33: 22 | B33: MH: Resident Occupied - LTO | C33: Carlos Javier Duran | D33: 500 | E33: 0 | F33: 80 | G33: 0 | H33: 2025-01-29 | I33: 0
A34: 23 | B34: MH: Resident Occupied | C34: Christopher Nicholas Shanholtzer | D34: 510 | E34: 0 | F34: 0 | G34: 0 | H34: 2023-07-20 | I34: 480
A35: 24 | B35: MH: Resident Occupied - LTO | C35: Allyssa Louise Smith | D35: 500 | E35: 0 | F35: 50 | G35: 0 | H35: 2025-02-01 | I35: 0
A36: 26 | B36: MH: Resident Occupied - LTO | C36: Tanner Wade Cargill | D36: 625 | E36: 0 | F36: 50 | G36: 0 | H36: 2025-09-23 | I36: 0
A37: 27 | B37: MH: Park Owned - LTO | C37: Rodney Cox | D37: 490 | E37: 0 | F37: 35 | G37: 0 | H37: 2019-05-26 | I37: 0
A38: 28 | B38: MH: Park Owned - Rented | C38: Angel Edmonds | D38: 580 | E38: 0 | F38: 690 | G38: 0 | H38: 2022-08-26 | I38: 1160
A39: 29 | B39: MH: Park Owned - Rented | C39: Robert L Friend | D39: 530 | E39: 0 | F39: 500 | G39: 0 | H39: 2024-07-01 | I39: 700
A40: 30 | B40: MH: Park Owned - Rented | C40: Melissa M Mooney | D40: 510 | E40: 0 | F40: 700 | G40: 0 | H40: 2024-02-23 | I40: 585
A41: 31 | B41: MH: Office | D41: 0 | E41: 0 | F41: 0 | G41: 0 | I41: 0
A42: 33 | B42: MH: Resident Occupied - LTO | C42: Robert E Smith | D42: 500 | E42: 0 | F42: 63 | G42: 0 | H42: 2024-10-15 | I42: 0
A43: 34 | B43: MH: Resident Occupied - LTO | C43: Destinee Brieone Brandelyn Gordon | D43: 500 | E43: 0 | F43: 50 | G43: 0 | H43: 2024-12-02 | I43: 0
A44: 34B | B44: MH: Park Owned - Rented | C44: Michael Ryan Overack | D44: 555 | E44: 0 | F44: 675 | G44: 0 | H44: 2023-03-03 | I44: 1160
A45: 35 | B45: MH: Resident Occupied | C45: Brooken Phillips | D45: 480 | E45: 0 | F45: 13 | G45: 0 | H45: 2018-11-01 | I45: 0
A46: 36 | B46: MH: Park Owned - Rented | C46: Jennifer Elaina Rossi | D46: 510 | E46: 0 | F46: 735 | G46: 0 | H46: 2023-12-14 | I46: 1200
A47: 37 | B47: MH: Vacant Site | D47: 0 | E47: 0 | F47: 0 | G47: 0 | I47: 0
A48: 38 | B48: MH: Resident Occupied - LTO | C48: Kodey M Andrulis | D48: 500 | E48: 0 | F48: 50 | G48: 0 | H48: 2025-01-31 | I48: 0
A49: 39 | B49: MH: Park Owned - Vacant New | D49: 0 | E49: 0 | F49: 0 | G49: 0 | I49: 0
A50: 40 | B50: MH: Park Owned - Vacant Old | D50: 0 | E50: 0 | F50: 0 | G50: 0 | I50: 0
A51: 41 | B51: MH: Resident Occupied - LTO | C51: Christopher Mark Chase | D51: 625 | E51: 0 | F51: 50 | G51: 0 | H51: 2025-09-16 | I51: 0
A52: 42 | B52: MH: Park Owned - Rented | C52: Casandra Nichole Goins | D52: 515 | E52: 0 | F52: 480 | G52: 0 | H52: 2022-05-13 | I52: 900
A53: 42A | B53: MH: Park Owned - Rented | C53: Aaron J Richburg | D53: 510 | E53: 0 | F53: 650 | G53: 0 | H53: 2024-02-16 | I53: 560
A54: 43 | B54: MH: Park Owned - LTO | C54: Christopher Ward | D54: 490 | E54: 0 | F54: 35 | G54: 0 | H54: 2019-08-06 | I54: 0
A55: 44 | B55: MH: Park Owned - LTO | C55: Matthew King | D55: 510 | E55: 0 | F55: 35 | G55: 0 | H55: 2021-01-11 | I55: 0
A56: 45 | B56: MH: Resident Occupied - LTO | C56: Alexandria Yvonne Maestas | D56: 500 | E56: 0 | F56: 50 | G56: 0 | H56: 2024-10-04 | I56: 0
A57: 46 | B57: MH: Park Owned - Rented | C57: Riley Anderson Lamb | D57: 500 | E57: 0 | F57: 445 | G57: 0 | H57: 2023-12-02 | I57: 920
A58: 47 | B58: MH: Resident Occupied - LTO | C58: Mitchell Skot Skaggs | D58: 500 | E58: 0 | F58: 50 | G58: 0 | H58: 2024-10-15 | I58: 0
A59: 48 | B59: MH: Resident Occupied - LTO | C59: Ian Gregory Wiggs | D59: 625 | E59: 0 | F59: 50 | G59: 0 | H59: 2025-07-25 | I59: 0
A60: 49 | B60: MH: Vacant Site | D60: 0 | E60: 0 | F60: 0 | G60: 0 | I60: 0
A61: 50 | B61: MH: Financed - Loan | C61: Stephanie Autumn Star Brixey | D61: 500 | E61: 0 | F61: 50 | G61: 0 | H61: 2024-07-05 | I61: 500
A62: 50A | B62: MH: Resident Occupied - LTO | C62: George Wesley Endinger III | D62: 625 | E62: 0 | F62: 50 | G62: 0 | H62: 2025-08-29 | I62: 0
A63: 51 | B63: MH: Resident Occupied - LTO | C63: Susan Kay Hensley | D63: 625 | E63: 0 | F63: 50 | G63: 0 | H63: 2025-09-13 | I63: 0
A64: 52 | B64: MH: Resident Occupied - LTO | C64: Sebastian James Durrett | D64: 500 | E64: 0 | F64: 50 | G64: 0 | H64: 2025-04-09 | I64: 0
A65: 53 | B65: MH: Park Owned - LTO | C65: Michael Shelton Ramer | D65: 510 | E65: 0 | F65: 40 | G65: 0 | H65: 2021-06-04 | I65: 0
A66: 54 | B66: MH: Park Owned - Rented | C66: Sarah M Goldesberry | D66: 510 | E66: 0 | F66: 655 | G66: 0 | H66: 2024-02-05 | I66: 560
A67: 55 | B67: MH: Resident Occupied - LTO | C67: Emily Marie Carmichael | D67: 625 | E67: 0 | F67: 1550 | G67: 0 | H67: 2025-10-01 | I67: 0
A68: 55A | B68: MH: Resident Occupied - LTO | C68: John Lee Carmichael | D68: 500 | E68: 0 | F68: 50 | G68: 0 | H68: 2025-03-11 | I68: 0
A69: 56 | B69: MH: Resident Occupied | C69: Fredie Hunter | D69: 440 | E69: 0 | F69: 0 | G69: 0 | H69: 2018-01-16 | I69: 0
A70: 57 | B70: MH: Park Owned - LTO | C70: Kaleb C Haikey | D70: 495 | E70: 0 | F70: 50 | G70: 0 | H70: 2020-07-16 | I70: 0
A71: 58 | B71: MH: Resident Occupied - LTO | C71: Jessica Marie Briggs | D71: 500 | E71: 0 | F71: 50 | G71: 0 | H71: 2025-04-01 | I71: 0
A72: 59 | B72: MH: Park Owned - LTO | C72: Martha Marquez | D72: 495 | E72: 0 | F72: 35 | G72: 0 | H72: 2019-10-11 | I72: 0
A73: 60 | B73: MH: Park Owned - LTO | C73: Marissa Nance | D73: 490 | E73: 0 | F73: 0 | G73: 0 | H73: 2018-06-07 | I73: 0
A74: 61 | B74: MH: Resident Occupied | C74: Doyle Hammons | D74: 440 | E74: 0 | F74: 0 | G74: 0 | H74: 2018-01-16 | I74: 0
A75: 62 | B75: MH: Park Owned - Vacant New | D75: 0 | E75: 0 | F75: 0 | G75: 0 | I75: 0
A76: 63 | B76: MH: Resident Occupied | C76: Jose Enrique Vega-Perez | D76: 510 | E76: 0 | F76: 50 | G76: 0 | H76: 2023-09-05 | I76: 530
A77: 64 | B77: MH: Resident Occupied | C77: Shelly Morgan | D77: 440 | E77: 0 | F77: 0 | G77: 0 | H77: 2018-01-16 | I77: 0
A78: 65 | B78: MH: Financed - Loan | C78: Austin J Miles | D78: 480 | E78: 0 | F78: 50 | G78: 0 | H78: 2024-04-30 | I78: 480
A79: 71 | B79: MH: Financed - Loan | C79: Christina Michelle Rigney | D79: 555 | E79: 0 | F79: 63 | G79: 0 | H79: 2023-01-01 | I79: 1260
A80: 73 | B80: MH: Park Owned - Rented | C80: James F Hurst | D80: 510 | E80: 0 | F80: 760 | G80: 0 | H80: 2024-03-01 | I80: 865
A81: 75 | B81: MH: Resident Occupied - LTO | C81: Matthew Ryan Lessley | D81: 525 | E81: 0 | F81: 50 | G81: 0 | H81: 2025-04-29 | I81: 0
D82: 32495 | E82: 0 | F82: 13199 | G82: 0 | I82: 16782.5

Sheet TE_POH
B1: Trails End
B2: POH List
B5: POH Inventory | L5: Loan Tape
B6: Site | C6: Status | D6: VIN | E6: Width | F6: Length | G6: Bedrooms | H6: Bathrooms | I6: Make | J6: Year | L6: Original Balance | M6: Original Term | N6: Remaining Term | O6: Current Balance | P6: LTO Pmt | Q6: Funding Date | R6: Maturity Date | S6: Loan #
B7: 1 | C7: Park Owned - Rented | D7: CBH031606TX | E7: 16 | F7: 76 | G7: 3 | H7: 2 | I7: Clayton | J7: 2018
B8: 6 | C8: Park Owned - LTO | D8: FLE240TX1842212A | E8: 16 | F8: 76 | G8: 3 | H8: 2 | I8: Fleetwood | J8: 2019 | L8: 72000 | M8: 179 | N8: 92 | O8: 37200 | P8: 400 | Q8: 11/24/2018 | R8: 11/1/2033 | S8: 7112125
B9: 7 | C9: Park Owned - LTO | D9: CBH034008TX | E9: 16 | F9: 68 | G9: 3 | H9: 2 | I9: Clayton | J9: 2020 | L9: 73800 | M9: 179 | N9: 112 | O9: 46740 | P9: 410 | Q9: 7/18/2020 | R9: 7/1/2035 | S9: 7113792
B10: 8 | C10: Resident Occupied - LTO | D10: JHW02321TX21 | E10: 16 | F10: 68 | G10: 2 | H10: 2 | I10: Jessup | J10: 2020 | L10: 94500 | M10: 179 | N10: 163 | O10: 86100 | P10: 525 | Q10: 11/1/2024 | R10: 10/1/2039 | S10: 7117409
B11: 9 | C11: Resident Occupied - LTO | D11: CBH034429TX | E11: 16 | F11: 66 | G11: 3 | H11: 2 | I11: Clayton | J11: 2021 | L11: 90001 | M11: 179 | N11: 163 | O11: 82081 | P11: 495 | Q11: 10/18/2024 | R11: 10/1/2039 | S11: 7117379
B12: 10 | C12: Park Owned - Rented | D12: CBH035042TX | E12: 16 | F12: 66 | G12: 3 | H12: 2 | I12: Clayton | J12: 2021
B13: 10A | C13: Resident Occupied - LTO | D13: RGN0476 | E13: 16 | F13: 66 | G13: 3 | H13: 2 | I13: RGN | J13: 2021 | L13: 89100 | M13: 179 | N13: 160 | O13: 79695 | P13: 495 | Q13: 8/21/2024 | R13: 7/1/2039 | S13: 7117096
B14: 11 | C14: Resident Occupied - LTO | D14: CBH035146TX | E14: 16 | F14: 66 | G14: 3 | H14: 2 | I14: Clayton | J14: 2021 | L14: 89100 | M14: 179 | N14: 163 | O14: 81180 | P14: 495 | Q14: 10/28/2024 | R14: 10/1/2039 | S14: 7117396
B15: 12 | C15: Resident Occupied - LTO | D15: OC 01 26 38965 | E15: 16 | F15: 66 | G15: 3 | H15: 2 | I15: Oak Creek | J15: 2026 | L15: 75600 | M15: 179 | N15: 176 | O15: 74340 | P15: 420 | Q15: 11/25/2025 | R15: 11/1/2040 | S15: 7119005
B16: 13 | C16: Resident Occupied - LTO | D16: CBH032588TX | E16: 16 | F16: 76 | G16: 3 | H16: 2 | I16: Clayton | J16: 2019 | L16: 66360 | M16: 167 | N16: 166 | O16: 66360 | P16: 395 | Q16: 2/26/2026 | R16: 2/1/2040 | S16: 7119323
B17: 14 | C17: Resident Occupied - LTO | D17: JHW06828TX24 | E17: 16 | F17: 76 | G17: 3 | H17: 2 | I17: Jessup | J17: 2024 | L17: 85500 | M17: 179 | N17: 172 | O17: 82175 | P17: 475 | Q17: 7/23/2025 | R17: 7/1/2040 | S17: 7118424
B18: 17 | C18: Park Owned - LTO | D18: CBH034427TX | E18: 16 | F18: 76 | G18: 3 | H18: 2 | I18: Clayton | J18: 2021 | L18: 84600 | M18: 179 | N18: 116 | O18: 54990 | P18: 470 | Q18: 12/11/2020 | R18: 11/1/2035 | S18: 7114472
B19: 18 | C19: Park Owned - LTO | D19: JHW01868TX20 | E19: 16 | F19: 76 | G19: 3 | H19: 2 | I19: Jessup | J19: 2020 | L19: 78300 | M19: 179 | N19: 110 | O19: 48285 | P19: 435 | Q19: 6/15/2020 | R19: 5/1/2035 | S19: 7113715
B20: 19 | C20: Resident Occupied - LTO | D20: FLE240TX2146114A | E20: 16 | F20: 68 | G20: 3 | H20: 2 | I20: Fleetwood | J20: 2021 | L20: 69300 | M20: 179 | N20: 176 | O20: 68145 | P20: 385 | Q20: 12/1/2025 | R20: 11/1/2040 | S20: 7119003
B21: 20 | C21: Park Owned - Rented | D21: FLE240TX1943552A | E21: 16 | F21: 76 | G21: 3 | H21: 2 | I21: Fleetwood | J21: 2020
B22: 21 | C22: Resident Occupied - LTO | D22: JHW06557TX23 | E22: 16 | F22: 76 | G22: 3 | H22: 2 | I22: Jessup | J22: 2023 | L22: 80100 | M22: 179 | N22: 172 | O22: 76985 | P22: 445 | Q22: 8/11/2025 | R22: 7/1/2040 | S22: 7118505
B23: 22 | C23: Resident Occupied - LTO | D23: CBH032586TX | E23: 16 | F23: 76 | G23: 3 | H23: 2 | I23: Clayton | J23: 2019 | L23: 91560 | M23: 167 | N23: 154 | O23: 84475 | P23: 545 | Q23: 1/29/2025 | R23: 1/1/2039 | S23: 7117664
B24: 24 | C24: Resident Occupied - LTO | D24: CBH031972TX | E24: 16 | F24: 76 | G24: 3 | H24: 2 | I24: Clayton | J24: 2019 | L24: 91560 | M24: 167 | N24: 154 | O24: 84475 | P24: 545 | Q24: 2/1/2025 | R24: 1/1/2039 | S24: 7117665
B25: 26 | C25: Resident Occupied - LTO | D25: 125000HA007559A | E25: 16 | F25: 76 | G25: 3 | H25: 2 | I25: Champion | J25: 2019 | L25: 66360 | M25: 167 | N25: 162 | O25: 64385 | P25: 395 | Q25: 9/23/2025 | R25: 9/1/2039 | S25: 7118689
B26: 27 | C26: Park Owned - LTO | D26: CBH032585TX | E26: 16 | F26: 76 | G26: 3 | H26: 2 | I26: Clayton | J26: 2019 | L26: 73800 | M26: 179 | N26: 97 | O26: 37323.1 | P26: 410 | Q26: 5/24/2019 | R26: 4/1/2034 | S26: 7112702
B27: 28 | C27: Resident Occupied - LTO | D27: FLE240TX2147037A | E27: 16 | F27: 76 | G27: 3 | H27: 2 | I27: Fleetwood | J27: 2021 | L27: 76500 | M27: 179 | N27: 177 | O27: 75650 | P27: 425 | Q27: 12/31/2025 | R27: 12/1/2040 | S27: 7119089
B28: 29 | C28: Park Owned - Rented | D28: ALCA0299680S52017 | E28: 16 | F28: 76 | G28: 3 | H28: 2 | I28: Cavalier | J28: 1999
B29: 30 | C29: Resident Occupied - LTO | D29: CBH032297TX | E29: 16 | F29: 76 | G29: 3 | H29: 2 | I29: Clayton | J29: 2019 | L29: 66360 | M29: 167 | N29: 166 | O29: 65965 | P29: 395 | Q29: 2/13/2026 | R29: 1/1/2040 | S29: 7119267
B30: 33 | C30: Resident Occupied - LTO | D30: ATH000954TX | E30: 16 | F30: 76 | G30: 3 | H30: 2 | I30: Clayton | J30: 2018 | L30: 91560 | M30: 167 | N30: 151 | O30: 82840 | P30: 545 | Q30: 10/15/2024 | R30: 10/1/2038 | S30: 7117322
B31: 34 | C31: Resident Occupied - LTO | D31: RGN1069 | E31: 16 | F31: 76 | G31: 3 | H31: 2 | I31: RGN | J31: 2023 | L31: 107100 | M31: 179 | N31: 164 | O31: 98175 | P31: 595 | Q31: 12/2/2024 | R31: 11/1/2039 | S31: 7117482
B32: 34B | C32: Park Owned - Rented | D32: FLE240TX2248351A | E32: 16 | F32: 76 | G32: 3 | H32: 2 | I32: Fleetwood | J32: 2022
B33: 36 | C33: Resident Occupied - LTO | D33: CLW055449TX | E33: 16 | F33: 76 | G33: 3 | H33: 2 | I33: Clayton | J33: 2023 | L33: 81900 | M33: 179 | N33: 175 | O33: 80080 | P33: 455 | Q33: 11/7/2025 | R33: 10/1/2040 | S33: 7118905
B34: 37 | C34: Resident Occupied - LTO | D34: CAV650OK25-10802A | E34: 16 | F34: 72 | G34: 3 | H34: 2 | I34: Cavco | J34: 2026 | L34: 83700 | M34: 179 | N34: 177 | O34: 82770 | P34: 465 | Q34: 12/15/2025 | R34: 12/1/2040 | S34: 7119044
B35: 38 | C35: Resident Occupied - LTO | D35: ATH000955TX | E35: 16 | F35: 76 | G35: 3 | H35: 2 | I35: Clayton | J35: 2018 | L35: 89880 | M35: 167 | N35: 154 | O35: 82925 | P35: 535 | Q35: 1/31/2025 | R35: 1/1/2039 | S35: 7117666
B36: 39 | C36: Resident Occupied - LTO | D36: CAV650OK25-10802A | E36: 16 | F36: 72 | G36: 3 | H36: 2 | I36: Cavco | J36: 2026 | L36: 68040 | M36: 167 | N36: 164 | O36: 66825 | P36: 405 | Q36: 10/27/2025 | R36: 11/1/2039 | S36: 7118853
B37: 40 | C37: Resident Occupied - LTO | D37: SCH01089541 | E37: 16 | F37: 76 | G37: 3 | H37: 2 | I37: Silver Creek | J37: 2008 | L37: 39000 | M37: 119 | N37: 114 | O37: 37375 | P37: 325 | Q37: 10/8/2025 | R37: 9/1/2035 | S37: 7118730
B38: 41 | C38: Resident Occupied - LTO | D38: FLE240TX1942813A | E38: 16 | F38: 76 | G38: 3 | H38: 2 | I38: Fleetwood | J38: 2019 | L38: 68040 | M38: 167 | N38: 165 | O38: 67230 | P38: 405 | Q38: 1/9/2026 | R38: 12/1/2039 | S38: 7119111
B39: 42 | C39: Park Owned - Rented | D39: 120063601748 | E39: 16 | F39: 76 | G39: 3 | H39: 2 | I39: Champion | J39: 2000
B40: 42A | C40: Park Owned - Rented | D40: FLE240TX1942794A | E40: 16 | F40: 76 | G40: 3 | H40: 2 | I40: Fleetwood | J40: 2019
B41: 43 | C41: Park Owned - LTO | D41: SSSETX06281 | E41: 16 | F41: 76 | G41: 3 | H41: 2 | I41: Southern Lifestyle | J41: 2001 | L41: 39600 | M41: 119 | N41: 40 | O41: 13530 | P41: 330 | Q41: 8/3/2019 | R41: 7/1/2029 | S41: 7112869
B42: 44 | C42: Park Owned - LTO | D42: CBH031605TX | E42: 16 | F42: 76 | G42: 3 | H42: 2 | I42: Clayton | J42: 2018 | L42: 72000 | M42: 179 | N42: 117 | O42: 47200 | P42: 400 | Q42: 1/11/2021 | R42: 12/1/2035 | S42: 7114501
B43: 45 | C43: Resident Occupied - LTO | D43: FLE240TX1842220A | E43: 16 | F43: 76 | G43: 3 | H43: 2 | I43: Fleetwood | J43: 2019 | L43: 98100 | M43: 179 | N43: 162 | O43: 88835 | P43: 545 | Q43: 10/4/2024 | R43: 9/1/2039 | S43: 7117290
B44: 46 | C44: Resident Occupied - LTO | D44: 12322723 | E44: 14 | F44: 68 | G44: 2 | H44: 2 | I44: Redman | J44: 1996 | L44: 8400 | M44: 47 | N44: 45 | O44: 8050 | P44: 175 | Q44: 1/14/2026 | R44: 12/1/2029 | S44: 7119130
B45: 47 | C45: Resident Occupied - LTO | D45: FLE240TX1842531A | E45: 16 | F45: 76 | G45: 3 | H45: 2 | I45: Fleetwood | J45: 2019 | L45: 91560 | M45: 167 | N45: 151 | O45: 82840 | P45: 545 | Q45: 10/15/2024 | R45: 10/1/2038 | S45: 7117330
B46: 48 | C46: Resident Occupied - LTO | D46: CBH032583TX | E46: 16 | F46: 76 | G46: 3 | H46: 2 | I46: Clayton | J46: 2019 | L46: 68040 | M46: 167 | N46: 160 | O46: 65205 | P46: 405 | Q46: 7/25/2025 | R46: 7/1/2039 | S46: 7118397
B47: 50 | C47: Financed - Loan | D47: FLE240TX2247896A | E47: 16 | F47: 76 | G47: 3 | H47: 2 | I47: Fleetwood | J47: 2022
B48: 50A | C48: Resident Occupied - LTO | D48: FLE240TX2045957A | E48: 16 | F48: 68 | G48: 3 | H48: 2 | I48: Fleetwood | J48: 2021 | L48: 67500 | M48: 179 | N48: 173 | O48: 65250 | P48: 375 | Q48: 8/29/2025 | R48: 8/1/2040 | S48: 7118601
B49: 51 | C49: Resident Occupied - LTO | D49: RGN0475 | E49: 16 | F49: 76 | G49: 3 | H49: 2 | I49: RGN | J49: 2021 | L49: 74700 | M49: 179 | N49: 173 | O49: 72210 | P49: 415 | Q49: 9/13/2025 | R49: 8/1/2040 | S49: 7118648
B50: 52 | C50: Resident Occupied - LTO | D50: CBH033987TX | E50: 16 | F50: 76 | G50: 3 | H50: 2 | I50: Clayton | J50: 2020 | L50: 92700 | M50: 179 | N50: 168 | O50: 87035 | P50: 515 | Q50: 4/9/2025 | R50: 3/1/2040 | S50: 7117999
B51: 53 | C51: Park Owned - LTO | D51: CBH032289TX | E51: 16 | F51: 76 | G51: 3 | H51: 2 | I51: Clayton | J51: 2019 | L51: 88200 | M51: 179 | N51: 122 | O51: 60270 | P51: 490 | Q51: 6/7/2021 | R51: 5/1/2036 | S51: 7114781
B52: 54 | C52: Resident Occupied - LTO | D52: CBH032287TX | E52: 16 | F52: 76 | G52: 3 | H52: 2 | I52: Clayton | J52: 2019 | L52: 66360 | M52: 167 | N52: 0 | O52: 66360 | P52: 395 | Q52: 3/13/2026 | R52: 2/1/2040 | S52: 7119483
B53: 55 | C53: Resident Occupied - LTO | D53: FLE240TX1942810A | E53: 16 | F53: 76 | G53: 3 | H53: 2 | I53: Fleetwood | J53: 2019 | L53: 66360 | M53: 167 | N53: 162 | O53: 64385 | P53: 395 | Q53: 10/1/2025 | R53: 9/1/2039 | S53: 7118695
B54: 55A | C54: Resident Occupied - LTO | D54: FLE240TX1942803A | E54: 16 | F54: 76 | G54: 3 | H54: 2 | I54: Fleetwood | J54: 2019 | L54: 84840 | M54: 167 | N54: 155 | O54: 79285 | P54: 505 | Q54: 3/11/2025 | R54: 2/1/2039 | S54: 7117857
B55: 57 | C55: Park Owned - LTO | D55: CBH033031TX | E55: 16 | F55: 76 | G55: 3 | H55: 2 | I55: Clayton | J55: 2019 | L55: 77400 | M55: 179 | N55: 112 | O55: 48590 | P55: 430 | Q55: 7/14/2020 | R55: 7/1/2035 | S55: 7113903
B56: 58 | C56: Resident Occupied - LTO | D56: CBH033046TX | E56: 16 | F56: 76 | G56: 3 | H56: 2 | I56: Clayton | J56: 2019 | L56: 84840 | M56: 167 | N56: 156 | O56: 79285 | P56: 505 | Q56: 4/1/2025 | R56: 3/1/2039 | S56: 7117986
B57: 59 | C57: Park Owned - LTO | D57: FLE240TX1943552A | E57: 16 | F57: 76 | G57: 3 | H57: 2 | I57: Fleetwood | J57: 2020 | L57: 77400 | M57: 179 | N57: 102 | O57: 44290 | P57: 430 | Q57: 10/11/2019 | R57: 9/1/2034 | S57: 7113203
B58: 60 | C58: Park Owned - LTO | D58: CBH031737TX | E58: 16 | F58: 76 | G58: 3 | H58: 2 | I58: Clayton | J58: 2018 | L58: 72000 | M58: 179 | N58: 86 | O58: 34800 | P58: 400 | Q58: 6/20/2018 | R58: 5/1/2033 | S58: 7111674
B59: 62 | C59: Resident Occupied - LTO | D59: CLW059121TXAC | E59: 16 | F59: 76 | G59: 3 | H59: 2 | I59: Clayton | J59: 2026 | L59: 87300 | M59: 179 | N59: 175 | O59: 85360 | P59: 485 | Q59: 10/30/2025 | R59: 10/1/2040 | S59: 7118834
B60: 65 | C60: Financed - Loan | D60: ALBUS22058AB | E60: 28 | F60: 60 | G60: 4 | H60: 2 | I60: Buccaneer | J60: 1995
B61: 71 | C61: Financed - Loan | D61: RGN0973AB | E61: 28 | F61: 48 | G61: 3 | H61: 2 | I61: RGN | J61: 2022
B62: 73 | C62: Park Owned - Rented | D62: FLE240TX2247796AB | E62: 24 | F62: 52 | G62: 3 | H62: 2 | I62: Fleetwood | J62: 2023
B63: 75 | C63: Resident Occupied - LTO | D63: RGN0882AB | E63: 24 | F63: 48 | G63: 3 | H63: 2 | I63: RGN | J63: 2022 | L63: 99900 | M63: 179 | N63: 169 | O63: 94350 | P63: 555 | Q63: 4/29/2025 | R63: 4/1/2040 | S63: 7118110
B64: =COUNTA(B7:B63) -> 57 | J64: =AVERAGE(J7:J63) -> 2018.385965 | L64: =SUM(L7:L63) -> 3560821 | M64: =SUMPRODUCT(M7:M63,$L7:$L63)/$L64 -> 173.4491902 | N64: =SUMPRODUCT(N7:N63,$L7:$L63)/$L64 -> 146.8826271 | O64: =SUM(O7:O63) -> 3081899.1 | P64: =SUM(P7:P63) -> 20585 | Q64: =SUMPRODUCT(Q7:Q63,$L7:$L63)/$L64 -> 00:00:00 | R64: =SUMPRODUCT(R7:R63,$L7:$L63)/$L64 -> 00:00:00 | S64: =COUNTA(L7:L63) -> 46
L65: =+L64/$S$64 -> 77409.15217 | O65: =+O64/$S$64 -> 66997.80652 | P65: =+P64/$S$64 -> 447.5
B67: =COUNTIF($C$7:$C$63,C67) -> 11 | C67: Park Owned - LTO | J67: =IFERROR(SUMIF($C$7:$C$63,$C67,J$7:J$63)/B67,"") -> 2017.636364 | L67: =IFERROR(SUMIF($C$7:$C$63,$C67,L$7:L$63),0) -> 809100 | M67: =IFERROR(SUMIF($C$7:$C$63,$C67,M$7:M$63)/$S67,0) -> 173.5454545 | N67: 100.5454545 | O67: =IFERROR(SUMIF($C$7:$C$63,$C67,O$7:O$63),0) -> 473218.1 | P67: 4605 | Q67: =IFERROR(SUMIF($C$7:$C$63,$C67,Q$7:Q$63)/$S67,"") -> 00:00:00 | R67: 00:00:00 | S67: =COUNTIFS($C$7:$C$63,$C67,$S$7:$S$63,"<>") -> 11
B68: =COUNTIF($C$7:$C$63,C68) -> 8 | C68: Park Owned - Rented | J68: 2015.25 | L68: =IFERROR(SUMIF($C$7:$C$63,$C68,L$7:L$63),0) -> 0 | M68: 0 | N68: 0 | O68: 0 | P68: 0 | S68: =COUNTIFS($C$7:$C$63,$C68,$S$7:$S$63,"<>") -> 0
B69: =COUNTIF($C$7:$C$63,C69) -> 0 | C69: Park Owned - Vacant New | L69: =IFERROR(SUMIF($C$7:$C$63,$C69,L$7:L$63),0) -> 0 | M69: 0 | N69: 0 | O69: 0 | P69: 0 | S69: =COUNTIFS($C$7:$C$63,$C69,$S$7:$S$63,"<>") -> 0
B70: =COUNTIF($C$7:$C$63,C70) -> 0 | C70: Park Owned - Vacant Old | J70: =IFERROR(SUMIF($C$7:$C$63,$C70,J$7:J$63)/B70,"") ->  | L70: =IFERROR(SUMIF($C$7:$C$63,$C70,L$7:L$63),0) -> 0 | M70: 0 | N70: 0 | O70: 0 | P70: 0 | S70: =COUNTIFS($C$7:$C$63,$C70,$S$7:$S$63,"<>") -> 0
B71: =COUNTIF($C$7:$C$63,C71) -> 35 | C71: Resident Occupied - LTO | J71: 2019.8 | L71: =IFERROR(SUMIF($C$7:$C$63,$C71,L$7:L$63),0) -> 2751721 | M71: 168.3714286 | N71: 155.3428571 | O71: 2608681 | P71: 15980 | Q71: 00:00:00 | R71: 00:00:00 | S71: =COUNTIFS($C$7:$C$63,$C71,$S$7:$S$63,"<>") -> 35
B72: =SUM(B67:B71) -> 54 | J72: =SUMPRODUCT(J67:J71,B67:B71)/B72 -> 2018.685185 | L72: =SUM(L67:L71) -> 3560821 | M72: =SUMPRODUCT(M67:M71,$S$67:$S$71)/$S$72 -> 169.6086957 | N72: =SUMPRODUCT(N67:N71,$S$67:$S$71)/$S$72 -> 142.2391304 | O72: =SUM(O67:O71) -> 3081899.1 | P72: =SUM(P67:P71) -> 20585 | Q72: =SUMPRODUCT(Q67:Q71,$S$67:$S$71)/$S$72 -> 00:00:00 | R72: 00:00:00 | S72: =SUM(S67:S71) -> 46
B74: =B67=TE_BSR!A87 -> TRUE
B75: =+B68=TE_BSR!A88 -> TRUE
B76: =+B69=TE_BSR!A89 -> TRUE
B77: =+B70=TE_BSR!A90 -> TRUE
B78: =+B71=TE_BSR!A92 -> TRUE

Sheet TE_Site Map
B1: Trails End
B2: Site Map

Sheet Leisure Estates-->

Sheet LE_P&L
B1: Leisure Estates | H1: =EOMONTH(H6,-12) -> 2025-01-31
B2: Historical Financials
B4: Total Lots | C4: =+LE_BSR!$A$56 -> 46
H5: TTM
D6: 2022 | E6: 2023 | F6: 2024 | G6: 2025 | H6: 2026-01-31 | I6: In-Place(1) | K6: 2024-01-31 | L6: =EOMONTH(K6,1) -> 2024-02-29 | M6: 2024-03-31 | N6: 2024-04-30 | O6: 2024-05-31 | P6: 2024-06-30 | Q6: 2024-07-31 | R6: 2024-08-31 | S6: 2024-09-30 | T6: 2024-10-31 | U6: 2024-11-30 | V6: 2024-12-31 | W6: 2025-01-31 | X6: 2025-02-28 | Y6: 2025-03-31 | Z6: 2025-04-30 | AA6: 2025-05-31 | AB6: 2025-06-30 | AC6: 2025-07-31 | AD6: 2025-08-31 | AE6: 2025-09-30 | AF6: 2025-10-31 | AG6: 2025-11-30 | AH6: 2025-12-31 | AI6: 2026-01-31
B7: Average Occupied Lots | D7: 36.58333333 | E7: 39.66666667 | F7: =AVERAGE(K7:V7) -> 39.33333333 | G7: =AVERAGE(W7:AH7) -> 40.16666667 | H7: =(SUMIF($K$6:$AI$6,"<="&$H$6&"",$K7:$AI7)-SUMIF($K$6:$AI$6,"<="&$H$1&"",$K7:$AI7))/12 -> 40.25 | I7: =SUM(LE_BSR!A73:A74) -> 43 | K7: 39 | L7: 38 | M7: 39 | N7: 41 | O7: 41 | P7: 41 | Q7: 40 | R7: 40 | S7: 40 | T7: 39 | U7: 37 | V7: 37 | W7: 39 | X7: 39 | Y7: 42 | Z7: 41 | AA7: 40 | AB7: 39 | AC7: 39 | AD7: 40 | AE7: 40 | AF7: 40 | AG7: 42 | AH7: 41 | AI7: 40
B8: % Occupancy | D8: =+D7/$C$4 -> 0.7952898551 | E8: =+E7/$C$4 -> 0.8623188406 | F8: 0.8550724638 | G8: =+G7/$C$4 -> 0.8731884058 | H8: 0.875 | I8: 0.9347826087 | K8: =+IFERROR(K7/$C$4,0) -> 0.847826087 | L8: =+IFERROR(L7/$C$4,0) -> 0.8260869565 | M8: 0.847826087 | N8: 0.8913043478 | O8: 0.8913043478 | P8: 0.8913043478 | Q8: 0.8695652174 | R8: 0.8695652174 | S8: 0.8695652174 | T8: 0.847826087 | U8: 0.8043478261 | V8: 0.8043478261 | W8: 0.847826087 | X8: 0.847826087 | Y8: 0.9130434783 | Z8: 0.8913043478 | AA8: 0.8695652174 | AB8: 0.847826087 | AC8: 0.847826087 | AD8: 0.8695652174 | AE8: 0.8695652174 | AF8: 0.8695652174 | AG8: 0.9130434783 | AH8: 0.8913043478 | AI8: =+IFERROR(AI7/$C$4,0) -> 0.8695652174
B9: Average Rents | D9: =IFERROR(D12/D7/12,"") -> 378.1539636 | E9: 418.7990336 | F9: =IFERROR(F12/F7/12,"") -> 448.6203178 | G9: =IFERROR(G12/G7/12,"") -> 482.2527801 | H9: =IFERROR(H12/H7/12,"") -> 487.6491718 | I9: =IFERROR(I12/I7/12,"") -> 546.0465116 | K9: =IFERROR(K12/K7,"") -> 447.3076923 | L9: =IFERROR(L12/L7,"") -> 444.6052632 | M9: 454.4128205 | N9: 428.3414634 | O9: 448.5365854 | P9: 444.5934146 | Q9: 449.125 | R9: 440.0565 | S9: 448.92125 | T9: 450.7692308 | U9: 450.6756757 | V9: 479.1148649 | W9: 464.9048718 | X9: 473.5897436 | Y9: 459.235 | Z9: 481.5853659 | AA9: 476.64925 | AB9: 490.2564103 | AC9: 464.7312821 | AD9: 487.609 | AE9: 491.9375 | AF9: 505.59675 | AG9: 496.2897619 | AH9: 493.9339024 | AI9: =IFERROR(AI12/AI7,"") -> 530.5
B11: Revenues
B12: MH Lot Rent | D12: 166009.59 | E12: 199348.34 | F12: =SUM(K12:V12) -> 211748.79 | G12: =SUM(W12:AH12) -> 232445.84 | H12: =SUMIF($K$6:$AI$6,"<="&$H$6&"",$K12:$AI12)-SUMIF($K$6:$AI$6,"<="&$H$1&"",$K12:$AI12) -> 235534.55 | I12: =+LE_BSR!E56*12 -> 281760 | K12: 17445 | L12: 16895 | M12: 17722.1 | N12: 17562 | O12: 18390 | P12: 18228.33 | Q12: 17965 | R12: 17602.26 | S12: 17956.85 | T12: 17580 | U12: 16675 | V12: 17727.25 | W12: 18131.29 | X12: 18470 | Y12: 19287.87 | Z12: 19745 | AA12: 19065.97 | AB12: 19120 | AC12: 18124.52 | AD12: 19504.36 | AE12: 19677.5 | AF12: 20223.87 | AG12: 20844.17 | AH12: 20251.29 | AI12: 21220
B13: Shed Income | D13: 7579.92 | E13: 11617.12 | F13: =SUM(K13:V13) -> 13201.56 | G13: =SUM(W13:AH13) -> 16330.73 | H13: =SUMIF($K$6:$AI$6,"<="&$H$6&"",$K13:$AI13)-SUMIF($K$6:$AI$6,"<="&$H$1&"",$K13:$AI13) -> 16614.61 | I13: =+LE_BSR!F56*12 -> 19140 | K13: 1020 | L13: 970 | M13: 1060.32 | N13: 1090 | O13: 1185 | P13: 1178.33 | Q13: 1115 | R13: 1123.23 | S13: 1170 | T13: 1120 | U13: 1075 | V13: 1094.68 | W13: 1156.12 | X13: 1190 | Y13: 1267.42 | Z13: 1340 | AA13: 1327.09 | AB13: 1340 | AC13: 1391.61 | AD13: 1433.55 | AE13: 1435 | AF13: 1478.71 | AG13: 1518.33 | AH13: 1452.9 | AI13: 1440
B14: Utility Reimbursements:
B15: Water Recap | D15: =+D17/D50 -> 0 | E15: =+E17/E50 -> 1.053959418 | F15: 0.8389811555 | G15: 0.8795766466 | H15: 0.8630250427 | I15: 0.8630250427 | K15: =IFERROR(+K17/K50,0) -> 0.801766987 | L15: =IFERROR(+L17/L50,0) -> 0.4267404814 | M15: 1.49225836 | N15: 0.7427746093 | O15: 0.8440566234 | P15: 1.215034449 | Q15: 0.8503891978 | R15: 0.8730743701 | S15: 0.7512748331 | T15: 0.7237747125 | U15: 1.350154991 | V15: 0.8093352656 | W15: 1.008006373 | X15: 0.8298303049 | Y15: 0.8591752755 | Z15: 0.9403035936 | AA15: 0.9728616558 | AB15: 1.030956875 | AC15: 0.7305623608 | AD15: 0.635198788 | AE15: 0.8590688991 | AF15: 1.06951999 | AG15: 0.9323145152 | AH15: 0.8437857184 | AI15: =IFERROR(+AI17/AI50,0) -> 0.7815815324
B16: Electric + | D16: 0 | E16: 0 | F16: 0 | G16: =SUM(W16:AH16) -> 0 | H16: =SUMIF($K$6:$AI$6,"<="&$H$6&"",$K16:$AI16)-SUMIF($K$6:$AI$6,"<="&$H$1&"",$K16:$AI16) -> 0 | I16: =H16 -> 0 | K16: 0 | L16: 0 | M16: 0 | N16: 0 | O16: 0 | P16: 0 | Q16: 0 | R16: 0 | S16: 0 | T16: 0 | U16: 0 | V16: 0 | W16: 0 | X16: 0 | Y16: 0 | Z16: 0 | AA16: 0 | AB16: 0 | AC16: 0 | AD16: 0 | AE16: 0 | AF16: 0 | AG16: 0 | AH16: 0 | AI16: 0
B17: Water + | D17: 0 | E17: 15393.13 | F17: 16805.9 | G17: 17601.78 | H17: 17768.65 | I17: 17768.65 | K17: 1188.82 | L17: 1352.81 | M17: 1791.68 | N17: 1002.82 | O17: 1216.37 | P17: 1400.23 | Q17: 1338.3 | R17: 1644.13 | S17: 1401.09 | T17: 1356.39 | U17: 1633.35 | V17: 1479.91 | W17: 1265.3 | X17: 1381.46 | Y17: 1492.86 | Z17: 1517.65 | AA17: 1632.17 | AB17: 1420.04 | AC17: 1312.09 | AD17: 1383.59 | AE17: 1472.53 | AF17: 1706.74 | AG17: 1555.66 | AH17: 1461.69 | AI17: 1432.17
B18: Trash + | D18: 0 | E18: 0 | F18: 0 | G18: 0 | H18: 0 | I18: 0 | K18: 0 | L18: 0 | M18: 0 | N18: 0 | O18: 0 | P18: 0 | Q18: 0 | R18: 0 | S18: 0 | T18: 0 | U18: 0 | V18: 0 | W18: 0 | X18: 0 | Y18: 0 | Z18: 0 | AA18: 0 | AB18: 0 | AC18: 0 | AD18: 0 | AE18: 0 | AF18: 0 | AG18: 0 | AH18: 0 | AI18: 0
B19: Fee Income | D19: 5055.36 | E19: 6870 | F19: 9811.6 | G19: 8638.56 | H19: 9124.19 | I19: 9124.19 | K19: 235 | L19: 585 | M19: 2273.55 | N19: 885 | O19: 300 | P19: 740 | Q19: 460 | R19: 429.26 | S19: 1825 | T19: 640 | U19: 1020 | V19: 418.79 | W19: 600 | X19: 685 | Y19: 690.5 | Z19: 635 | AA19: 978.06 | AB19: 690 | AC19: 645 | AD19: 585 | AE19: 520 | AF19: 765 | AG19: 1095 | AH19: 750 | AI19: 1085.63
B20: Application Fee Income | D20: 929.93 | E20: 1051 | F20: 1715 | G20: 1610 | H20: 1645 | I20: 1645 | K20: 0 | L20: 175 | M20: 140 | N20: 525 | O20: 70 | P20: 140 | Q20: 35 | R20: 175 | S20: 140 | T20: 0 | U20: 140 | V20: 175 | W20: 70 | X20: 140 | Y20: 245 | Z20: 280 | AA20: 245 | AB20: 105 | AC20: 140 | AD20: 35 | AE20: 70 | AF20: 105 | AG20: 105 | AH20: 70 | AI20: 105
B21: Miscellaneous Income | D21: 215 | E21: 125 | F21: 0 | G21: 0 | H21: 0 | I21: 0 | K21: 0 | L21: 0 | M21: 0 | N21: 0 | O21: 0 | P21: 0 | Q21: 0 | R21: 0 | S21: 0 | T21: 0 | U21: 0 | V21: 0 | W21: 0 | X21: 0 | Y21: 0 | Z21: 0 | AA21: 0 | AB21: 0 | AC21: 0 | AD21: 0 | AE21: 0 | AF21: 0 | AG21: 0 | AH21: 0 | AI21: 0
B22: Bad Debt | D22: -89.98 | E22: -1093.13 | F22: -3401.42 | G22: -3144.75 | H22: -3144.75 | I22: -3144.75 | K22: 0 | L22: -259.51 | M22: 0 | N22: -233.67 | O22: -1262.83 | P22: -594.36 | Q22: -151.21 | R22: 0 | S22: 0 | T22: -676.46 | U22: 0 | V22: -223.38 | W22: 0 | X22: 0 | Y22: 0 | Z22: -215.79 | AA22: -126.68 | AB22: -70.68 | AC22: 0 | AD22: -920.23 | AE22: -151.97 | AF22: 0 | AG22: 0 | AH22: -1659.4 | AI22: 0
D23: =SUM(D12:D13,D16:D22) -> 179699.82 | E23: =SUM(E12:E13,E16:E22) -> 233311.46 | F23: 249881.43 | G23: 273482.16 | H23: 277542.25 | I23: 326293.09 | K23: 19888.82 | L23: =SUM(L12:L13,L16:L22) -> 19718.3 | M23: =SUM(M12:M13,M16:M22) -> 22987.65 | N23: =SUM(N12:N13,N16:N22) -> 20831.15 | O23: =SUM(O12:O13,O16:O22) -> 19898.54 | P23: =SUM(P12:P13,P16:P22) -> 21092.53 | Q23: =SUM(Q12:Q13,Q16:Q22) -> 20762.09 | R23: =SUM(R12:R13,R16:R22) -> 20973.88 | S23: =SUM(S12:S13,S16:S22) -> 22492.94 | T23: =SUM(T12:T13,T16:T22) -> 20019.93 | U23: =SUM(U12:U13,U16:U22) -> 20543.35 | V23: =SUM(V12:V13,V16:V22) -> 20672.25 | W23: =SUM(W12:W13,W16:W22) -> 21222.71 | X23: =SUM(X12:X13,X16:X22) -> 21866.46 | Y23: =SUM(Y12:Y13,Y16:Y22) -> 22983.65 | Z23: =SUM(Z12:Z13,Z16:Z22) -> 23301.86 | AA23: =SUM(AA12:AA13,AA16:AA22) -> 23121.61 | AB23: =SUM(AB12:AB13,AB16:AB22) -> 22604.36 | AC23: =SUM(AC12:AC13,AC16:AC22) -> 21613.22 | AD23: =SUM(AD12:AD13,AD16:AD22) -> 22021.27 | AE23: =SUM(AE12:AE13,AE16:AE22) -> 23023.06 | AF23: =SUM(AF12:AF13,AF16:AF22) -> 24279.32 | AG23: =SUM(AG12:AG13,AG16:AG22) -> 25118.16 | AH23: =SUM(AH12:AH13,AH16:AH22) -> 22326.48 | AI23: 25282.8
B24: Operating Expenses
B25: Advertising | D25: 407.33 | E25: 716.18 | F25: =SUM(K25:V25) -> 448.54 | G25: =SUM(W25:AH25) -> 660.53 | H25: =SUMIF($K$6:$AI$6,"<="&$H$6&"",$K25:$AI25)-SUMIF($K$6:$AI$6,"<="&$H$1&"",$K25:$AI25) -> 643.75 | I25: =H25 -> 643.75 | K25: 39.65 | L25: 16.97 | M25: 37.31 | N25: 36.4 | O25: 145.51 | P25: 37.05 | Q25: 17.1 | R25: 67.87 | S25: 18 | T25: 16.51 | U25: 15.98 | V25: 0.19 | W25: 31.66 | X25: 55.67 | Y25: 114.88 | Z25: 27.29 | AA25: 286.5 | AB25: 14.96 | AC25: 53.01 | AD25: -22.86 | AE25: 15.31 | AF25: 55.16 | AG25: 14.53 | AH25: 14.42 | AI25: 14.88
B26: Auto | D26: 1398.27 | E26: 1293.76 | F26: 979.76 | G26: 77.65 | H26: 77.14 | I26: 77.14 | K26: 39.2 | L26: 179.38 | M26: 49.82 | N26: 87.12 | O26: 68.7 | P26: 63.07 | Q26: 114.51 | R26: 113.08 | S26: 116.56 | T26: 67.62 | U26: 44.79 | V26: 35.91 | W26: 3.09 | X26: 2.96 | Y26: 2.75 | Z26: 15.8 | AA26: 4.83 | AB26: 5.77 | AC26: 4.42 | AD26: 9.03 | AE26: 5 | AF26: 5.84 | AG26: 10.01 | AH26: 8.15 | AI26: 2.58
B27: Bank Expense | D27: 42.6 | E27: 304.45 | F27: 337.85 | G27: 393.4 | H27: 402.4 | I27: 402.4 | K27: 25 | L27: 23.1 | M27: 25.95 | N27: 22.15 | O27: 23.1 | P27: 21.1 | Q27: 32.9 | R27: 28.8 | S27: 33.65 | T27: 31.65 | U27: 43.55 | V27: 26.9 | W27: 25.95 | X27: 23.95 | Y27: 0 | Z27: 55.9 | AA27: 31.95 | AB27: 40.95 | AC27: 47.95 | AD27: 35.95 | AE27: 28.95 | AF27: 36.95 | AG27: 31.95 | AH27: 32.95 | AI27: 34.95
B28: Equipment and Site Supplies | D28: 293.16 | E28: 424.55 | F28: 642.49 | G28: 2735.49 | H28: 2706.49 | I28: 2706.49 | K28: 0 | L28: 0 | M28: 0 | N28: 0 | O28: 187.16 | P28: 0 | Q28: 0.92 | R28: 236.02 | S28: 195.04 | T28: 0.15 | U28: 0.62 | V28: 22.58 | W28: 34.33 | X28: 97.49 | Y28: 493.55 | Z28: 543.34 | AA28: 1.23 | AB28: 170.33 | AC28: -981.6 | AD28: 0.61 | AE28: 5.91 | AF28: 89.07 | AG28: 0 | AH28: 2281.23 | AI28: 5.33
B29: Landscaping and Groundskeeping | D29: 722.09 | E29: 5320 | F29: 5212.1 | G29: 7757.25 | H29: 8384.25 | I29: 8384.25 | K29: 0 | L29: 0 | M29: 250 | N29: 0 | O29: 1745.48 | P29: 930 | Q29: 767.46 | R29: 750 | S29: 750 | T29: 0 | U29: 19.16 | V29: 0 | W29: 0 | X29: 0 | Y29: 0 | Z29: 751.76 | AA29: 750 | AB29: 1200 | AC29: 750 | AD29: 1064.04 | AE29: 700 | AF29: 750 | AG29: 776.45 | AH29: 1015 | AI29: 627
B30: Licenses & Permits | D30: 201.55 | E30: 984.09 | F30: 25.57 | G30: 128.71 | H30: 186.07 | I30: 186.07 | K30: 0 | L30: 0 | M30: 0 | N30: 0 | O30: 0 | P30: 0 | Q30: 0 | R30: 0.73 | S30: 0 | T30: 20 | U30: 0 | V30: 4.84 | W30: 0 | X30: 0 | Y30: 72.67 | Z30: 0 | AA30: 0 | AB30: 0 | AC30: 31.11 | AD30: 15.05 | AE30: 0 | AF30: 0 | AG30: 8.38 | AH30: 1.5 | AI30: 57.36
B31: Miscellaneous | D31: 0 | E31: 0 | F31: 0 | G31: 352.05 | H31: 405.73 | I31: 405.73 | K31: 0 | L31: 0 | M31: 0 | N31: 0 | O31: 0 | P31: 0 | Q31: 0 | R31: 0 | S31: 0 | T31: 0 | U31: 0 | V31: 0 | W31: 0 | X31: 0 | Y31: 0 | Z31: 0 | AA31: 0 | AB31: 0 | AC31: 0 | AD31: 196.59 | AE31: 155.46 | AF31: 0 | AG31: 0 | AH31: 0 | AI31: 53.68
B32: Office Expense | D32: 651.01 | E32: 411.71 | F32: 1121.85 | G32: 451.46 | H32: 516.85 | I32: 516.85 | K32: 18.13 | L32: 6.64 | M32: 2.13 | N32: 149.64 | O32: 51.3 | P32: 128.01 | Q32: 39.61 | R32: 329.99 | S32: 181.25 | T32: 9.56 | U32: 107.41 | V32: 98.18 | W32: 12.7 | X32: 0.15 | Y32: 2.42 | Z32: 0 | AA32: 1.94 | AB32: 3.59 | AC32: 24.31 | AD32: 3.58 | AE32: 12.69 | AF32: 71.38 | AG32: 38.81 | AH32: 279.89 | AI32: 78.09
B33: Personnel Expense:
B34: Wages | D34: 10244.78 | E34: 15618.45 | F34: =SUM(K34:V34) -> 18455.9 | G34: =SUM(W34:AH34) -> 19808.02 | H34: =SUMIF($K$6:$AI$6,"<="&$H$6&"",$K34:$AI34)-SUMIF($K$6:$AI$6,"<="&$H$1&"",$K34:$AI34) -> 20142.83 | I34: =H34 -> 20142.83 | K34: 1337.89 | L34: 1328.94 | M34: 2006.56 | N34: 1060.72 | O34: 1196.82 | P34: 1051.02 | Q34: 1499.57 | R34: 2330.58 | S34: 1526.75 | T34: 1462.69 | U34: 1514.31 | V34: 2140.05 | W34: 1427.02 | X34: 1464.89 | Y34: 1416.47 | Z34: 1392.45 | AA34: 1488.48 | AB34: 1418.68 | AC34: 1402.23 | AD34: 2175.07 | AE34: 1297.62 | AF34: 1478.5 | AG34: 1534.79 | AH34: 3311.82 | AI34: 1761.83
B35: Cell Phone Reimbursements | D35: 233.75 | E35: 290 | F35: 467.66 | G35: 450.02 | H35: 449.02 | I35: 449.02 | K35: 37.5 | L35: 37.5 | M35: 37.5 | N35: 37.5 | O35: 37.5 | P35: 37.5 | Q35: 42.5 | R35: 40 | S35: 42.15 | T35: 40 | U35: 38.01 | V35: 40 | W35: 40 | X35: 37.5 | Y35: 37.5 | Z35: 26.27 | AA35: 41.25 | AB35: 37.5 | AC35: 37.5 | AD35: 40 | AE35: 36.25 | AF35: 38.75 | AG35: 38.75 | AH35: 38.75 | AI35: 39
B36: Benefits and Fees | D36: 1481.91 | E36: 1789.24 | F36: 1412.63 | G36: 2944.99 | H36: 3012.86 | I36: 3012.86 | K36: 89.34 | L36: 108.25 | M36: 118.76 | N36: 86.36 | O36: 102.3 | P36: 99.59 | Q36: 110.92 | R36: 123.86 | S36: 159.33 | T36: 132.37 | U36: 121.55 | V36: 160 | W36: 121.61 | X36: 284.55 | Y36: 258 | Z36: 258.66 | AA36: 260.17 | AB36: 252.21 | AC36: 252.46 | AD36: 288.87 | AE36: 223.52 | AF36: 231.29 | AG36: 227.6 | AH36: 286.05 | AI36: 189.48
B37: Payroll Taxes | D37: 881.51 | E37: 1181.26 | F37: 1692.6 | G37: 1797.39 | H37: 1847.44 | I37: 1847.44 | K37: 118.08 | L37: 121.03 | M37: 184.12 | N37: 112.47 | O37: 126.42 | P37: 90.07 | Q37: 165.32 | R37: 206.49 | S37: 130.77 | T37: 128.96 | U37: 133.03 | V37: 175.84 | W37: 130.52 | X37: 153.17 | Y37: 130.58 | Z37: 161.28 | AA37: 138.12 | AB37: 117.84 | AC37: 115.82 | AD37: 196.05 | AE37: 113.59 | AF37: 130 | AG37: 133.32 | AH37: 277.1 | AI37: 180.57
B38: Workers Comp Insurance | D38: 478.38 | E38: 558.74 | F38: 401.09 | G38: 460.24 | H38: 473.56 | I38: 473.56 | K38: 24.55 | L38: 31.58 | M38: 48.48 | N38: 24.84 | O38: 29.94 | P38: 29.94 | Q38: 29.94 | R38: 29.94 | S38: -89.82 | T38: 159.92 | U38: 33.8 | V38: 47.98 | W38: 48.23 | X38: 34.09 | Y38: 31.72 | Z38: 31.48 | AA38: 33.12 | AB38: 30.43 | AC38: 29.91 | AD38: 55.39 | AE38: 32.04 | AF38: 38.46 | AG38: 39.93 | AH38: 55.44 | AI38: 61.55
B39: Leasing Commission Park | D39: 0 | E39: 0 | F39: 0 | G39: 0 | H39: 0 | I39: 0 | K39: 0 | L39: 0 | M39: 0 | N39: 0 | O39: 0 | P39: 0 | Q39: 0 | R39: 0 | S39: 0 | T39: 0 | U39: 0 | V39: 0 | W39: 0 | X39: 0 | Y39: 0 | Z39: 0 | AA39: 0 | AB39: 0 | AC39: 0 | AD39: 0 | AE39: 0 | AF39: 0 | AG39: 0 | AH39: 0 | AI39: 0
B40: Labor Concession | D40: 0 | E40: 0 | F40: 0 | G40: 0 | H40: 0 | I40: 0 | K40: 0 | L40: 0 | M40: 0 | N40: 0 | O40: 0 | P40: 0 | Q40: 0 | R40: 0 | S40: 0 | T40: 0 | U40: 0 | V40: 0 | W40: 0 | X40: 0 | Y40: 0 | Z40: 0 | AA40: 0 | AB40: 0 | AC40: 0 | AD40: 0 | AE40: 0 | AF40: 0 | AG40: 0 | AH40: 0 | AI40: 0
B41: Contract Labor | D41: 0 | E41: 0 | F41: 0 | G41: 0 | H41: 0 | I41: 0 | K41: 0 | L41: 0 | M41: 0 | N41: 0 | O41: 0 | P41: 0 | Q41: 0 | R41: 0 | S41: 0 | T41: 0 | U41: 0 | V41: 0 | W41: 0 | X41: 0 | Y41: 0 | Z41: 0 | AA41: 0 | AB41: 0 | AC41: 0 | AD41: 0 | AE41: 0 | AF41: 0 | AG41: 0 | AH41: 0 | AI41: 0
B42: Postage | D42: 377.65 | E42: 93.35 | F42: 130.42 | G42: 579.9 | H42: =SUMIF($K$6:$AI$6,"<="&$H$6&"",$K42:$AI42)-SUMIF($K$6:$AI$6,"<="&$H$1&"",$K42:$AI42) -> 592.74 | I42: 592.74 | K42: 26.28 | L42: 5.46 | M42: 15.2 | N42: 2.67 | O42: 1.07 | P42: 2.83 | Q42: 12.31 | R42: 4.68 | S42: 1.45 | T42: 4.75 | U42: 20.39 | V42: 33.33 | W42: 2.54 | X42: 23.46 | Y42: 39.77 | Z42: 59.17 | AA42: 79.76 | AB42: 36.01 | AC42: 9.22 | AD42: 18.97 | AE42: 61.41 | AF42: 67.08 | AG42: 107.32 | AH42: 75.19 | AI42: 15.38
B43: Professional Fees | D43: 1610.97 | E43: 1847.61 | F43: 1475.05 | G43: 1704.82 | H43: =SUMIF($K$6:$AI$6,"<="&$H$6&"",$K43:$AI43)-SUMIF($K$6:$AI$6,"<="&$H$1&"",$K43:$AI43) -> 1685.16 | I43: 1685.16 | K43: 186.5 | L43: 144.92 | M43: 71.1 | N43: 325.79 | O43: 23.83 | P43: 13.89 | Q43: 128.91 | R43: 158.15 | S43: 85.95 | T43: 13.75 | U43: 134.93 | V43: 187.33 | W43: 108.54 | X43: 48.37 | Y43: 163.78 | Z43: 111.48 | AA43: 105.97 | AB43: 59.53 | AC43: 89.25 | AD43: 302.85 | AE43: 395.46 | AF43: 79.67 | AG43: -4.54 | AH43: 244.46 | AI43: 88.88
B44: Repairs & Maintenance | D44: 2086.54 | E44: 2486.65 | F44: 3426.38 | G44: 2874.83 | H44: =SUMIF($K$6:$AI$6,"<="&$H$6&"",$K44:$AI44)-SUMIF($K$6:$AI$6,"<="&$H$1&"",$K44:$AI44) -> 2865.84 | I44: 2865.84 | K44: 409.84 | L44: 19.27 | M44: 0 | N44: 0 | O44: 23.05 | P44: 111.1 | Q44: 1201.41 | R44: 0 | S44: 0 | T44: 0 | U44: 617.89 | V44: 1043.82 | W44: 540 | X44: 0 | Y44: 0 | Z44: 721 | AA44: 179 | AB44: 0 | AC44: 1.32 | AD44: 0 | AE44: 0 | AF44: 2.94 | AG44: 233.3 | AH44: 1197.27 | AI44: 531.01
B45: Resident Concessions | D45: 679.33 | E45: 950 | F45: 310 | G45: 0 | H45: =SUMIF($K$6:$AI$6,"<="&$H$6&"",$K45:$AI45)-SUMIF($K$6:$AI$6,"<="&$H$1&"",$K45:$AI45) -> 0 | I45: 0 | K45: 0 | L45: 0 | M45: 0 | N45: 0 | O45: 0 | P45: 0 | Q45: 0 | R45: 0 | S45: 310 | T45: 0 | U45: 0 | V45: 0 | W45: 0 | X45: 0 | Y45: 0 | Z45: 0 | AA45: 0 | AB45: 0 | AC45: 0 | AD45: 0 | AE45: 0 | AF45: 0 | AG45: 0 | AH45: 0 | AI45: 0
B46: Telephone | D46: 771.8 | E46: 1827.25 | F46: 2583.93 | G46: 2759.04 | H46: =SUMIF($K$6:$AI$6,"<="&$H$6&"",$K46:$AI46)-SUMIF($K$6:$AI$6,"<="&$H$1&"",$K46:$AI46) -> 2775.37 | I46: 2775.37 | K46: 152.82 | L46: 330.4 | M46: 210.26 | N46: 195.45 | O46: 224.99 | P46: 210.22 | Q46: 210.26 | R46: 209.87 | S46: 209.9 | T46: 209.92 | U46: 209.92 | V46: 209.92 | W46: 209.93 | X46: 331.82 | Y46: 211.82 | Z46: 211.8 | AA46: 211.8 | AB46: 222.63 | AC46: 225.86 | AD46: 225.86 | AE46: 226.23 | AF46: 226.27 | AG46: 228.75 | AH46: 226.27 | AI46: 226.26
B47: Utilities:
B48: Electric - | D48: 312 | E48: 1161.17 | F48: =SUM(K48:V48) -> 1194.99 | G48: 1040.46 | H48: =SUMIF($K$6:$AI$6,"<="&$H$6&"",$K48:$AI48)-SUMIF($K$6:$AI$6,"<="&$H$1&"",$K48:$AI48) -> 992.2 | I48: =H48 -> 992.2 | K48: 129.06 | L48: 232.35 | M48: 73.95 | N48: 95.92 | O48: 80.89 | P48: 98.23 | Q48: 92.5 | R48: 88.96 | S48: 90.59 | T48: 69.08 | U48: 63.25 | V48: 80.21 | W48: 113.61 | X48: 197.99 | Y48: 125.22 | Z48: 73.98 | AA48: 59.95 | AB48: 59.01 | AC48: 69.65 | AD48: 75.51 | AE48: 73.98 | AF48: 60.04 | AG48: 54.6 | AH48: 76.92 | AI48: 65.35
B49: Gas - | D49: 0 | E49: 0 | F49: =SUM(K49:V49) -> 0 | G49: 0 | H49: 0 | I49: =H49 -> 0 | K49: 0 | L49: 0 | M49: 0 | N49: 0 | O49: 0 | P49: 0 | Q49: 0 | R49: 0 | S49: 0 | T49: 0 | U49: 0 | V49: 0 | W49: 0 | X49: 0 | Y49: 0 | Z49: 0 | AA49: 0 | AB49: 0 | AC49: 0 | AD49: 0 | AE49: 0 | AF49: 0 | AG49: 0 | AH49: 0 | AI49: 0
B50: Water - | D50: 18124.62 | E50: 14605.05 | F50: =SUM(K50:V50) -> 20031.32 | G50: 20011.65 | H50: 20588.8 | I50: =H50 -> 20588.8 | K50: 1482.75 | L50: 3170.1 | M50: 1200.65 | N50: 1350.1 | O50: 1441.1 | P50: 1152.42 | Q50: 1573.75 | R50: 1883.15 | S50: 1864.95 | T50: 1874.05 | U50: 1209.75 | V50: 1828.55 | W50: 1255.25 | X50: 1664.75 | Y50: 1737.55 | Z50: 1614 | AA50: 1677.7 | AB50: 1377.4 | AC50: 1796 | AD50: 2178.2 | AE50: 1714.1 | AF50: 1595.8 | AG50: 1668.6 | AH50: 1732.3 | AI50: 1832.4
B51: Sewer - | H51: 0
B52: Trash - | D52: 930.87 | E52: 260.58 | F52: =SUM(K52:V52) -> 304.75 | G52: 168 | H52: 168 | I52: =H52 -> 168 | K52: 23 | L52: 28 | M52: 14 | N52: 87 | O52: 28 | P52: 39.62 | Q52: 14 | R52: 14 | S52: 14 | T52: 15.13 | U52: 14 | V52: 14 | W52: 14 | X52: 14 | Y52: 14 | Z52: 14 | AA52: 14 | AB52: 14 | AC52: 14 | AD52: 14 | AE52: 14 | AF52: 14 | AG52: 14 | AH52: 14 | AI52: 14
B53: Admin Fee - | D53: 771.8 | E53: 405.3 | F53: =SUM(K53:V53) -> 565.65 | G53: 317.44 | H53: 222.68 | I53: =H53 -> 222.68 | K53: 78.28 | L53: 87.86 | M53: 167.52 | N53: 41.62 | O53: 0 | P53: 0 | Q53: 58.15 | R53: 2.34 | S53: 0 | T53: 98.38 | U53: 31.5 | V53: 0 | W53: 94.76 | X53: 0 | Y53: 99.01 | Z53: 123.67 | AA53: 0 | AB53: 0 | AC53: 0 | AD53: 0 | AE53: 0 | AF53: 0 | AG53: 0 | AH53: 0 | AI53: 0
B54: Insurance | D54: 3591.74 | E54: 4622.62 | F54: =SUM(K54:V54) -> 5998.62 | G54: 7930.82 | H54: 8096.56 | I54: =H54 -> 8096.56 | K54: 441.32 | L54: 441.32 | M54: 441.32 | N54: 441.32 | O54: 441.32 | P54: 441.32 | Q54: 441.32 | R54: 441.32 | S54: 542.68 | T54: 941.38 | U54: 492 | V54: 492 | W54: 492 | X54: 492 | Y54: 492 | Z54: 492 | AA54: 492 | AB54: 492 | AC54: 458.37 | AD54: 1007.34 | AE54: 1340.99 | AF54: 724.04 | AG54: 724.04 | AH54: 724.04 | AI54: 657.74
B55: Real Estate Taxes | D55: 11201 | E55: 11084 | F55: =SUM(K55:V55) -> 11183 | G55: 11184 | H55: 11184.1 | I55: =H55 -> 11184.1 | K55: 1016 | L55: 1016 | M55: 1016 | N55: 1016 | O55: 1016 | P55: 1016 | Q55: 1016 | R55: 1016 | S55: 1016 | T55: 1016 | U55: 512 | V55: 511 | W55: 978.5 | X55: 978.5 | Y55: 978.5 | Z55: 978.5 | AA55: 978.5 | AB55: 978.5 | AC55: 978.5 | AD55: 978.5 | AE55: 978.5 | AF55: 978.5 | AG55: 699.5 | AH55: 699.5 | AI55: 978.6
B56: Management Fee(2) | C56: 0.04 | D56: 7511.73 | E56: 9787.82 | F56: =SUM(K56:V56) -> 9995.2572 | G56: 11012.2912 | H56: 11174.6948 | I56: =+I23*$C56 -> 13051.7236 | K56: =+K23*$C$56 -> 795.5528 | L56: =+L23*$C$56 -> 788.732 | M56: 919.506 | N56: 833.246 | O56: 795.9416 | P56: 843.7012 | Q56: 830.4836 | R56: 838.9552 | S56: 899.7176 | T56: 800.7972 | U56: 821.734 | V56: 826.89 | W56: 848.9084 | X56: 874.6584 | Y56: 919.346 | Z56: 932.0744 | AA56: 924.8644 | AB56: 904.1744 | AC56: 864.5288 | AD56: 880.8508 | AE56: 940.85 | AF56: 1024.25 | AG56: 1004.7264 | AH56: 893.0592 | AI56: =+AI23*$C$56 -> 1011.312
D57: =SUM(D25:D56) -> 65006.39 | E57: =SUM(E25:E56) -> 78023.83 | F57: =SUM(F25:F56) -> 88397.4072 | G57: =SUM(G25:G56) -> 97600.4512 | H57: =SUM(H25:H56) -> 99594.5348 | I57: =SUM(I25:I56) -> 101471.5636 | K57: =SUM(K25:K56) -> 6470.7428 | L57: 8117.802 | M57: 6890.136 | N57: 6006.316 | O57: 7790.4216 | P57: 6416.6812 | Q57: 8399.8436 | R57: 8914.7852 | S57: 8098.9176 | T57: 7112.6672 | U57: 6199.574 | V57: 7979.52 | W57: 6533.1484 | X57: 6779.9684 | Y57: 7341.536 | Z57: 8595.9044 | AA57: 7761.1344 | AB57: 7435.5144 | AC57: 6273.8188 | AD57: =SUM(AD25:AD56) -> 9739.4508 | AE57: 8371.86 | AF57: =SUM(AF25:AF56) -> 7697.99 | AG57: 7584.8164 | AH57: =SUM(AH25:AH56) -> 13485.3092 | AI57: 8527.232
B58: Expense Margin | D58: =IFERROR(D57/D23,"") -> 0.3617498893 | E58: 0.3344191923 | F58: 0.3537574089 | G58: =IFERROR(G57/G23,"") -> 0.3568805044 | H58: 0.3588445896 | I58: 0.3109828762 | K58: =IFERROR(K57/K23,"") -> 0.325345737 | L58: =IFERROR(L57/L23,"") -> 0.4116887358 | M58: 0.2997320735 | N58: 0.2883333853 | O58: 0.391507196 | P58: 0.3042158148 | Q58: 0.4045760133 | R58: 0.4250422526 | S58: 0.3600648737 | T58: 0.3552793242 | U58: 0.3017800894 | V58: 0.3860015238 | W58: 0.3078376136 | X58: 0.310062461 | Y58: 0.3194242864 | Z58: 0.3688934875 | AA58: 0.3356658295 | AB58: 0.3289416024 | AC58: 0.2902769139 | AD58: 0.4422747099 | AE58: 0.3636293351 | AF58: 0.3170595387 | AG58: 0.3019654465 | AH58: 0.6040051634 | AI58: =IFERROR(AI57/AI23,"") -> 0.3372740361
B60: Net Operating Income | D60: =+D23-D57 -> 114693.43 | E60: =+E23-E57 -> 155287.63 | F60: =+F23-F57 -> 161484.0228 | G60: =+G23-G57 -> 175881.7088 | H60: =+H23-H57 -> 177947.7152 | I60: =+I23-I57 -> 224821.5264 | K60: =+K23-K57 -> 13418.0772 | L60: 11600.498 | M60: 16097.514 | N60: 14824.834 | O60: 12108.1184 | P60: 14675.8488 | Q60: 12362.2464 | R60: 12059.0948 | S60: 14394.0224 | T60: 12907.2628 | U60: 14343.776 | V60: 12692.73 | W60: 14689.5616 | X60: 15086.4916 | Y60: 15642.114 | Z60: 14705.9556 | AA60: 15360.4756 | AB60: 15168.8456 | AC60: 15339.4012 | AD60: =+AD23-AD57 -> 12281.8192 | AE60: 14651.2 | AF60: =+AF23-AF57 -> 16581.33 | AG60: 17533.3436 | AH60: =+AH23-AH57 -> 8841.1708 | AI60: 16755.568
B62: (1) In-Place reflects the current rent roll annualized for base rent and other fixed charges and TTM expenses and other revenues
B63: ="(2) Future management fees at "&TEXT(C56,"0.0%")&" of revenues" -> (2) Future management fees at 4.0% of revenues
B68: Home Revenues | D68: 79062.81 | E68: 130652.15 | F68: 145727.26 | G68: 183873.52 | H68: 180943.52 | I68: 180686
B69: Home Expenses | D69: 36492.33 | E69: 50669.22 | F69: 85954.27 | G69: 80733.8808 | H69: 81176.0408 | I69: 81005.94
B70: Homes NOI | D70: =+D68-D69 -> 42570.48 | E70: 79982.93 | F70: 59772.99 | G70: 103139.6392 | H70: 99767.4792 | I70: 99680.06
B72: (1) In-Place reflects the current rent roll annualized for home rent and other fixed charges and TTM expenses and other revenues

Sheet LE_BSR
A1: Bill Summary Report
A2: Cairn Communities
A3: Property: Leisure Estates
A4: Data Source: Forecast
A5: Billing Period: 4/2026
A6: Ran On: 03/20/2026 11:47 AM
A8: Site Information | D8: Billing Summary | J8: Loan Summary
A9: Site | B9: Status | C9: Resident | D9: Balance Forward | E9: Base Rent | F9: Shed | G9: Home Rent | H9: Total Charges | I9: Ending Balance | J9: Next Loan Due Date | K9: Loan Balance Forward | L9: Loan Total Charges | M9: Loan Ending Balance | N9: Grand Total Due - Rent and Loan
A10: 1 | B10: Resident Occupied - LTO | C10: Hunter Douglas Danial Cooper | D10: 0 | E10: 650 | F10: 50 | G10: 0 | H10: 720.3 | I10: 720.3 | J10: 04/01/2026 | K10: 0 | L10: 485 | M10: 485 | N10: 1205.3
A11: 2 | B11: Resident Occupied | C11: Tonya Daily | D11: 0 | E11: 455 | F11: 50 | G11: 0 | H11: 525.1 | I11: 525.1 | K11: 0 | M11: 0 | N11: 525.1
A12: 3 | B12: Resident Occupied - LTO | C12: Garrett David Daugherty | D12: 0 | E12: 500 | F12: 50 | G12: 0 | H12: 559.39 | I12: 559.39 | J12: 04/01/2026 | K12: 0 | L12: 245 | M12: 245 | N12: 804.39
A13: 4 | B13: Resident Occupied - LTO | C13: Mary Elizabeth Helt | D13: 0 | E13: 650 | F13: 50 | G13: 0 | H13: 790.77 | I13: 790.77 | J13: 04/01/2026 | K13: 0.83 | L13: 395 | M13: 394.17 | N13: 1184.94
A14: 5 | B14: Resident Occupied - LTO | C14: Bobby Don Hamilton Jr. | D14: 0 | E14: 525 | F14: 50 | G14: 0 | H14: 655.41 | I14: 655.41 | J14: 04/01/2026 | K14: 0 | L14: 545 | M14: 545 | N14: 1200.41
A15: 6 | B15: Resident Occupied - LTO | C15: Colton Wesley Berard | D15: 0 | E15: 530 | F15: 50 | G15: 0 | H15: 610.31 | I15: 610.31 | J15: 04/01/2026 | K15: 0 | L15: 595 | M15: 595 | N15: 1205.31
A16: 7 | B16: Park Owned - LTO | C16: Joanna Mosby | D16: 0 | E16: 530 | F16: 35 | G16: 0 | H16: 640.56 | I16: 640.56 | J16: 04/01/2026 | K16: 0 | L16: 345 | M16: 345 | N16: 985.56
A17: 8 | B17: Resident Occupied | C17: Anthony Paul Bronner | D17: 0 | E17: 585 | F17: 0 | G17: 0 | H17: 613.81 | I17: 613.81 | K17: 0 | M17: 0 | N17: 613.81
A18: 9 | B18: Resident Occupied | C18: Kelly Gordan | D18: 0 | E18: 380 | F18: 0 | G18: 0 | H18: 416.01 | I18: 416.01 | K18: 0 | M18: 0 | N18: 416.01
A19: 10 | B19: Resident Occupied - LTO | C19: Corrie Elizabeth Diaz | D19: -534.87 | E19: 650 | F19: 50 | G19: 0 | H19: 700 | I19: 165.13 | J19: 05/01/2026 | K19: 0 | M19: 0 | N19: 165.13
A20: 11 | B20: Resident Occupied - LTO | C20: Kelcie Lynn Henderson | D20: 0 | E20: 625 | F20: 50 | G20: 0 | H20: 828.64 | I20: 828.64 | J20: 04/01/2026 | K20: 0 | L20: 165 | M20: 165 | N20: 993.64
A21: 12 | B21: Resident Occupied - LTO | C21: Falysha Kaylee Taylor | D21: 0 | E21: 625 | F21: 50 | G21: 0 | H21: 695.4 | I21: 695.4 | J21: 04/01/2026 | K21: 0 | L21: 415 | M21: 415 | N21: 1110.4
A22: 13 | B22: Park Owned - Rented | C22: Jake Tyler Woods I | D22: 0 | E22: 625 | F22: 50 | G22: 460 | H22: 1177.83 | I22: 1177.83 | K22: 0 | M22: 0 | N22: 1177.83
A23: 14 | B23: Park Owned - Rented | C23: Joanne E Sindle | D23: 0 | E23: 530 | F23: 50 | G23: 620 | H23: 1219.5 | I23: 1219.5 | K23: 0 | M23: 0 | N23: 1219.5
A24: 15 | B24: Resident Occupied - LTO | C24: Kayla Marie Hurst | D24: 0 | E24: 625 | F24: 50 | G24: 0 | H24: 684.29 | I24: 684.29 | J24: 04/01/2026 | K24: 0.76 | L24: 285 | M24: 284.24 | N24: 968.53
A25: 16 | B25: Resident Occupied | C25: Raven Brewer | D25: 0 | E25: 530 | F25: 45 | G25: 0 | H25: 623.32 | I25: 623.32 | K25: 0 | M25: 0 | N25: 623.32
A26: 17 | B26: Park Owned - LTO | C26: Brianna Hagood | D26: 0 | E26: 530 | F26: 35 | G26: 0 | H26: 614.33 | I26: 614.33 | J26: 04/01/2026 | K26: 0 | L26: 460 | M26: 460 | N26: 1074.33
A27: 18 | B27: Resident Occupied | C27: Ken Cox | D27: 0 | E27: 360 | F27: 0 | G27: 0 | H27: 378.9 | I27: 378.9 | K27: 0 | M27: 0 | N27: 378.9
A28: 19 | B28: Resident Occupied - LTO | C28: Alexis Jade Barton | D28: 0 | E28: 650 | F28: 50 | G28: 0 | H28: 710.39 | I28: 710.39 | J28: 04/01/2026 | K28: 0 | L28: 295 | M28: 295 | N28: 1005.39
A29: 20 | B29: Resident Occupied - LTO | C29: Dustin Eugene Reynolds | D29: 0 | E29: 525 | F29: 50 | G29: 0 | H29: 615.62 | I29: 615.62 | J29: 04/01/2026 | K29: 0.92 | L29: 345 | M29: 344.08 | N29: 959.7
A30: 21 | B30: Resident Occupied - LTO | C30: Meka Jey Viddaurri | D30: 0 | E30: 530 | F30: 50 | G30: 0 | H30: 597.6 | I30: 597.6 | J30: 04/01/2026 | K30: 0 | L30: 545 | M30: 545 | N30: 1142.6
A31: 22A | B31: Office | D31: 0 | E31: 0 | F31: 0 | G31: 0 | H31: 0 | I31: 0 | K31: 0 | M31: 0 | N31: 0
A32: 22B | B32: Unrentable | D32: 0 | E32: 0 | F32: 0 | G32: 0 | H32: 0 | I32: 0 | K32: 0 | M32: 0 | N32: 0
A33: 23 | B33: Park Owned - Rented | C33: Christina Danielle Hansen | D33: 0 | E33: 540 | F33: 50 | G33: 675 | H33: 1327.85 | I33: 1327.85 | K33: 0 | M33: 0 | N33: 1327.85
A34: 24 | B34: Resident Occupied | C34: Larock Flemings | D34: 0 | E34: 360 | F34: 0 | G34: 0 | H34: 377.51 | I34: 377.51 | K34: 0 | M34: 0 | N34: 377.51
A35: 25 | B35: Resident Occupied - LTO | C35: Jessika Nicole Irvin | D35: 0 | E35: 625 | F35: 50 | G35: 0 | H35: 685.79 | I35: 685.79 | J35: 04/01/2026 | K35: 0 | L35: 275 | M35: 275 | N35: 960.79
A36: 26 | B36: Resident Occupied | C36: Christie White | D36: 0 | E36: 455 | F36: 40 | G36: 0 | H36: 519.41 | I36: 519.41 | K36: 0 | M36: 0 | N36: 519.41
A37: 27 | B37: Resident Occupied - LTO | C37: Kenneth Bondeson | D37: 0 | E37: 530 | F37: 50 | G37: 0 | H37: 604.51 | I37: 604.51 | J37: 04/01/2026 | K37: 0 | L37: 345 | M37: 345 | N37: 949.51
A38: 28 | B38: Resident Occupied - LTO | C38: Dana Dawn Bell | D38: 0 | E38: 625 | F38: 50 | G38: 0 | H38: 703.3 | I38: 703.3 | J38: 04/01/2026 | K38: 0 | L38: 455 | M38: 455 | N38: 1158.3
A39: 29 | B39: Resident Occupied | C39: Kristopher micheal Robinson | D39: 0 | E39: 510 | F39: 0 | G39: 0 | H39: 526.7 | I39: 526.7 | K39: 0 | M39: 0 | N39: 526.7
A40: 30 | B40: Resident Occupied | C40: Cherrie Lynn Belew | D40: -1738.54 | E40: 530 | F40: 50 | G40: 0 | H40: 598.5 | I40: -1140.04 | K40: 0 | M40: 0 | N40: -1140.04
A41: 31 | B41: Resident Occupied - LTO | C41: Seth Michael Hamby | D41: 632.47 | E41: 500 | F41: 50 | G41: 0 | H41: 587.53 | I41: 1220 | J41: 04/01/2026 | K41: 655 | L41: 655 | M41: 1310 | N41: 2530
A42: 31B | B42: Resident Occupied - LTO | C42: Scott Edgar Tubbs II | D42: 0 | E42: 625 | F42: 50 | G42: 0 | H42: 715.72 | I42: 715.72 | J42: 04/01/2026 | K42: 0 | L42: 505 | M42: 505 | N42: 1220.72
A43: 32 | B43: Park Owned - Rented | C43: Tommy Niceley | D43: 0 | E43: 625 | F43: 0 | G43: 170 | H43: 810.5 | I43: 810.5 | K43: 0 | M43: 0 | N43: 810.5
A44: 33 | B44: Park Owned - Rented | C44: Meagan K Treadwell | D44: 0 | E44: 560 | F44: 50 | G44: 625 | H44: 1266.22 | I44: 1266.22 | K44: 0 | M44: 0 | N44: 1266.22
A45: 34 | B45: Resident Occupied - LTO | C45: Robert Scott Boykin | D45: 0 | E45: 625 | F45: 50 | G45: 0 | H45: 692.51 | I45: 692.51 | J45: 04/01/2026 | K45: 9.07 | L45: 185 | M45: 175.93 | N45: 868.44
A46: 35 | B46: Resident Occupied - LTO | C46: Ana Maria Santiago | D46: 0 | E46: 650 | F46: 50 | G46: 0 | H46: 704.49 | I46: 704.49 | J46: 04/01/2026 | K46: 2.16 | L46: 445 | M46: 442.84 | N46: 1147.33
A47: 36 | B47: Resident Occupied | C47: Robert Wann | D47: 0 | E47: 380 | F47: 0 | G47: 0 | H47: 389.39 | I47: 389.39 | K47: 0 | M47: 0 | N47: 389.39
A48: 37 | B48: Park Owned - Rented | C48: Marcella Hobbs | D48: 0 | E48: 625 | F48: 0 | G48: 160 | H48: 803.6 | I48: 803.6 | K48: 0 | M48: 0 | N48: 803.6
A49: 39 | B49: Park Owned - Rented | C49: Jonathan Frank Torres Naile | D49: 0 | E49: 510 | F49: 50 | G49: 750 | H49: 1336.71 | I49: 1336.71 | K49: 0 | M49: 0 | N49: 1336.71
A50: 40 | B50: Park Owned - Vacant New | D50: 0 | E50: 0 | F50: 0 | G50: 0 | H50: 0 | I50: 0 | K50: 0 | M50: 0 | N50: 0
A51: 41 | B51: Resident Occupied | C51: Elijah Sisson | D51: -6.21 | E51: 530 | F51: 0 | G51: 0 | H51: 538.49 | I51: 532.28 | K51: 0 | M51: 0 | N51: 532.28
A52: 42 | B52: Resident Occupied | C52: Terry Feemster | D52: 0 | E52: 380 | F52: 0 | G52: 0 | H52: 427.63 | I52: 427.63 | K52: 0 | M52: 0 | N52: 427.63
A53: 43 | B53: Park Owned - Rented | C53: Scott Douglas Cole | D53: -2.46 | E53: 625 | F53: 50 | G53: 465 | H53: 1157.6 | I53: 1155.14 | K53: 0 | M53: 0 | N53: 1155.14
A54: 44 | B54: Resident Occupied - LTO | C54: Logan Ray Gordon | D54: 0 | E54: 530 | F54: 50 | G54: 0 | H54: 599.61 | I54: 599.61 | J54: 04/01/2026 | K54: 0.11 | L54: 545 | M54: 544.89 | N54: 1144.5
A55: 45 | B55: Park Owned - LTO | C55: Catherine Orman | D55: 0 | E55: 530 | F55: 40 | G55: 0 | H55: 596.12 | I55: 596.12 | J55: 04/01/2026 | K55: 0 | L55: 540 | M55: 540 | N55: 1136.12
A56: =COUNTA(A10:A55) -> 46 | D56: =SUM(D10:D55) -> -1649.61 | E56: =SUM(E10:E55) -> 23480 | F56: 1595 | G56: 3925 | H56: 30347.17 | I56: 28697.56 | K56: =SUM(K10:K55) -> 668.85 | L56: =SUM(L10:L55) -> 9070 | M56: 9711.15 | N56: 38408.71
C58: Average Base Rents
A59: =COUNTIF($B$10:$B$55,B59) -> 1 | B59: Office | C59: =IFERROR(E59/A59,"") -> 0 | D59: =SUMIF($B$10:$B$55,$B59,D$10:D$55) -> 0 | E59: =SUMIF($B$10:$B$55,$B59,E$10:E$55) -> 0 | F59: 0 | G59: 0 | H59: 0 | I59: 0 | K59: =SUMIF($B$10:$B$55,$B59,K$10:K$55) -> 0 | L59: 0 | M59: 0 | N59: 0
A60: 0 | B60: Abandoned | C60: =IFERROR(E60/A60,"") ->  | D60: =SUMIF($B$10:$B$55,$B60,D$10:D$55) -> 0 | E60: 0 | F60: 0 | G60: 0 | H60: 0 | I60: 0 | K60: 0 | L60: 0 | M60: 0 | N60: 0
A61: 0 | B61: Financed - Loan | D61: 0 | E61: 0 | F61: 0 | G61: 0 | H61: 0 | I61: 0 | K61: 0 | L61: 0 | M61: 0 | N61: 0
A62: 3 | B62: Park Owned - LTO | C62: 530 | D62: 0 | E62: 1590 | F62: 110 | G62: 0 | H62: 1851.01 | I62: 1851.01 | K62: 0 | L62: 1345 | M62: 1345 | N62: 3196.01
A63: 8 | B63: Park Owned - Rented | C63: 580 | D63: -2.46 | E63: 4640 | F63: 300 | G63: 3925 | H63: 9099.81 | I63: 9097.35 | K63: 0 | L63: 0 | M63: 0 | N63: 9097.35
A64: 1 | B64: Park Owned - Vacant New | C64: 0 | D64: 0 | E64: 0 | F64: 0 | G64: 0 | H64: 0 | I64: 0 | K64: 0 | L64: 0 | M64: 0 | N64: 0
A65: 0 | B65: Park Owned - Vacant Old | D65: 0 | E65: 0 | F65: 0 | G65: 0 | H65: 0 | I65: 0 | K65: 0 | L65: 0 | M65: 0 | N65: 0
A66: 12 | B66: Resident Occupied | C66: 454.5833333 | D66: -1744.75 | E66: 5455 | F66: 185 | G66: 0 | H66: 5934.77 | I66: 4190.02 | K66: 0 | L66: 0 | M66: 0 | N66: 4190.02
A67: 20 | B67: Resident Occupied - LTO | C67: 589.75 | D67: 97.6 | E67: 11795 | F67: 1000 | G67: 0 | H67: 13461.58 | I67: 13559.18 | K67: 668.85 | L67: 7725 | M67: 8366.15 | N67: 21925.33
A68: 1 | B68: Unrentable | C68: 0 | D68: 0 | E68: 0 | F68: 0 | G68: 0 | H68: 0 | I68: 0 | K68: 0 | L68: 0 | M68: 0 | N68: 0
A69: 0 | B69: Vacant Site | D69: 0 | E69: 0 | F69: 0 | G69: 0 | H69: 0 | I69: 0 | K69: 0 | L69: 0 | M69: 0 | N69: 0
A70: =SUM(A59:A68) -> 46 | C70: 510.4347826 | D70: =SUM(D59:D69) -> -1649.61 | E70: =SUM(E59:E69) -> 23480 | F70: 1595 | G70: 3925 | H70: 30347.17 | I70: 28697.56 | K70: =SUM(K59:K69) -> 668.85 | L70: =SUM(L59:L69) -> 9070 | M70: 9711.15 | N70: 38408.71
A72: =A59 -> 1 | B72: Office | C72: =IFERROR(E72/A72,"") -> 0 | D72: =D59 -> 0 | E72: 0 | F72: 0 | G72: 0 | H72: 0 | I72: 0 | J72: 0 | L72: =L59 -> 0 | M72: 0 | N72: 0
A73: =A66 -> 12 | B73: =B66 -> Resident Occupied | C73: 454.5833333 | D73: =D66 -> -1744.75 | E73: 5455 | F73: 185 | G73: 0 | H73: 5934.77 | I73: 4190.02 | J73: 0 | L73: =L66 -> 0 | M73: 0 | N73: 4190.02
A74: =SUM(A61:A63,A67) -> 31 | B74: Park Owned - Occupied | C74: 581.4516129 | D74: =SUM(D61:D63,D67) -> 95.14 | E74: 18025 | F74: 1410 | G74: 3925 | H74: 24412.4 | I74: 24507.54 | J74: 0 | L74: =SUM(L61:L63,L67) -> 9070 | M74: 9711.15 | N74: 34218.69
A75: =SUM(A64:A65) -> 1 | B75: Park Owned - Vacant | C75: 0 | D75: =SUM(D64:D65) -> 0 | E75: 0 | F75: 0 | G75: 0 | H75: 0 | I75: 0 | J75: 0 | L75: =SUM(L64:L65) -> 0 | M75: 0 | N75: 0
A76: =SUM(A60,A68:A69) -> 1 | B76: Vacant | C76: 0 | D76: =SUM(D60,D68:D69) -> 0 | E76: 0 | F76: 0 | G76: 0 | H76: 0 | I76: 0 | J76: 0 | L76: =SUM(L60,L68:L69) -> 0 | M76: 0 | N76: 0
A77: =SUM(A72:A76) -> 46 | C77: 510.4347826 | D77: =SUM(D72:D76) -> -1649.61 | E77: =SUM(E72:E76) -> 23480 | F77: 1595 | G77: 3925 | H77: 30347.17 | I77: 28697.56 | J77: 0 | L77: =SUM(L72:L76) -> 9070 | M77: 9711.15 | N77: 38408.71

Sheet LE_RR (hidden)
A1: Rent Roll
A2: Cairn Communities
A3: Leisure Estates
A4: 1501 W. Dupont Street
A5: Claremore, OK 74017
A6: Period: 10/2025
A7: Report Date: 10/01/2025 8:11 AM
D9: Current Charge Detail
A10: Site # | B10: Status | C10: Resident | D10: Base Rent | E10: Utilities | F10: Other Charges | G10: Other Credits | H10: Move In Date | I10: Security Deposit
A11: 1 | B11: MH: Resident Occupied - LTO | C11: Mitchell Dylan West | D11: 525 | E11: 63.31 | F11: 50 | G11: 0 | H11: 2025-05-20 | I11: 0
A12: 2 | B12: MH: Resident Occupied | C12: Tonya Daily | D12: 420 | E12: 37.07 | F12: 50 | G12: 0 | H12: 2017-12-01 | I12: 0
A13: 3 | B13: MH: Resident Occupied - LTO | C13: Garrett David Daugherty | D13: 500 | E13: 22.27 | F13: 50 | G13: 0 | H13: 2025-03-11 | I13: 0
A14: 4 | B14: MH: Park Owned - Rented | C14: Abel D Shaw | D14: 585 | E14: 53.3 | F14: 675 | G14: 0 | H14: 2023-08-01 | I14: 1190
A15: 5 | B15: MH: Resident Occupied - LTO | C15: Bobby Don Hamilton Jr. | D15: 525 | E15: 29.47 | F15: 50 | G15: 0 | H15: 2025-05-12 | I15: 0
A16: 6 | B16: MH: Resident Occupied - LTO | C16: Colton Wesley Berard | D16: 500 | E16: 45.37 | F16: 80 | G16: 0 | H16: 2024-12-26 | I16: 0
A17: 7 | B17: MH: Park Owned - LTO | C17: Joanna Mosby | D17: 495 | E17: 67.71 | F17: 35 | G17: 0 | H17: 2021-01-20 | I17: 0
A18: 8 | B18: MH: Resident Occupied | C18: Anthony Paul Bronner | D18: 555 | E18: 25.96 | F18: 0 | G18: 0 | H18: 2022-11-01 | I18: 510
A19: 9 | B19: MH: Resident Occupied | C19: Kelly Gordan | D19: 345 | E19: 99.74 | F19: 0 | G19: 0 | H19: 2018-01-01 | I19: 230
A20: 10 | B20: MH: Park Owned - Rented | C20: Billy Ray Harper | D20: 510 | E20: 33.36 | F20: 730 | G20: 0 | H20: 2024-03-07 | I20: 1200
A21: 11 | B21: MH: Resident Occupied - LTO | C21: Kelcie Lynn Henderson | D21: 625 | E21: 58.5 | F21: 50 | G21: 0 | H21: 2025-07-14 | I21: 0
A22: 12 | B22: MH: Resident Occupied - LTO | C22: Falysha Kaylee Taylor | D22: 625 | E22: 70.22 | F22: 50 | G22: 0 | H22: 2025-08-05 | I22: 0
A23: 13 | B23: MH: Park Owned - Rented | C23: Jake Tyler Woods I | D23: 500 | E23: 33.28 | F23: 595 | G23: 0 | H23: 2023-11-28 | I23: 1160
A24: 14 | B24: MH: Park Owned - Rented | C24: Joanne E Sindle | D24: 530 | E24: 27.67 | F24: 670 | G24: 0 | H24: 2023-08-10 | I24: 565
A25: 15 | B25: MH: Resident Occupied - LTO | C25: Kayla Marie Hurst | D25: 625 | E25: 2.25 | F25: 50 | G25: 0 | H25: 2025-09-04 | I25: 0
A26: 16 | B26: MH: Resident Occupied | C26: Raven Brewer | D26: 495 | E26: 43.68 | F26: 45 | G26: 0 | H26: 2021-04-01 | I26: 0
A27: 17 | B27: MH: Park Owned - LTO | C27: Brianna Hagood | D27: 495 | E27: 58.3 | F27: 35 | G27: 0 | H27: 2021-03-01 | I27: 0
A28: 18 | B28: MH: Resident Occupied | C28: Ken Cox | D28: 325 | E28: 24.86 | F28: 0 | G28: 0 | H28: 2008-08-04 | I28: 165
A29: 19 | B29: MH: Abandoned | C29: John Lingenfelter | D29: 0 | E29: 0 | F29: 0 | G29: 0 | H29: 2019-08-01 | I29: 0
A30: 20 | B30: MH: Resident Occupied - LTO | C30: Dustin Eugene Reynolds | D30: 525 | E30: 53.5 | F30: 50 | G30: 0 | H30: 2025-07-18 | I30: 0
A31: 21 | B31: MH: Resident Occupied - LTO | C31: Meka Jey Viddaurri | D31: 500 | E31: 34.37 | F31: 50 | G31: 0 | H31: 2024-08-29 | I31: 0
A32: 22A | B32: BLD: Office | D32: 0 | E32: 0 | F32: 0 | G32: 0 | I32: 0
A33: 22B | B33: MH: Unrentable | D33: 0 | E33: 0 | F33: 0 | G33: 0 | I33: 0
A34: 23 | B34: MH: Park Owned - Rented | C34: Christina Danielle Hansen | D34: 510 | E34: 72.01 | F34: 720 | G34: 0 | H34: 2024-03-01 | I34: 1190
A35: 24 | B35: MH: Resident Occupied | C35: Larock Flemings | D35: 325 | E35: 21.26 | F35: 0 | G35: 0 | H35: 2005-11-01 | I35: 165
A36: 25 | B36: MH: Park Owned - Vacant New | D36: 0 | E36: 0 | F36: 0 | G36: 0 | I36: 0
A37: 26 | B37: MH: Resident Occupied | C37: Christie White | D37: 420 | E37: 54.69 | F37: 40 | G37: 0 | H37: 2017-11-01 | I37: 0
A38: 27 | B38: MH: Resident Occupied - LTO | C38: Kenneth Bondeson | D38: 500 | E38: 31.67 | F38: 50 | G38: 0 | H38: 2019-02-15 | I38: 0
A39: 28 | B39: MH: Park Owned - Vacant New | D39: 0 | E39: 0 | F39: 0 | G39: 0 | I39: 0
A40: 29 | B40: MH: Resident Occupied | C40: Kristopher micheal Robinson | D40: 475 | E40: 9.84 | F40: 0 | G40: 0 | H40: 2020-12-01 | I40: 0
A41: 30 | B41: MH: Resident Occupied | C41: Cherrie Lynn Belew | D41: 500 | E41: 28.96 | F41: 50 | G41: 0 | H41: 2024-06-14 | I41: 500
A42: 31 | B42: MH: Resident Occupied - LTO | C42: Seth Michael Hamby | D42: 500 | E42: 53.98 | F42: 50 | G42: 0 | H42: 2025-05-10 | I42: 0
A43: 31B | B43: MH: Park Owned - Vacant New | D43: 0 | E43: 0 | F43: 0 | G43: 0 | I43: 0
A44: 32 | B44: MH: Park Owned - Rented | C44: Tommy Niceley | D44: 510 | E44: 40.28 | F44: 245 | G44: 0 | H44: 2016-11-01 | I44: 600
A45: 33 | B45: MH: Park Owned - Rented | C45: Meagan K Treadwell | D45: 560 | E45: 43.88 | F45: 675 | G45: 0 | H45: 2023-04-21 | I45: 1165
A46: 34 | B46: MH: Resident Occupied - LTO | C46: Timothy Dwayne Brown | D46: 500 | E46: 23.76 | F46: 50 | G46: 0 | H46: 2025-03-12 | I46: 0
A47: 35 | B47: MH: Resident Occupied - LTO | C47: Miranda Dawn Skelton | D47: 500 | E47: 65.61 | F47: 50 | G47: 0 | H47: 2025-01-03 | I47: 0
A48: 36 | B48: MH: Resident Occupied | C48: Robert Wann | D48: 345 | E48: 17.66 | F48: 0 | G48: 0 | H48: 2014-06-01 | I48: 230
A49: 37 | B49: MH: Park Owned - Rented | C49: Marcella Hobbs | D49: 510 | E49: 23.05 | F49: 235 | G49: 0 | H49: 2019-12-01 | I49: 585
A50: 39 | B50: MH: Park Owned - Rented | C50: Jonathan Frank Torres Naile | D50: 510 | E50: 14.75 | F50: 850 | G50: 0 | H50: 2024-05-01 | I50: 1270
A51: 40 | B51: MH: Park Owned - Rented | C51: Dustin Lee Slife | D51: 525 | E51: 106.75 | F51: 640 | G51: 0 | H51: 2022-06-07 | I51: 1080
A52: 41 | B52: MH: Resident Occupied | C52: Elijah Sisson | D52: 495 | E52: 64.8 | F52: 0 | G52: 0 | H52: 2019-05-03 | I52: 450
A53: 42 | B53: MH: Resident Occupied | C53: Terry Feemster | D53: 345 | E53: 42.37 | F53: 0 | G53: 0 | H53: 2020-05-01 | I53: 230
A54: 43 | B54: MH: Park Owned - Rented | C54: Scott Douglas Cole | D54: 510 | E54: 19.66 | F54: 590 | G54: 0 | H54: 2024-04-26 | I54: 1060
A55: 44 | B55: MH: Resident Occupied - LTO | C55: Logan Ray Gordon | D55: 500 | E55: 31.97 | F55: 50 | G55: 0 | H55: 2024-09-25 | I55: 0
A56: 45 | B56: MH: Park Owned - LTO | C56: Catherine Orman | D56: 495 | E56: 55.6 | F56: 40 | G56: 0 | H56: 2021-07-19 | I56: 0
D57: 19740 | E57: 1706.74 | F57: 7650 | G57: 0 | I57: 13545

Sheet LE_POH
B1: Leisure Estates
B2: POH List
B5: POH Inventory | L5: Loan Tape
B6: Site | C6: Status | D6: VIN | E6: Width | F6: Length | G6: Bedrooms | H6: Bathrooms | I6: Make | J6: Year | L6: Original Balance | M6: Original Term | N6: Remaining Term | O6: Current Balance | P6: LTO Pmt | Q6: Funding Date | R6: Maturity Date | S6: Loan #
B7: 1 | C7: Resident Occupied - LTO | D7: CBH040052TXAC | E7: 16 | F7: 76 | G7: 3 | H7: 2 | I7: Clayton | J7: 2025 | L7: 87300 | M7: 179 | N7: 178 | O7: 86815 | P7: 485 | Q7: 2/13/2026 | R7: 1/1/2041 | S7: 7119245
B8: 3 | C8: Resident Occupied - LTO | D8: FG4176A | E8: 14 | F8: 64 | G8: 2 | H8: 2 | I8: Nova | J8: 1982 | L8: 23520 | M8: 95 | N8: 83 | O8: 20580 | P8: 245 | Q8: 3/11/2025 | R8: 2/1/2033 | S8: 7117882
B9: 4 | C9: Resident Occupied - LTO | D9: FLE240TX2147257A | E9: 16 | F9: 76 | G9: 3 | H9: 2 | I9: Fleetwood | J9: 2022 | L9: 71100 | M9: 179 | N9: 178 | O9: 70705 | P9: 395 | Q9: 2/3/2026 | R9: 1/1/2041 | S9: 7119183
B10: 5 | C10: Resident Occupied - LTO | D10: RGN0924 | E10: 16 | F10: 76 | G10: 3 | H10: 2 | I10: RGN | J10: 2022 | L10: 98100 | M10: 179 | N10: 169 | O10: 92650 | P10: 545 | Q10: 5/12/2025 | R10: 4/1/2040 | S10: 7118129
B11: 6 | C11: Resident Occupied - LTO | D11: CLW054899TX | E11: 16 | F11: 76 | G11: 3 | H11: 2 | I11: Clayton | J11: 2023 | L11: 107100 | M11: 179 | N11: 165 | O11: 98770 | P11: 595 | Q11: 12/26/2024 | R11: 12/1/2039 | S11: 7117583
B12: 7 | C12: Park Owned - LTO | D12: CLW025945TX | E12: 16 | F12: 76 | G12: 3 | H12: 2 | I12: Clayton | J12: 2007 | L12: 41400 | M12: 119 | N12: 58 | O12: 20325 | P12: 345 | Q12: 1/20/2021 | R12: 1/1/2031 | S12: 7114499
B13: 10 | C13: Resident Occupied - LTO | D13: RGN1065 | E13: 16 | F13: 66 | G13: 3 | H13: 2 | I13: RGN | J13: 2023 | L13: 71100 | M13: 179 | N13: 179 | O13: 71100 | P13: 395 | Q13: 3/18/2026 | R13: 3/1/2041 | S13: 7119526
B14: 11 | C14: Resident Occupied - LTO | D14: 42510609H | E14: 14 | F14: 66 | G14: 2 | H14: 2 | I14: Skyline | J14: 1995 | L14: 15840 | M14: 95 | N14: 87 | O14: 14520 | P14: 165 | Q14: 7/14/2025 | R14: 6/1/2033 | S14: 7118357
B15: 12 | C15: Resident Occupied - LTO | D15: FLE240TX2348955A | E15: 16 | F15: 66 | G15: 3 | H15: 2 | I15: Fleetwood | J15: 2023 | L15: 74700 | M15: 179 | N15: 172 | O15: 71795 | P15: 415 | Q15: 8/5/2025 | R15: 7/1/2040 | S15: 7118497
B16: 13 | C16: Park Owned - Rented | D16: RGN0926 | E16: 16 | F16: 66 | G16: 3 | H16: 2 | I16: RGN | J16: 2023
B17: 14 | C17: Park Owned - Rented | D17: RGN1235 | E17: 16 | F17: 66 | G17: 3 | H17: 2 | I17: RGN | J17: 2023
B18: 15 | C18: Resident Occupied - LTO | D18: BEL006758TX | E18: 14 | F18: 68 | G18: 3 | H18: 2 | I18: Tru MH | J18: 2017 | L18: 47880 | M18: 167 | N18: 161 | O18: 46170 | P18: 285 | Q18: 9/4/2025 | R18: 8/1/2039 | S18: 7118597
B19: 17 | C19: Park Owned - LTO | D19: JHW02897TX21 | E19: 16 | F19: 76 | G19: 3 | H19: 2 | I19: Jessup | J19: 2021 | L19: 82800 | M19: 179 | N19: 119 | O19: 55200 | P19: 460 | Q19: 3/1/2021 | R19: 2/1/2036 | S19: 7114583
B20: 19 | C20: Resident Occupied - LTO | D20: LH01073820 | E20: 16 | F20: 76 | G20: 3 | H20: 2 | I20: Lexington | J20: 2008 | L20: 35400 | M20: 119 | N20: 0 | O20: 35400 | P20: 295 | Q20: 2/20/2026 | R20: 2/1/2036 | S20: 7119300
B21: 20 | C21: Resident Occupied - LTO | D21: CRH2TX04041 | E21: 16 | F21: 76 | G21: 3 | H21: 2 | I21: Crest Ridge | J21: 2001 | L21: 41400 | M21: 119 | N21: 112 | O21: 38985 | P21: 345 | Q21: 7/18/2025 | R21: 7/1/2035 | S21: 7118366
B22: 21 | C22: Resident Occupied - LTO | D22: CBH034059TX | E22: 16 | F22: 76 | G22: 3 | H22: 2 | I22: Clayton | J22: 2020 | L22: 98100 | M22: 179 | N22: 161 | O22: 88290 | P22: 545 | Q22: 8/29/2024 | R22: 8/1/2039 | S22: 7117188
B23: 23 | C23: Park Owned - Rented | D23: CBH034056TX | E23: 16 | F23: 72 | G23: 3 | H23: 2 | I23: Clayton | J23: 2020
B24: 25 | C24: Resident Occupied - LTO | D24: OC011729248AC | E24: 14 | F24: 60 | G24: 3 | H24: 2 | I24: FEMA | J24: 2017 | L24: 46200 | M24: 167 | N24: 163 | O24: 45100 | P24: 275 | Q24: 11/14/2025 | R24: 10/1/2039 | S24: 7118901
B25: 27 | C25: Resident Occupied - LTO | D25: 12522302A | E25: 16 | F25: 76 | G25: 3 | H25: 2 | I25: Redman | J25: 1995 | L25: 20700 | M25: 59 | N25: 42 | O25: 14835 | P25: 345 | Q25: 10/31/2024 | R25: 9/1/2029 | S25: 7117326
B26: 28 | C26: Resident Occupied - LTO | D26: CBH039295TXAC | E26: 16 | F26: 76 | G26: 3 | H26: 2 | I26: Clayton | J26: 2024 | L26: 81900 | M26: 179 | N26: 174 | O26: 79625 | P26: 455 | Q26: 10/8/2025 | R26: 9/1/2040 | S26: 7118712
B27: 31 | C27: Resident Occupied - LTO | D27: OC012538378BA | E27: 28 | F27: 48 | G27: 3 | H27: 2 | I27: Oak Creek | J27: 2025 | L27: 117900 | M27: 179 | N27: 169 | O27: 112005 | P27: 655 | Q27: 5/10/2025 | R27: 4/1/2040 | S27: 7118118
B28: 31B | C28: Resident Occupied - LTO | D28: RGN0928AB | E28: 28 | F28: 48 | G28: 3 | H28: 2 | I28: RGN | J28: 2023 | L28: 90900 | M28: 179 | N28: 175 | O28: 88880 | P28: 505 | Q28: 11/1/2025 | R28: 10/1/2040 | S28: 7118869
B29: 32 | C29: Park Owned - Rented | D29: ALCA0893270S17636 | E29: 14 | F29: 70 | G29: 2 | H29: 2 | I29: Cavalier | J29: 1994
B30: 33 | C30: Park Owned - Rented | D30: FLE240TX2348839A | E30: 16 | F30: 76 | G30: 3 | H30: 2 | I30: Fleetwood | J30: 2023
B31: 34 | C31: Resident Occupied - LTO | D31: TXFLS12A22503FD12 | E31: 16 | F31: 76 | G31: 3 | H31: 2 | I31: Fleetwood | J31: 1995 | L31: 8880 | M31: 47 | N31: 45 | O31: 8510 | P31: 185 | Q31: 12/24/2025 | R31: 12/1/2029 | S31: 7119080
B32: 35 | C32: Resident Occupied - LTO | D32: JHW04003TX22 | E32: 16 | F32: 76 | G32: 3 | H32: 2 | I32: Jessup | J32: 2022 | L32: 80100 | M32: 179 | N32: 178 | O32: 79655 | P32: 445 | Q32: 2/3/2026 | R32: 1/1/2041 | S32: 7119184
B33: 37 | C33: Park Owned - Rented | D33: CBH007041TX | E33: 14 | F33: 70 | G33: 2 | H33: 2 | I33: Clayton | J33: 1999
B34: 39 | C34: Park Owned - Rented | D34: RGN1064AB | E34: 24 | F34: 48 | G34: 3 | H34: 2 | I34: RGN | J34: 2023
B35: 40 | C35: Park Owned - Vacant New | D35: FLE240TX2146774A | E35: 16 | F35: 76 | G35: 3 | H35: 2 | I35: Fleetwood | J35: 2022
B36: 43 | C36: Park Owned - Rented | D36: SCH01079114 | E36: 16 | F36: 76 | G36: 3 | H36: 2 | I36: Silver Creek | J36: 2007
B37: 44 | C37: Resident Occupied - LTO | D37: RGN0582 | E37: 16 | F37: 66 | G37: 3 | H37: 2 | I37: RGN | J37: 2021 | L37: 98100 | M37: 179 | N37: 162 | O37: 88835 | P37: 545 | Q37: 9/25/2024 | R37: 9/1/2039 | S37: 7117259
B38: 45 | C38: Park Owned - LTO | D38: JHW03044TX21 | E38: 16 | F38: 76 | G38: 3 | H38: 2 | I38: Jessup | J38: 2021 | L38: 97200 | M38: 179 | N38: 124 | O38: 67500 | P38: 540 | Q38: 7/19/2021 | R38: 7/1/2036 | S38: 7114860
B39: =COUNTA(B7:B38) -> 32 | J39: =AVERAGE(J7:J38) -> 2014.5625 | L39: =SUM(L7:L38) -> 1537620 | M39: =SUMPRODUCT(M7:M38,$L$7:$L$38)/$L$39 -> 169.1254146 | N39: =SUMPRODUCT(N7:N38,$L$7:$L$38)/$L$39 -> 151.4227963 | O39: =SUM(O7:O38) -> 1396250 | P39: =SUM(P7:P38) -> 9465 | Q39: =SUMPRODUCT(Q7:Q38,$L$7:$L$38)/$L$39 -> 00:00:00 | R39: =SUMPRODUCT(R7:R38,$L$7:$L$38)/$L$39 -> 00:00:00 | S39: =COUNTA(S7:S38) -> 23
O40: =+O39/$S$39 -> 60706.52174 | P40: =+P39/$S$39 -> 411.5217391
B42: =COUNTIF($C$7:$C$38,C42) -> 3 | C42: Park Owned - LTO | J42: =IFERROR(SUMIF($C$7:$C$38,$C42,J$7:J$38)/B42,"") -> 2016.333333 | L42: =IFERROR(SUMIF($C$7:$C$38,$C42,L$7:L$38),0) -> 221400 | M42: =IFERROR(SUMIF($C$7:$C$38,$C42,M$7:M$38)/$S42,0) -> 159 | N42: 100.3333333 | O42: =IFERROR(SUMIF($C$7:$C$38,$C42,O$7:O$38),0) -> 143025 | P42: 1345 | Q42: =IFERROR(SUMIF($C$7:$C$38,$C42,Q$7:Q$38)/$S42,"") -> 00:00:00 | R42: 00:00:00 | S42: =COUNTIFS($C$7:$C$38,$C42,$S$7:$S$38,"<>") -> 3
B43: =COUNTIF($C$7:$C$38,C43) -> 8 | C43: Park Owned - Rented | J43: =IFERROR(SUMIF($C$7:$C$38,$C43,J$7:J$38)/B43,"") -> 2014 | L43: =IFERROR(SUMIF($C$7:$C$38,$C43,L$7:L$38),0) -> 0 | M43: 0 | N43: 0 | O43: 0 | P43: 0 | S43: =COUNTIFS($C$7:$C$38,$C43,$S$7:$S$38,"<>") -> 0
B44: =COUNTIF($C$7:$C$38,C44) -> 1 | C44: Park Owned - Vacant New | J44: =IFERROR(SUMIF($C$7:$C$38,$C44,J$7:J$38)/B44,"") -> 2022 | L44: =IFERROR(SUMIF($C$7:$C$38,$C44,L$7:L$38),0) -> 0 | M44: 0 | N44: 0 | O44: 0 | P44: 0 | S44: =COUNTIFS($C$7:$C$38,$C44,$S$7:$S$38,"<>") -> 0
B45: =COUNTIF($C$7:$C$38,C45) -> 0 | C45: Park Owned - Vacant Old | J45: =IFERROR(SUMIF($C$7:$C$38,$C45,J$7:J$38)/B45,"") ->  | L45: =IFERROR(SUMIF($C$7:$C$38,$C45,L$7:L$38),0) -> 0 | M45: 0 | N45: 0 | O45: 0 | P45: 0 | S45: =COUNTIFS($C$7:$C$38,$C45,$S$7:$S$38,"<>") -> 0
B46: =COUNTIF($C$7:$C$38,C46) -> 20 | C46: Resident Occupied - LTO | J46: =IFERROR(SUMIF($C$7:$C$38,$C46,J$7:J$38)/B46,"") -> 2014.15 | L46: =IFERROR(SUMIF($C$7:$C$38,$C46,L$7:L$38),0) -> 1316220 | M46: 150.8 | N46: 137.65 | O46: 1253225 | P46: 8120 | Q46: 00:00:00 | R46: 00:00:00 | S46: =COUNTIFS($C$7:$C$38,$C46,$S$7:$S$38,"<>") -> 20
B47: =SUM(B42:B46) -> 32 | J47: =SUMPRODUCT(J42:J46,B42:B46)/B47 -> 2014.5625 | L47: =SUM(L42:L46) -> 1537620 | M47: =SUMPRODUCT(M42:M46,$S$42:$S$46)/$S$47 -> 151.8695652 | N47: =SUMPRODUCT(N42:N46,$S$42:$S$46)/$S$47 -> 132.7826087 | O47: =SUM(O42:O46) -> 1396250 | P47: 9465 | Q47: =SUMPRODUCT(Q42:Q46,$S$42:$S$46)/$S$47 -> 00:00:00 | R47: =SUMPRODUCT(R42:R46,$S$42:$S$46)/$S$47 -> 00:00:00 | S47: =SUM(S42:S46) -> 23
B49: =+B42=LE_BSR!A62 -> TRUE
B50: =+B43=LE_BSR!A63 -> TRUE
B51: =+B44=LE_BSR!A64 -> TRUE
B52: =+B45=LE_BSR!A65 -> TRUE
B53: =+B46=LE_BSR!A67 -> TRUE

Sheet LE_Site Map
B1: Leisure Estates
B2: Site Map
